PublisherLabel,PublisherURI,"Body name","Body","Service area","Service division","Responsible unit","Expenses type","Date","Transaction","Amount","Supplier name"
"Bracknell Forest Council","http://opendatacommunities.org/id/unitary-authority/bracknell-forest","Bracknell Forest Council","00MA","Older People (Aged 65 or Over)","Residential Care Home Placements","Heathlands EPH","Catering Consumables",31/12/2012 00:00:00,"6506662",3126.06,"3663"
"Bracknell Forest Council","http://opendatacommunities.org/id/unitary-authority/bracknell-forest","Bracknell Forest Council","00MA","Recreation, Sports and Leisure","Golf Courses","Leisure DSO - Downshire Catering","Cost of Goods Sold",31/12/2012 00:00:00,"6506751",2726.52,"3663"
"Bracknell Forest Council","http://opendatacommunities.org/id/unitary-authority/bracknell-forest","Bracknell Forest Council","00MA","Recreation, Sports and Leisure","Indoor Sports & Recreation Facilities","Leisure Centre - Catering General","Cost of Goods Sold",31/12/2012 00:00:00,"6506753",2350.84,"3663"
"Bracknell Forest Council","http://opendatacommunities.org/id/unitary-authority/bracknell-forest","Bracknell Forest Council","00MA","Business Support","Premises Development","Easthampstead Park Centre - Catering","Cost of Goods Sold",31/12/2012 00:00:00,"6506984",2585.26,"3663"
"Bracknell Forest Council","http://opendatacommunities.org/id/unitary-authority/bracknell-forest","Bracknell Forest Council","00MA","Open Spaces","Community Parks & Open Spaces","Play Areas","R&M - Planned",04/01/2013 00:00:00,"6506241",1162.93,"1SKATEPARKS LTD"
"Bracknell Forest Council","http://opendatacommunities.org/id/unitary-authority/bracknell-forest","Bracknell Forest Council","00MA","Open Spaces","Community Parks & Open Spaces","Play Areas","R&M - Planned",04/01/2013 00:00:00,"6506241",862.99,"1SKATEPARKS LTD"
"Bracknell Forest Council","http://opendatacommunities.org/id/unitary-authority/bracknell-forest","Bracknell Forest Council","00MA","Open Spaces","Community Parks & Open Spaces","Play Areas","R&M - Planned",04/01/2013 00:00:00,"6507249",1094.42,"1SKATEPARKS LTD"
"Bracknell Forest Council","http://opendatacommunities.org/id/unitary-authority/bracknell-forest","Bracknell Forest Council","00MA","Open Spaces","Community Parks & Open Spaces","Play Areas","R&M - Planned",04/01/2013 00:00:00,"6507249",862.99,"1SKATEPARKS LTD"
"Bracknell Forest Council","http://opendatacommunities.org/id/unitary-authority/bracknell-forest","Bracknell Forest Council","00MA","Open Spaces","Community Parks & Open Spaces","Play Areas","R&M - Planned",24/01/2013 00:00:00,"60010934",-2025.92,"1SKATEPARKS LTD"
"Bracknell Forest Council","http://opendatacommunities.org/id/unitary-authority/bracknell-forest","Bracknell Forest Council","00MA","Open Spaces","Community Parks & Open Spaces","Play Areas","R&M - Planned",24/01/2013 00:00:00,"60010935",2025.92,"1SKATEPARKS LTD"
"Bracknell Forest Council","http://opendatacommunities.org/id/unitary-authority/bracknell-forest","Bracknell Forest Council","00MA","Older People (Aged 65 or Over)","Assessment & Care Management","Enhanced Intermediate Care","Other Support to Clients",28/12/2012 00:00:00,"6505324",592.8,"1ST RESPONSE MEDICAL SERVICES LIMITED"
"Bracknell Forest Council","http://opendatacommunities.org/id/unitary-authority/bracknell-forest","Bracknell Forest Council","00MA","Services to Young People","Other Services to Young People","Fuse","Other Fees for Bought-in Services",23/12/2012 00:00:00,"6506153",1575,"2 ASPIRE 2 CONSULTANCY LTD"
"Bracknell Forest Council","http://opendatacommunities.org/id/unitary-authority/bracknell-forest","Bracknell Forest Council","00MA","Services to Young People","Other Services to Young People","Fuse","Youth & Community Activities",25/01/2013 00:00:00,"6507662",10000,"2 ASPIRE 2 CONSULTANCY LTD"
"Bracknell Forest Council","http://opendatacommunities.org/id/unitary-authority/bracknell-forest","Bracknell Forest Council","00MA","Mental Health Needs (Under 65)","Residential Care Home Placements","Residential Placements-Mental Illness","Contracted Services",15/01/2013 00:00:00,"30209987",2346.08,"2 CARE"
"Bracknell Forest Council","http://opendatacommunities.org/id/unitary-authority/bracknell-forest","Bracknell Forest Council","00MA","Mental Health Needs (Under 65)","Residential Care Home Placements","Residential Placements-Mental Illness","Contracted Services",15/01/2013 00:00:00,"30209987",2346,"2 CARE"
"Bracknell Forest Council","http://opendatacommunities.org/id/unitary-authority/bracknell-forest","Bracknell Forest Council","00MA","Recreation, Sports and Leisure","Indoor Sports & Recreation Facilities","Leisure DSO - Coral Reef Maintenance","R&M - Service Contracts",19/12/2012 00:00:00,"6505951",1240,"A BETTER SERVICE LTD"
"Bracknell Forest Council","http://opendatacommunities.org/id/unitary-authority/bracknell-forest","Bracknell Forest Council","00MA","Support Services & Management Costs","Information and Communication Technology","IT","Computer Software Maintenance",21/12/2012 00:00:00,"6505955",2273,"ABRITAS LTD"
"Bracknell Forest Council","http://opendatacommunities.org/id/unitary-authority/bracknell-forest","Bracknell Forest Council","00MA","Early Years","Children's Centres","Children's Centre Co-ordination","Other Fees for Bought-in Services",01/01/2013 00:00:00,"6506840",23031.75,"ACTION FOR CHILDREN SERVICES LTD"
"Bracknell Forest Council","http://opendatacommunities.org/id/unitary-authority/bracknell-forest","Bracknell Forest Council","00MA","Management and Support Services - CYPL","Unallocated Early years Related Expenditure","Support to Pre-School","Voluntary Sector Service Providers",01/01/2013 00:00:00,"6506842",51715.19,"ACTION FOR CHILDREN SERVICES LTD"
"Bracknell Forest Council","http://opendatacommunities.org/id/unitary-authority/bracknell-forest","Bracknell Forest Council","00MA","Commissioning and Social Work","Commissioning and Social Work","Children's Participation","Voluntary Sector Service Providers",11/01/2013 00:00:00,"6506948",2276.52,"ACTION FOR CHILDREN SERVICES LTD"
"Bracknell Forest Council","http://opendatacommunities.org/id/unitary-authority/bracknell-forest","Bracknell Forest Council","00MA","Children Looked After","Residential care","Children's Home Placements","Contracted Services",01/01/2013 00:00:00,"6505800",11957.01,"ACTIVE8 CARE LTD"
"Bracknell Forest Council","http://opendatacommunities.org/id/unitary-authority/bracknell-forest","Bracknell Forest Council","00MA","Recreation, Sports and Leisure","Golf Courses","Leisure DSO - Downshire Golf Shop","Cost of Goods Sold",05/11/2012 00:00:00,"6505412",543.33,"ACUSHNET EUROPE LTD"
"Bracknell Forest Council","http://opendatacommunities.org/id/unitary-authority/bracknell-forest","Bracknell Forest Council","00MA","","","Disabled Facilities Grant","Grants Paid",24/12/2012 00:00:00,"6504878",878,"ADAPTABLE BUILDING SERVICES"
"Bracknell Forest Council","http://opendatacommunities.org/id/unitary-authority/bracknell-forest","Bracknell Forest Council","00MA","","","Disabled Facilities Grant","Grants Paid",24/12/2012 00:00:00,"6504883",4290,"ADAPTABLE BUILDING SERVICES"
"Bracknell Forest Council","http://opendatacommunities.org/id/unitary-authority/bracknell-forest","Bracknell Forest Council","00MA","Older People (Aged 65 or Over)","Equipment and Adaptations","Aids & Adaptations-Elderly","Equipment - Purchase",16/01/2013 00:00:00,"6506967",780,"ADAPTABLE BUILDING SERVICES"
"Bracknell Forest Council","http://opendatacommunities.org/id/unitary-authority/bracknell-forest","Bracknell Forest Council","00MA","Services to Young People","Other Services to Young People","NEET Reduction Funding","Contracted Services",17/12/2012 00:00:00,"6505790",128583.83,"ADVIZA PARTNERSHIP"
"Bracknell Forest Council","http://opendatacommunities.org/id/unitary-authority/bracknell-forest","Bracknell Forest Council","00MA","Children Looked After","Education of LAC","Educational Attainment for Looked After Children","Contracted Services",17/12/2012 00:00:00,"6505790",7661.33,"ADVIZA PARTNERSHIP"
"Bracknell Forest Council","http://opendatacommunities.org/id/unitary-authority/bracknell-forest","Bracknell Forest Council","00MA","Services to Young People","Other Services to Young People","NEET Reduction Funding","Contracted Services",02/01/2013 00:00:00,"6506607",32145.96,"ADVIZA PARTNERSHIP"
"Bracknell Forest Council","http://opendatacommunities.org/id/unitary-authority/bracknell-forest","Bracknell Forest Council","00MA","Children Looked After","Education of LAC","Educational Attainment for Looked After Children","Contracted Services",02/01/2013 00:00:00,"6506607",1915.33,"ADVIZA PARTNERSHIP"
"Bracknell Forest Council","http://opendatacommunities.org/id/unitary-authority/bracknell-forest","Bracknell Forest Council","00MA","","","Great Hollands Community Centre","Consultant Fees",08/01/2013 00:00:00,"6507653",650,"AED PRACTICE LTD"
"Bracknell Forest Council","http://opendatacommunities.org/id/unitary-authority/bracknell-forest","Bracknell Forest Council","00MA","Learning Disability (under 65)","Residential Care Home Placements","Residential Placements-Lrng Disab","Contracted Services",15/01/2013 00:00:00,"30209987",4760,"AFFINITY TRUST"
"Bracknell Forest Council","http://opendatacommunities.org/id/unitary-authority/bracknell-forest","Bracknell Forest Council","00MA","Mental Health Needs (Under 65)","Day Care","Day Centre Placements - Elderly EMI Under 65","Contracted Services",10/01/2013 00:00:00,"30209708",56,"AGE CONCERN BRACKNELL FOREST"
"Bracknell Forest Council","http://opendatacommunities.org/id/unitary-authority/bracknell-forest","Bracknell Forest Council","00MA","Mental Health Needs (Under 65)","Day Care","Day Centre Placements - Elderly EMI Under 65","Contracted Services",10/01/2013 00:00:00,"30209708",28,"AGE CONCERN BRACKNELL FOREST"
"Bracknell Forest Council","http://opendatacommunities.org/id/unitary-authority/bracknell-forest","Bracknell Forest Council","00MA","Older People (Aged 65 or Over)","Day Care","Day Centre Placements - Elderly EMI","Contracted Services",10/01/2013 00:00:00,"30209708",136,"AGE CONCERN BRACKNELL FOREST"
"Bracknell Forest Council","http://opendatacommunities.org/id/unitary-authority/bracknell-forest","Bracknell Forest Council","00MA","Older People (Aged 65 or Over)","Day Care","Day Centre Placements - Elderly EMI","Contracted Services",10/01/2013 00:00:00,"30209708",85,"AGE CONCERN BRACKNELL FOREST"
"Bracknell Forest Council","http://opendatacommunities.org/id/unitary-authority/bracknell-forest","Bracknell Forest Council","00MA","Older People (Aged 65 or Over)","Day Care","Day Centre Placements - Elderly EMI","Contracted Services",10/01/2013 00:00:00,"30209708",136,"AGE CONCERN BRACKNELL FOREST"
"Bracknell Forest Council","http://opendatacommunities.org/id/unitary-authority/bracknell-forest","Bracknell Forest Council","00MA","Older People (Aged 65 or Over)","Day Care","Day centre Placements-Elderly","Contracted Services",10/01/2013 00:00:00,"30209708",136,"AGE CONCERN BRACKNELL FOREST"
"Bracknell Forest Council","http://opendatacommunities.org/id/unitary-authority/bracknell-forest","Bracknell Forest Council","00MA","Older People (Aged 65 or Over)","Day Care","Day centre Placements-Elderly","Contracted Services",10/01/2013 00:00:00,"30209708",85,"AGE CONCERN BRACKNELL FOREST"
"Bracknell Forest Council","http://opendatacommunities.org/id/unitary-authority/bracknell-forest","Bracknell Forest Council","00MA","Older People (Aged 65 or Over)","Day Care","Day centre Placements-Elderly","Contracted Services",10/01/2013 00:00:00,"30209708",59.5,"AGE CONCERN BRACKNELL FOREST"
"Bracknell Forest Council","http://opendatacommunities.org/id/unitary-authority/bracknell-forest","Bracknell Forest Council","00MA","Older People (Aged 65 or Over)","Day Care","Day centre Placements-Elderly","Contracted Services",10/01/2013 00:00:00,"30209708",68,"AGE CONCERN BRACKNELL FOREST"
"Bracknell Forest Council","http://opendatacommunities.org/id/unitary-authority/bracknell-forest","Bracknell Forest Council","00MA","Older People (Aged 65 or Over)","Day Care","Day centre Placements-Elderly","Contracted Services",10/01/2013 00:00:00,"30209708",51,"AGE CONCERN BRACKNELL FOREST"
"Bracknell Forest Council","http://opendatacommunities.org/id/unitary-authority/bracknell-forest","Bracknell Forest Council","00MA","Older People (Aged 65 or Over)","Day Care","Day centre Placements-Elderly","Contracted Services",10/01/2013 00:00:00,"30209708",68,"AGE CONCERN BRACKNELL FOREST"
"Bracknell Forest Council","http://opendatacommunities.org/id/unitary-authority/bracknell-forest","Bracknell Forest Council","00MA","Older People (Aged 65 or Over)","Day Care","Day centre Placements-Elderly","Contracted Services",10/01/2013 00:00:00,"30209708",85,"AGE CONCERN BRACKNELL FOREST"
"Bracknell Forest Council","http://opendatacommunities.org/id/unitary-authority/bracknell-forest","Bracknell Forest Council","00MA","Older People (Aged 65 or Over)","Day Care","Day centre Placements-Elderly","Contracted Services",10/01/2013 00:00:00,"30209708",102,"AGE CONCERN BRACKNELL FOREST"
"Bracknell Forest Council","http://opendatacommunities.org/id/unitary-authority/bracknell-forest","Bracknell Forest Council","00MA","Older People (Aged 65 or Over)","Day Care","Day centre Placements-Elderly","Contracted Services",10/01/2013 00:00:00,"30209708",68,"AGE CONCERN BRACKNELL FOREST"
"Bracknell Forest Council","http://opendatacommunities.org/id/unitary-authority/bracknell-forest","Bracknell Forest Council","00MA","Other Adult Services","Other Adult Services","Public Health Transition","Consultants Fees",24/12/2012 00:00:00,"6505890",3000,"AGILENT CONSULTING LIMITED"
"Bracknell Forest Council","http://opendatacommunities.org/id/unitary-authority/bracknell-forest","Bracknell Forest Council","00MA","Other Adult Services","Other Adult Services","Public Health Transition","Consultants Fees",08/01/2013 00:00:00,"6506006",650,"AGILENT CONSULTING LIMITED"
"Bracknell Forest Council","http://opendatacommunities.org/id/unitary-authority/bracknell-forest","Bracknell Forest Council","00MA","Recreation, Sports and Leisure","Indoor Sports & Recreation Facilities","Leisure DSO - Leisure Centre Maintenance","Swimming Pool Chemicals",29/11/2012 00:00:00,"6505018",2414.18,"AIR PRODUCTS PLC"
"Bracknell Forest Council","http://opendatacommunities.org/id/unitary-authority/bracknell-forest","Bracknell Forest Council","00MA","Mental Health Needs (Under 65)","Residential Care Home Placements","Residential Placements-Mental Illness","Contracted Services",15/01/2013 00:00:00,"30209987",1253.56,"ALDWICK RESIDENTIAL CARE HOME"
"Bracknell Forest Council","http://opendatacommunities.org/id/unitary-authority/bracknell-forest","Bracknell Forest Council","00MA","Children's and Young People's Safety","Local safeguarding children board","Safeguarding Childrens Board","Consultants Fees",15/01/2013 00:00:00,"6507441",3750,"ALEX WALTERS CONSULTANCY LTD"
"Bracknell Forest Council","http://opendatacommunities.org/id/unitary-authority/bracknell-forest","Bracknell Forest Council","00MA","Traffic Management & Road Safety","Traffic Management","Traffic Management","Contracted Services",18/01/2013 00:00:00,"6507467",842.56,"ALEXANDER ADVERTISING(INT)LTD"
"Bracknell Forest Council","http://opendatacommunities.org/id/unitary-authority/bracknell-forest","Bracknell Forest Council","00MA","Traffic Management & Road Safety","Traffic Management","Traffic Management","Contracted Services",25/01/2013 00:00:00,"6507680",609.06,"ALEXANDER ADVERTISING(INT)LTD"
"Bracknell Forest Council","http://opendatacommunities.org/id/unitary-authority/bracknell-forest","Bracknell Forest Council","00MA","Business Support","Premises Development","Easthampstead Park Conference Centre","Cleaning materials",23/10/2012 00:00:00,"6506091",1903.44,"ALLIANCE DISPOSABLES LTD"
"Bracknell Forest Council","http://opendatacommunities.org/id/unitary-authority/bracknell-forest","Bracknell Forest Council","00MA","Business Support","Premises Development","Easthampstead Park Centre - Catering","Cost of Goods Sold",18/01/2013 00:00:00,"6507021",1130.55,"ALLIANCE DISPOSABLES LTD"
"Bracknell Forest Council","http://opendatacommunities.org/id/unitary-authority/bracknell-forest","Bracknell Forest Council","00MA","Vehicles &  Plant","Vehicles and Plant Summary Account","Fuel Card Holding Account","Petrol",31/12/2012 00:00:00,"6505626",6062.89,"ALLSTAR BUSINESS SOLUTIONS LTD"
"Bracknell Forest Council","http://opendatacommunities.org/id/unitary-authority/bracknell-forest","Bracknell Forest Council","00MA","Children Looked After","Leaving care support services","QP - Care Leavers","Contracted Services",02/01/2013 00:00:00,"6506019",1302,"ALMA SUPPORTED LODGINGS"
"Bracknell Forest Council","http://opendatacommunities.org/id/unitary-authority/bracknell-forest","Bracknell Forest Council","00MA","Vehicles &  Plant","Vehicles and Plant Summary Account","Vehicles and Plant","Operating Lease Charge",01/01/2013 00:00:00,"6506851",534.99,"ALPHABET (GB) LTD"
"Bracknell Forest Council","http://opendatacommunities.org/id/unitary-authority/bracknell-forest","Bracknell Forest Council","00MA","Primary Schools","Delegated Primary School Budgets","St Margaret Clitherow - Catholic Primary","Gas",01/02/2013 00:00:00,"30211062",-441.55,"CORONA ENERGY RETAIL 4 LTD"
"Bracknell Forest Council","http://opendatacommunities.org/id/unitary-authority/bracknell-forest","Bracknell Forest Council","00MA","Primary Schools","Delegated Primary School Budgets","The Pines School","Gas",01/02/2013 00:00:00,"30211062",530.04,"CORONA ENERGY RETAIL 4 LTD"
"Bracknell Forest Council","http://opendatacommunities.org/id/unitary-authority/bracknell-forest","Bracknell Forest Council","00MA","Primary Schools","Delegated Primary School Budgets","Owlsmoor - Primary","Gas",01/02/2013 00:00:00,"30211062",992.84,"CORONA ENERGY RETAIL 4 LTD"
"Bracknell Forest Council","http://opendatacommunities.org/id/unitary-authority/bracknell-forest","Bracknell Forest Council","00MA","Primary Schools","Delegated Primary School Budgets","Harmans Water - Primary","Gas",01/02/2013 00:00:00,"30211062",253.18,"CORONA ENERGY RETAIL 4 LTD"
"Bracknell Forest Council","http://opendatacommunities.org/id/unitary-authority/bracknell-forest","Bracknell Forest Council","00MA","Culture and Heritage","Heritage Museums & Galleries","The Look Out","Gas",01/02/2013 00:00:00,"30211062",998.55,"CORONA ENERGY RETAIL 4 LTD"
"Bracknell Forest Council","http://opendatacommunities.org/id/unitary-authority/bracknell-forest","Bracknell Forest Council","00MA","Business Support","Premises Development","Great Hollands Shops","Gas",01/02/2013 00:00:00,"30211062",20.15,"CORONA ENERGY RETAIL 4 LTD"
"Bracknell Forest Council","http://opendatacommunities.org/id/unitary-authority/bracknell-forest","Bracknell Forest Council","00MA","Secondary Schools","Delegated Secondary Schools Budgets","Garth Hill - Secondary","Gas",01/02/2013 00:00:00,"30211062",3468.76,"CORONA ENERGY RETAIL 4 LTD"
"Bracknell Forest Council","http://opendatacommunities.org/id/unitary-authority/bracknell-forest","Bracknell Forest Council","00MA","Secondary Schools","Centrally Managed Expenditure - Secondary","College Hall PRU","Gas",01/02/2013 00:00:00,"30211062",252.68,"CORONA ENERGY RETAIL 4 LTD"
"Bracknell Forest Council","http://opendatacommunities.org/id/unitary-authority/bracknell-forest","Bracknell Forest Council","00MA","Services to Young People","Adult and Community Learning","Open Learning Centre - Brakenhale","Gas",01/02/2013 00:00:00,"30211062",796.35,"CORONA ENERGY RETAIL 4 LTD"
"Bracknell Forest Council","http://opendatacommunities.org/id/unitary-authority/bracknell-forest","Bracknell Forest Council","00MA","Primary Schools","Delegated Primary School Budgets","College Town - Infant & Nursery","Gas",01/02/2013 00:00:00,"30211062",750.16,"CORONA ENERGY RETAIL 4 LTD"
"Bracknell Forest Council","http://opendatacommunities.org/id/unitary-authority/bracknell-forest","Bracknell Forest Council","00MA","Older People (Aged 65 or Over)","Residential Care Home Placements","Heathlands EPH","Gas",01/02/2013 00:00:00,"30211062",-911.21,"CORONA ENERGY RETAIL 4 LTD"
"Bracknell Forest Council","http://opendatacommunities.org/id/unitary-authority/bracknell-forest","Bracknell Forest Council","00MA","Older People (Aged 65 or Over)","Residential Care Home Placements","Heathlands EPH","Gas",01/02/2013 00:00:00,"30211062",1202.09,"CORONA ENERGY RETAIL 4 LTD"
"Bracknell Forest Council","http://opendatacommunities.org/id/unitary-authority/bracknell-forest","Bracknell Forest Council","00MA","Older People (Aged 65 or Over)","Residential Care Home Placements","Heathlands EPH","Gas",01/02/2013 00:00:00,"30211062",-1274.86,"CORONA ENERGY RETAIL 4 LTD"
"Bracknell Forest Council","http://opendatacommunities.org/id/unitary-authority/bracknell-forest","Bracknell Forest Council","00MA","Older People (Aged 65 or Over)","Residential Care Home Placements","Heathlands EPH","Gas",01/02/2013 00:00:00,"30211062",630.69,"CORONA ENERGY RETAIL 4 LTD"
"Bracknell Forest Council","http://opendatacommunities.org/id/unitary-authority/bracknell-forest","Bracknell Forest Council","00MA","Older People (Aged 65 or Over)","Residential Care Home Placements","Heathlands EPH","Gas",01/02/2013 00:00:00,"30211062",-662.63,"CORONA ENERGY RETAIL 4 LTD"
"Bracknell Forest Council","http://opendatacommunities.org/id/unitary-authority/bracknell-forest","Bracknell Forest Council","00MA","Older People (Aged 65 or Over)","Residential Care Home Placements","Respite EMI","Contracted Services",10/01/2013 00:00:00,"30209708",1971.76,"AMBERBROOK MANAGEMENT LTD"
"Bracknell Forest Council","http://opendatacommunities.org/id/unitary-authority/bracknell-forest","Bracknell Forest Council","00MA","Older People (Aged 65 or Over)","Residential Care Home Placements","Respite EMI","Contracted Services",10/01/2013 00:00:00,"30209708",1901.34,"AMBERBROOK MANAGEMENT LTD"
"Bracknell Forest Council","http://opendatacommunities.org/id/unitary-authority/bracknell-forest","Bracknell Forest Council","00MA","Older People (Aged 65 or Over)","Nursing Home Placements","Nursing EMI Placements - Elderly","Contracted Services",15/01/2013 00:00:00,"30209987",2704.64,"AMBERBROOK MANAGEMENT LTD"
"Bracknell Forest Council","http://opendatacommunities.org/id/unitary-authority/bracknell-forest","Bracknell Forest Council","00MA","Older People (Aged 65 or Over)","Nursing Home Placements","Nursing Home Placements-Elderly","Contracted Services",15/01/2013 00:00:00,"30209987",2417.44,"AMBERBROOK MANAGEMENT LTD"
"Bracknell Forest Council","http://opendatacommunities.org/id/unitary-authority/bracknell-forest","Bracknell Forest Council","00MA","Older People (Aged 65 or Over)","Nursing Home Placements","Nursing EMI Placements - Elderly","Contracted Services",15/01/2013 00:00:00,"30209987",2358.48,"AMBERBROOK MANAGEMENT LTD"
"Bracknell Forest Council","http://opendatacommunities.org/id/unitary-authority/bracknell-forest","Bracknell Forest Council","00MA","Older People (Aged 65 or Over)","Nursing Home Placements","Nursing EMI Placements - Elderly","Contracted Services",15/01/2013 00:00:00,"30209987",1787.47,"AMBERBROOK MANAGEMENT LTD"
"Bracknell Forest Council","http://opendatacommunities.org/id/unitary-authority/bracknell-forest","Bracknell Forest Council","00MA","Older People (Aged 65 or Over)","Nursing Home Placements","Nursing EMI Placements - Elderly","Contracted Services",15/01/2013 00:00:00,"30209987",5122.08,"AMBERBROOK MANAGEMENT LTD"
"Bracknell Forest Council","http://opendatacommunities.org/id/unitary-authority/bracknell-forest","Bracknell Forest Council","00MA","Older People (Aged 65 or Over)","Nursing Home Placements","Nursing Home Placements-Elderly","Contracted Services",15/01/2013 00:00:00,"30209987",2460,"AMBERBROOK MANAGEMENT LTD"
"Bracknell Forest Council","http://opendatacommunities.org/id/unitary-authority/bracknell-forest","Bracknell Forest Council","00MA","Older People (Aged 65 or Over)","Nursing Home Placements","Nursing Home Placements-Elderly","Contracted Services",15/01/2013 00:00:00,"30209987",2417.44,"AMBERBROOK MANAGEMENT LTD"
"Bracknell Forest Council","http://opendatacommunities.org/id/unitary-authority/bracknell-forest","Bracknell Forest Council","00MA","Older People (Aged 65 or Over)","Nursing Home Placements","Nursing Home Placements-Elderly","Contracted Services",15/01/2013 00:00:00,"30209987",172.67,"AMBERBROOK MANAGEMENT LTD"
"Bracknell Forest Council","http://opendatacommunities.org/id/unitary-authority/bracknell-forest","Bracknell Forest Council","00MA","Older People (Aged 65 or Over)","Nursing Home Placements","Nursing EMI Placements - Elderly","Contracted Services",15/01/2013 00:00:00,"30209987",2417.44,"AMBERBROOK MANAGEMENT LTD"
"Bracknell Forest Council","http://opendatacommunities.org/id/unitary-authority/bracknell-forest","Bracknell Forest Council","00MA","Older People (Aged 65 or Over)","Residential Care Home Placements","Residential Placements-Elderly","Contracted Services",15/01/2013 00:00:00,"30209987",1741.6,"AMBERBROOK MANAGEMENT LTD"
"Bracknell Forest Council","http://opendatacommunities.org/id/unitary-authority/bracknell-forest","Bracknell Forest Council","00MA","Older People (Aged 65 or Over)","Nursing Home Placements","Nursing Home Placements-Elderly","Contracted Services",15/01/2013 00:00:00,"30209987",2417.44,"AMBERBROOK MANAGEMENT LTD"
"Bracknell Forest Council","http://opendatacommunities.org/id/unitary-authority/bracknell-forest","Bracknell Forest Council","00MA","Older People (Aged 65 or Over)","Residential Care Home Placements","Residential EMI Placements - Elderly","Contracted Services",15/01/2013 00:00:00,"30209987",1971.76,"AMBERBROOK MANAGEMENT LTD"
"Bracknell Forest Council","http://opendatacommunities.org/id/unitary-authority/bracknell-forest","Bracknell Forest Council","00MA","Older People (Aged 65 or Over)","Residential Care Home Placements","Residential EMI Placements - Elderly","Contracted Services",15/01/2013 00:00:00,"30209987",1971.76,"AMBERBROOK MANAGEMENT LTD"
"Bracknell Forest Council","http://opendatacommunities.org/id/unitary-authority/bracknell-forest","Bracknell Forest Council","00MA","Older People (Aged 65 or Over)","Residential Care Home Placements","Residential EMI Placements - Elderly","Contracted Services",15/01/2013 00:00:00,"30209987",1971.76,"AMBERBROOK MANAGEMENT LTD"
"Bracknell Forest Council","http://opendatacommunities.org/id/unitary-authority/bracknell-forest","Bracknell Forest Council","00MA","Older People (Aged 65 or Over)","Residential Care Home Placements","Residential EMI Placements - Elderly","Contracted Services",15/01/2013 00:00:00,"30209987",1971.76,"AMBERBROOK MANAGEMENT LTD"
"Bracknell Forest Council","http://opendatacommunities.org/id/unitary-authority/bracknell-forest","Bracknell Forest Council","00MA","Older People (Aged 65 or Over)","Nursing Home Placements","Nursing EMI Placements - Elderly","Contracted Services",29/01/2013 00:00:00,"30210785",820.57,"AMBERBROOK MANAGEMENT LTD"
"Bracknell Forest Council","http://opendatacommunities.org/id/unitary-authority/bracknell-forest","Bracknell Forest Council","00MA","Older People (Aged 65 or Over)","Nursing Home Placements","Nursing Home Placements-Elderly","Contracted Services",29/01/2013 00:00:00,"30210785",1813.08,"AMBERBROOK MANAGEMENT LTD"
"Bracknell Forest Council","http://opendatacommunities.org/id/unitary-authority/bracknell-forest","Bracknell Forest Council","00MA","Older People (Aged 65 or Over)","Nursing Home Placements","Nursing Home Placements-Elderly","Contracted Services",31/01/2013 00:00:00,"30210947",345.35,"AMBERBROOK MANAGEMENT LTD"
"Bracknell Forest Council","http://opendatacommunities.org/id/unitary-authority/bracknell-forest","Bracknell Forest Council","00MA","Mental Health Needs (Under 65)","Nursing Home Placements","Nursing EMI PLacements Under 65","Contracted Services",31/01/2013 00:00:00,"30210947",2221.67,"AMBERBROOK MANAGEMENT LTD"
"Bracknell Forest Council","http://opendatacommunities.org/id/unitary-authority/bracknell-forest","Bracknell Forest Council","00MA","Learning Disability (under 65)","Residential Care Home Placements","Residential Placements-Lrng Disab","Contracted Services",15/01/2013 00:00:00,"30209987",8040,"AMBERWOOD LODGE"
"Bracknell Forest Council","http://opendatacommunities.org/id/unitary-authority/bracknell-forest","Bracknell Forest Council","00MA","Central Support Services - COF","Construction and Property","Time Square Office","Other Fees for Bought-in Services",15/01/2013 00:00:00,"6507435",1729.26,"AMBIUS"
"Bracknell Forest Council","http://opendatacommunities.org/id/unitary-authority/bracknell-forest","Bracknell Forest Council","00MA","Management and Support Services - CYPL","Strategy, Resources and Early Interventions","Recruitment Expenses","Staff Advertising",21/12/2012 00:00:00,"6507052",2062,"AMBLEGLOW LTD"
"Bracknell Forest Council","http://opendatacommunities.org/id/unitary-authority/bracknell-forest","Bracknell Forest Council","00MA","Service Management & Support Services","Service Management & Support Services","Departmental Personnel","Staff Advertising",11/12/2012 00:00:00,"6507261",738.5,"AMBLEGLOW LTD"
"Bracknell Forest Council","http://opendatacommunities.org/id/unitary-authority/bracknell-forest","Bracknell Forest Council","00MA","Family Support Services","Other family support services","C&F Section 17 Over 11's Team","Other Support to Clients",22/12/2012 00:00:00,"6505708",990,"AMEGREEN CHILDRENS SERVICES"
"Bracknell Forest Council","http://opendatacommunities.org/id/unitary-authority/bracknell-forest","Bracknell Forest Council","00MA","Family Support Services","Other family support services","C&F Section 17 Over 11's Team","Other Support to Clients",22/12/2012 00:00:00,"6505709",2840,"AMEGREEN CHILDRENS SERVICES"
"Bracknell Forest Council","http://opendatacommunities.org/id/unitary-authority/bracknell-forest","Bracknell Forest Council","00MA","Other Children's & Families Services","Vacancy Factor - Other Children and Families","YPSM Young Peoples Involvement","Training Costs",21/01/2013 00:00:00,"6507137",620.4,"AMETHYST RESOURCE CENTRE FOR ALCOHOL AND DRUG EDUCATION"
"Bracknell Forest Council","http://opendatacommunities.org/id/unitary-authority/bracknell-forest","Bracknell Forest Council","00MA","Service Management & Support Services","Service Management & Support Services","Departmental Office Services","Furniture - Purchase",16/01/2013 00:00:00,"6507391",780,"AMG OFFICE FURNITURE LIMITED"
"Bracknell Forest Council","http://opendatacommunities.org/id/unitary-authority/bracknell-forest","Bracknell Forest Council","00MA","Commissioning and Social Work","Commissioning and Social Work","Family Placement","Agency",11/01/2013 00:00:00,"6506376",2067.9,"AMMONITE PSYCHOTHERAPY LIMITED"
"Bracknell Forest Council","http://opendatacommunities.org/id/unitary-authority/bracknell-forest","Bracknell Forest Council","00MA","Older People (Aged 65 or Over)","Residential Care Home Placements","Residential Placements-Elderly","Contracted Services",15/01/2013 00:00:00,"30209987",1698.4,"ANCHOR TRUST"
"Bracknell Forest Council","http://opendatacommunities.org/id/unitary-authority/bracknell-forest","Bracknell Forest Council","00MA","Culture and Heritage","Heritage Museums & Galleries","The Look Out","Minor Improvement Schemes",28/01/2013 00:00:00,"6507677",1200,"APLAY LIMITED"
"Bracknell Forest Council","http://opendatacommunities.org/id/unitary-authority/bracknell-forest","Bracknell Forest Council","00MA","Central Support Services - COF","Policy Unit","External Communications","Photography",28/12/2012 00:00:00,"6505876",2777,"ARCHIMAGE"
"Bracknell Forest Council","http://opendatacommunities.org/id/unitary-authority/bracknell-forest","Bracknell Forest Council","00MA","Regulatory Services","Animal & Public Health","Dog Control","Equipment - Purchase",17/12/2012 00:00:00,"6504911",512.95,"ARCO  LIMITED"
"Bracknell Forest Council","http://opendatacommunities.org/id/unitary-authority/bracknell-forest","Bracknell Forest Council","00MA","Services to Young People","Other Services to Young People","Sandhurst Youth Centre","Equipment - Purchase",16/12/2012 00:00:00,"6504139",1669.94,"ARGOS BUSINESS SOLUTIONS"
"Bracknell Forest Council","http://opendatacommunities.org/id/unitary-authority/bracknell-forest","Bracknell Forest Council","00MA","Physical Disability/Sensory Impairment","Nursing Home Placements","Nursing Home Placements-Physical Disabty","Contracted Services",15/01/2013 00:00:00,"30209987",4352.56,"ASCOT NURSING HOME LTD"
"Bracknell Forest Council","http://opendatacommunities.org/id/unitary-authority/bracknell-forest","Bracknell Forest Council","00MA","Mental Health Needs (Under 65)","Nursing Home Placements","Nursing Home Placements-Mental Illness","Contracted Services",15/01/2013 00:00:00,"30209987",2562.52,"ASCOT NURSING HOME LTD"
"Bracknell Forest Council","http://opendatacommunities.org/id/unitary-authority/bracknell-forest","Bracknell Forest Council","00MA","Older People (Aged 65 or Over)","Nursing Home Placements","Nursing Home Placements MH 65 and Over","Contracted Services",15/01/2013 00:00:00,"30209987",4159.44,"ASCOT NURSING HOME LTD"
"Bracknell Forest Council","http://opendatacommunities.org/id/unitary-authority/bracknell-forest","Bracknell Forest Council","00MA","Older People (Aged 65 or Over)","Nursing Home Placements","Nursing EMI Placements - Elderly","Contracted Services",15/01/2013 00:00:00,"30209987",2704.64,"ASCOT RESIDENTIAL HOMES LTD"
"Bracknell Forest Council","http://opendatacommunities.org/id/unitary-authority/bracknell-forest","Bracknell Forest Council","00MA","Older People (Aged 65 or Over)","Nursing Home Placements","Nursing Home Placements-Elderly","Contracted Services",15/01/2013 00:00:00,"30209987",2417.44,"ASCOT RESIDENTIAL HOMES LTD"
"Bracknell Forest Council","http://opendatacommunities.org/id/unitary-authority/bracknell-forest","Bracknell Forest Council","00MA","Older People (Aged 65 or Over)","Nursing Home Placements","Nursing Home Placements-Elderly","Contracted Services",15/01/2013 00:00:00,"30209987",2417.44,"ASCOT RESIDENTIAL HOMES LTD"
"Bracknell Forest Council","http://opendatacommunities.org/id/unitary-authority/bracknell-forest","Bracknell Forest Council","00MA","Older People (Aged 65 or Over)","Nursing Home Placements","Nursing Home Placements-Elderly","Contracted Services",15/01/2013 00:00:00,"30209987",2417.44,"ASCOT RESIDENTIAL HOMES LTD"
"Bracknell Forest Council","http://opendatacommunities.org/id/unitary-authority/bracknell-forest","Bracknell Forest Council","00MA","Older People (Aged 65 or Over)","Residential Care Home Placements","Residential EMI Placements - Elderly","Contracted Services",15/01/2013 00:00:00,"30209987",4395.13,"ASCOT RESIDENTIAL HOMES LTD"
"Bracknell Forest Council","http://opendatacommunities.org/id/unitary-authority/bracknell-forest","Bracknell Forest Council","00MA","Older People (Aged 65 or Over)","Residential Care Home Placements","Residential EMI Placements - Elderly","Contracted Services",15/01/2013 00:00:00,"30209987",1971.76,"ASCOT RESIDENTIAL HOMES LTD"
"Bracknell Forest Council","http://opendatacommunities.org/id/unitary-authority/bracknell-forest","Bracknell Forest Council","00MA","Management and Support Services - CYPL","Holding Codes - net nil","Education Library Service - Resources","Audio/Visual materials",12/12/2012 00:00:00,"6505833",807.28,"ASKEWS & HOLTS LIBRARY SERVICE"
"Bracknell Forest Council","http://opendatacommunities.org/id/unitary-authority/bracknell-forest","Bracknell Forest Council","00MA","Management and Support Services - CYPL","Holding Codes - net nil","Education Library Service - Resources","Audio/Visual materials",12/12/2012 00:00:00,"6505836",812.56,"ASKEWS & HOLTS LIBRARY SERVICE"
"Bracknell Forest Council","http://opendatacommunities.org/id/unitary-authority/bracknell-forest","Bracknell Forest Council","00MA","Libraries","Stock Ordering, Cataloguing & Distribution","Library Book Fund","Audio/Visual materials",07/01/2013 00:00:00,"6506137",732.77,"ASKEWS & HOLTS LIBRARY SERVICE"
"Bracknell Forest Council","http://opendatacommunities.org/id/unitary-authority/bracknell-forest","Bracknell Forest Council","00MA","Libraries","Stock Ordering, Cataloguing & Distribution","Library Book Fund","Audio/Visual materials",07/01/2013 00:00:00,"6506137",524.15,"ASKEWS & HOLTS LIBRARY SERVICE"
"Bracknell Forest Council","http://opendatacommunities.org/id/unitary-authority/bracknell-forest","Bracknell Forest Council","00MA","Management and Support Services - CYPL","Holding Codes - net nil","Education Library Service - Resources","Audio/Visual materials",19/12/2012 00:00:00,"6506203",956.25,"ASKEWS & HOLTS LIBRARY SERVICE"
"Bracknell Forest Council","http://opendatacommunities.org/id/unitary-authority/bracknell-forest","Bracknell Forest Council","00MA","Management and Support Services - CYPL","Holding Codes - net nil","Education Library Service - Resources","Audio/Visual materials",19/12/2012 00:00:00,"6506207",544.76,"ASKEWS & HOLTS LIBRARY SERVICE"
"Bracknell Forest Council","http://opendatacommunities.org/id/unitary-authority/bracknell-forest","Bracknell Forest Council","00MA","Management and Support Services - CYPL","Holding Codes - net nil","Education Library Service - Resources","Audio/Visual materials",19/12/2012 00:00:00,"6506208",750.05,"ASKEWS & HOLTS LIBRARY SERVICE"
"Bracknell Forest Council","http://opendatacommunities.org/id/unitary-authority/bracknell-forest","Bracknell Forest Council","00MA","Management and Support Services - CYPL","Holding Codes - net nil","Education Library Service - Resources","Audio/Visual materials",09/01/2013 00:00:00,"6507023",755.9,"ASKEWS & HOLTS LIBRARY SERVICE"
"Bracknell Forest Council","http://opendatacommunities.org/id/unitary-authority/bracknell-forest","Bracknell Forest Council","00MA","Libraries","Stock Ordering, Cataloguing & Distribution","Library Book Fund","Audio/Visual materials",14/01/2013 00:00:00,"6507024",523.35,"ASKEWS & HOLTS LIBRARY SERVICE"
"Bracknell Forest Council","http://opendatacommunities.org/id/unitary-authority/bracknell-forest","Bracknell Forest Council","00MA","Libraries","Stock Ordering, Cataloguing & Distribution","Library Book Fund","Audio/Visual materials",14/01/2013 00:00:00,"6507024",1297.21,"ASKEWS & HOLTS LIBRARY SERVICE"
"Bracknell Forest Council","http://opendatacommunities.org/id/unitary-authority/bracknell-forest","Bracknell Forest Council","00MA","Management and Support Services - CYPL","Holding Codes - net nil","Education Library Service - Resources","Audio/Visual materials",09/01/2013 00:00:00,"6507444",676.46,"ASKEWS & HOLTS LIBRARY SERVICE"
"Bracknell Forest Council","http://opendatacommunities.org/id/unitary-authority/bracknell-forest","Bracknell Forest Council","00MA","Management and Support Services - CYPL","Holding Codes - net nil","Education Library Service - Resources","Audio/Visual materials",16/01/2013 00:00:00,"60010927",-807.28,"ASKEWS & HOLTS LIBRARY SERVICE"
"Bracknell Forest Council","http://opendatacommunities.org/id/unitary-authority/bracknell-forest","Bracknell Forest Council","00MA","","","Social Care","Other Equipment",24/12/2012 00:00:00,"6505068",880,"AST SERVICES"
"Bracknell Forest Council","http://opendatacommunities.org/id/unitary-authority/bracknell-forest","Bracknell Forest Council","00MA","Older People (Aged 65 or Over)","Equipment and Adaptations","Aids & Adaptations-Elderly","Equipment - Rental",24/12/2012 00:00:00,"6505071",580,"AST SERVICES"
"Bracknell Forest Council","http://opendatacommunities.org/id/unitary-authority/bracknell-forest","Bracknell Forest Council","00MA","Family Support Services","Equipment and adaptations","Disability Care Needs OT","Equipment - Purchase",21/12/2012 00:00:00,"6505006",6772,"ASTOR-BANNERMAN (MEDICAL) LTD"
"Bracknell Forest Council","http://opendatacommunities.org/id/unitary-authority/bracknell-forest","Bracknell Forest Council","00MA","Recreation, Sports and Leisure","Dual Use Centres","Sandhurst Sports Centre","Minor Improvement Schemes",28/12/2012 00:00:00,"6505261",1400,"ATHLETIC MARKINGS LTD"
"Bracknell Forest Council","http://opendatacommunities.org/id/unitary-authority/bracknell-forest","Bracknell Forest Council","00MA","Management and Support Services - CYPL","Unallocated Schools Budget Related Expenditure","Official Staff Absence","Teachers",14/01/2013 00:00:00,"6506593",3582.93,"ATL BERKSHIRE BRANCH"
"Bracknell Forest Council","http://opendatacommunities.org/id/unitary-authority/bracknell-forest","Bracknell Forest Council","00MA","Mental Health Needs (Under 65)","Other Services to Adults with a MH","Mental Health Grant","Other Support to Clients",19/12/2012 00:00:00,"6505067",713,"ATR REMOVALS"
"Bracknell Forest Council","http://opendatacommunities.org/id/unitary-authority/bracknell-forest","Bracknell Forest Council","00MA","Recreation, Sports and Leisure","Indoor Sports & Recreation Facilities","Leisure DSO - Leisure Centre","R&M - Service Contracts",31/12/2012 00:00:00,"6506900",2040,"AUDITORIA SERVICES LTD"
"Bracknell Forest Council","http://opendatacommunities.org/id/unitary-authority/bracknell-forest","Bracknell Forest Council","00MA","Learning Disability (under 65)","Residential Care Home Placements","Residential Placements-Lrng Disab","Contracted Services",15/01/2013 00:00:00,"30209987",5260.52,"AUTISM SPECIALISED CARE HOMES LTD"
"Bracknell Forest Council","http://opendatacommunities.org/id/unitary-authority/bracknell-forest","Bracknell Forest Council","00MA","Central Support Services - COF","Construction and Property","Easthampstead & Seymour House","Equipment - Purchase",21/12/2012 00:00:00,"6505090",1055,"AUTOBAR UK LIMITED"
"Bracknell Forest Council","http://opendatacommunities.org/id/unitary-authority/bracknell-forest","Bracknell Forest Council","00MA","Management and Support Services - CYPL","Strategy, Resources and Early Interventions","Reception & Office Services","Equipment - Purchase",15/01/2013 00:00:00,"6507399",950,"AUTOBAR UK LIMITED"
"Bracknell Forest Council","http://opendatacommunities.org/id/unitary-authority/bracknell-forest","Bracknell Forest Council","00MA","Vehicles &  Plant","Vehicles and Plant Summary Account","Vehicles and Plant","Operating Lease Charge",11/01/2013 00:00:00,"6506885",4978.49,"AUTOMOTIVE LEASING"
"Bracknell Forest Council","http://opendatacommunities.org/id/unitary-authority/bracknell-forest","Bracknell Forest Council","00MA","Learning Disability (under 65)","Residential Care Home Placements","Residential Placements-Lrng Disab","Contracted Services",15/01/2013 00:00:00,"30209987",6025.84,"AVON AUTISTIC FOUNDATION"
"Bracknell Forest Council","http://opendatacommunities.org/id/unitary-authority/bracknell-forest","Bracknell Forest Council","00MA","Central Support Services - COF","Information Technology","Technical  Services","Computer Consumables",30/11/2012 00:00:00,"6503117",14000,"AVR INTERNATIONAL LIMITED"
"Bracknell Forest Council","http://opendatacommunities.org/id/unitary-authority/bracknell-forest","Bracknell Forest Council","00MA","","","Secure e-mail","IT Software",30/11/2012 00:00:00,"6503117",41000,"AVR INTERNATIONAL LIMITED"
"Bracknell Forest Council","http://opendatacommunities.org/id/unitary-authority/bracknell-forest","Bracknell Forest Council","00MA","","","Secure e-mail","IT Hardware",31/12/2012 00:00:00,"6506179",3000,"AVR INTERNATIONAL LIMITED"
"Bracknell Forest Council","http://opendatacommunities.org/id/unitary-authority/bracknell-forest","Bracknell Forest Council","00MA","","","Holly Spring Infant and Junior","IT Hardware",16/07/2012 00:00:00,"6507651",1336,"AW AIR CON"
"Bracknell Forest Council","http://opendatacommunities.org/id/unitary-authority/bracknell-forest","Bracknell Forest Council","00MA","","","Balance Sheet","Flexible Benefits Control Account",30/01/2013 00:00:00,"6507789",847.9,"AW CYCLES"
"Bracknell Forest Council","http://opendatacommunities.org/id/unitary-authority/bracknell-forest","Bracknell Forest Council","00MA","Cemeteries, Crematoria & Mortuary Services","Cemeteries & Crematorium","Easthampstead Park Cemetery &Crematorium","Contract Cleaning",21/12/2012 00:00:00,"6505827",857,"BAC CLEANING SERVICES"
"Bracknell Forest Council","http://opendatacommunities.org/id/unitary-authority/bracknell-forest","Bracknell Forest Council","00MA","Cemeteries, Crematoria & Mortuary Services","Cemeteries & Crematorium","Easthampstead Park Cemetery &Crematorium","Contract Cleaning",21/01/2013 00:00:00,"6507627",857,"BAC CLEANING SERVICES"
"Bracknell Forest Council","http://opendatacommunities.org/id/unitary-authority/bracknell-forest","Bracknell Forest Council","00MA","Services to Young People","Other Services to Young People","Youth Service External Providers","Youth & Community Activities",25/01/2013 00:00:00,"6507663",8500,"BACYP"
"Bracknell Forest Council","http://opendatacommunities.org/id/unitary-authority/bracknell-forest","Bracknell Forest Council","00MA","Street Lighting (including Energy Costs)","Street Lighting","Lighting","Contracted Services",17/01/2013 00:00:00,"6506769",64810.6,"BALFOUR BEATTY INFRASTRUCTURE SERVICES"
"Bracknell Forest Council","http://opendatacommunities.org/id/unitary-authority/bracknell-forest","Bracknell Forest Council","00MA","Service Management & Support Services","Service Management & Support Services","Departmental Office Services","Office Stationery",28/01/2013 00:00:00,"30210705",2.34,"BANNER"
"Bracknell Forest Council","http://opendatacommunities.org/id/unitary-authority/bracknell-forest","Bracknell Forest Council","00MA","Service Management & Support Services","Service Management & Support Services","Departmental Office Services","Office Stationery",28/01/2013 00:00:00,"30210705",1.44,"BANNER"
"Bracknell Forest Council","http://opendatacommunities.org/id/unitary-authority/bracknell-forest","Bracknell Forest Council","00MA","Service Management & Support Services","Service Management & Support Services","Departmental Office Services","Office Stationery",28/01/2013 00:00:00,"30210705",2.09,"BANNER"
"Bracknell Forest Council","http://opendatacommunities.org/id/unitary-authority/bracknell-forest","Bracknell Forest Council","00MA","Service Management & Support Services","Service Management & Support Services","Departmental Office Services","Office Stationery",28/01/2013 00:00:00,"30210705",36.13,"BANNER"
"Bracknell Forest Council","http://opendatacommunities.org/id/unitary-authority/bracknell-forest","Bracknell Forest Council","00MA","Service Management & Support Services","Service Management & Support Services","Departmental Office Services","Office Stationery",28/01/2013 00:00:00,"30210705",17.23,"BANNER"
"Bracknell Forest Council","http://opendatacommunities.org/id/unitary-authority/bracknell-forest","Bracknell Forest Council","00MA","Service Management & Support Services","Service Management & Support Services","Departmental Office Services","Office Stationery",28/01/2013 00:00:00,"30210705",11.6,"BANNER"
"Bracknell Forest Council","http://opendatacommunities.org/id/unitary-authority/bracknell-forest","Bracknell Forest Council","00MA","Service Management & Support Services","Service Management & Support Services","Departmental Office Services","Office Stationery",28/01/2013 00:00:00,"30210705",4.73,"BANNER"
"Bracknell Forest Council","http://opendatacommunities.org/id/unitary-authority/bracknell-forest","Bracknell Forest Council","00MA","Physical Disability/Sensory Impairment","Assessment & Care Management","Older People & Long Term Conditions Team","Office Stationery",28/01/2013 00:00:00,"30210705",86,"BANNER"
"Bracknell Forest Council","http://opendatacommunities.org/id/unitary-authority/bracknell-forest","Bracknell Forest Council","00MA","Central Support Services - COF","Valuers","Property Services","Office Stationery",28/01/2013 00:00:00,"30210705",12.64,"BANNER"
"Bracknell Forest Council","http://opendatacommunities.org/id/unitary-authority/bracknell-forest","Bracknell Forest Council","00MA","Management and Support Services - CYPL","Holding Codes - net nil","Education Library Service","Office Stationery",28/01/2013 00:00:00,"30210705",27.26,"BANNER"
"Bracknell Forest Council","http://opendatacommunities.org/id/unitary-authority/bracknell-forest","Bracknell Forest Council","00MA","Management and Support Services - CYPL","Holding Codes - net nil","Education Library Service","Office Stationery",28/01/2013 00:00:00,"30210705",20.09,"BANNER"
"Bracknell Forest Council","http://opendatacommunities.org/id/unitary-authority/bracknell-forest","Bracknell Forest Council","00MA","Management and Support Services - CYPL","Holding Codes - net nil","Education Library Service","Office Stationery",28/01/2013 00:00:00,"30210705",16.73,"BANNER"
"Bracknell Forest Council","http://opendatacommunities.org/id/unitary-authority/bracknell-forest","Bracknell Forest Council","00MA","Management and Support Services - CYPL","Holding Codes - net nil","Education Library Service","Office Stationery",28/01/2013 00:00:00,"30210705",5.22,"BANNER"
"Bracknell Forest Council","http://opendatacommunities.org/id/unitary-authority/bracknell-forest","Bracknell Forest Council","00MA","Holding Accounts in Budget Book COF","Corporate Serv - Reprographics & Printing","Print Room","Office Stationery",28/01/2013 00:00:00,"30210705",0.72,"BANNER"
"Bracknell Forest Council","http://opendatacommunities.org/id/unitary-authority/bracknell-forest","Bracknell Forest Council","00MA","Holding Accounts in Budget Book COF","Corporate Serv - Reprographics & Printing","Print Room","Office Stationery",28/01/2013 00:00:00,"30210705",-15.58,"BANNER"
"Bracknell Forest Council","http://opendatacommunities.org/id/unitary-authority/bracknell-forest","Bracknell Forest Council","00MA","Holding Accounts in Budget Book COF","Corporate Serv - Reprographics & Printing","Print Room","Office Stationery",28/01/2013 00:00:00,"30210705",-16.55,"BANNER"
"Bracknell Forest Council","http://opendatacommunities.org/id/unitary-authority/bracknell-forest","Bracknell Forest Council","00MA","Registration Births, Deaths & Marriages","Registration births, deaths and marriages","Registration Marriages","Office Stationery",28/01/2013 00:00:00,"30210705",160.24,"BANNER"
"Bracknell Forest Council","http://opendatacommunities.org/id/unitary-authority/bracknell-forest","Bracknell Forest Council","00MA","Registration Births, Deaths & Marriages","Registration births, deaths and marriages","Registration Marriages","Office Stationery",28/01/2013 00:00:00,"30210705",24.16,"BANNER"
"Bracknell Forest Council","http://opendatacommunities.org/id/unitary-authority/bracknell-forest","Bracknell Forest Council","00MA","Registration Births, Deaths & Marriages","Registration births, deaths and marriages","Registration Marriages","Office Stationery",28/01/2013 00:00:00,"30210705",16.73,"BANNER"
"Bracknell Forest Council","http://opendatacommunities.org/id/unitary-authority/bracknell-forest","Bracknell Forest Council","00MA","Registration Births, Deaths & Marriages","Registration births, deaths and marriages","Registration Marriages","Office Stationery",28/01/2013 00:00:00,"30210705",8.97,"BANNER"
"Bracknell Forest Council","http://opendatacommunities.org/id/unitary-authority/bracknell-forest","Bracknell Forest Council","00MA","Registration Births, Deaths & Marriages","Registration births, deaths and marriages","Registration Marriages","Office Stationery",28/01/2013 00:00:00,"30210705",37.26,"BANNER"
"Bracknell Forest Council","http://opendatacommunities.org/id/unitary-authority/bracknell-forest","Bracknell Forest Council","00MA","Service Management & Support Services","Service Management & Support Services","Departmental Office Services","Office Stationery",28/01/2013 00:00:00,"30210705",2.45,"BANNER"
"Bracknell Forest Council","http://opendatacommunities.org/id/unitary-authority/bracknell-forest","Bracknell Forest Council","00MA","Service Management & Support Services","Service Management & Support Services","Departmental Office Services","Office Stationery",28/01/2013 00:00:00,"30210705",2.25,"BANNER"
"Bracknell Forest Council","http://opendatacommunities.org/id/unitary-authority/bracknell-forest","Bracknell Forest Council","00MA","Service Management & Support Services","Service Management & Support Services","Departmental Office Services","Office Stationery",28/01/2013 00:00:00,"30210705",1.17,"BANNER"
"Bracknell Forest Council","http://opendatacommunities.org/id/unitary-authority/bracknell-forest","Bracknell Forest Council","00MA","Service Management & Support Services","Service Management & Support Services","Departmental Office Services","Office Stationery",28/01/2013 00:00:00,"30210705",0.98,"BANNER"
"Bracknell Forest Council","http://opendatacommunities.org/id/unitary-authority/bracknell-forest","Bracknell Forest Council","00MA","Service Management & Support Services","Service Management & Support Services","Departmental Office Services","Office Stationery",28/01/2013 00:00:00,"30210705",0.61,"BANNER"
"Bracknell Forest Council","http://opendatacommunities.org/id/unitary-authority/bracknell-forest","Bracknell Forest Council","00MA","Service Management & Support Services","Service Management & Support Services","Departmental Office Services","Office Stationery",28/01/2013 00:00:00,"30210705",0.96,"BANNER"
"Bracknell Forest Council","http://opendatacommunities.org/id/unitary-authority/bracknell-forest","Bracknell Forest Council","00MA","Service Management & Support Services","Service Management & Support Services","Departmental Office Services","Office Stationery",28/01/2013 00:00:00,"30210705",45.38,"BANNER"
"Bracknell Forest Council","http://opendatacommunities.org/id/unitary-authority/bracknell-forest","Bracknell Forest Council","00MA","Service Management & Support Services","Service Management & Support Services","Departmental Office Services","Office Stationery",28/01/2013 00:00:00,"30210705",3.96,"BANNER"
"Bracknell Forest Council","http://opendatacommunities.org/id/unitary-authority/bracknell-forest","Bracknell Forest Council","00MA","Service Management & Support Services","Service Management & Support Services","Departmental Office Services","Office Stationery",28/01/2013 00:00:00,"30210705",1.78,"BANNER"
"Bracknell Forest Council","http://opendatacommunities.org/id/unitary-authority/bracknell-forest","Bracknell Forest Council","00MA","Service Management & Support Services","Service Management & Support Services","Departmental Office Services","Office Stationery",28/01/2013 00:00:00,"30210705",0.97,"BANNER"
"Bracknell Forest Council","http://opendatacommunities.org/id/unitary-authority/bracknell-forest","Bracknell Forest Council","00MA","Service Management & Support Services","Service Management & Support Services","Departmental Office Services","Office Stationery",28/01/2013 00:00:00,"30210705",1.04,"BANNER"
"Bracknell Forest Council","http://opendatacommunities.org/id/unitary-authority/bracknell-forest","Bracknell Forest Council","00MA","Service Management & Support Services","Service Management & Support Services","Departmental Office Services","Office Stationery",28/01/2013 00:00:00,"30210705",0.4,"BANNER"
"Bracknell Forest Council","http://opendatacommunities.org/id/unitary-authority/bracknell-forest","Bracknell Forest Council","00MA","Learning Disability (under 65)","Assessment & Care Management","Learning Disability Team","Office Stationery",28/01/2013 00:00:00,"30210705",56.26,"BANNER"
"Bracknell Forest Council","http://opendatacommunities.org/id/unitary-authority/bracknell-forest","Bracknell Forest Council","00MA","Learning Disability (under 65)","Assessment & Care Management","Learning Disability Team","Office Stationery",28/01/2013 00:00:00,"30210705",9.46,"BANNER"
"Bracknell Forest Council","http://opendatacommunities.org/id/unitary-authority/bracknell-forest","Bracknell Forest Council","00MA","Learning Disability (under 65)","Assessment & Care Management","Learning Disability Team","Office Stationery",28/01/2013 00:00:00,"30210705",6.44,"BANNER"
"Bracknell Forest Council","http://opendatacommunities.org/id/unitary-authority/bracknell-forest","Bracknell Forest Council","00MA","Learning Disability (under 65)","Assessment & Care Management","Learning Disability Team","Office Stationery",28/01/2013 00:00:00,"30210705",2.93,"BANNER"
"Bracknell Forest Council","http://opendatacommunities.org/id/unitary-authority/bracknell-forest","Bracknell Forest Council","00MA","Learning Disability (under 65)","Assessment & Care Management","Learning Disability Team","Office Stationery",28/01/2013 00:00:00,"30210705",0.71,"BANNER"
"Bracknell Forest Council","http://opendatacommunities.org/id/unitary-authority/bracknell-forest","Bracknell Forest Council","00MA","Central Support Services - COF","Personnel","Personnel Services","Office Stationery",28/01/2013 00:00:00,"30210705",22.15,"BANNER"
"Bracknell Forest Council","http://opendatacommunities.org/id/unitary-authority/bracknell-forest","Bracknell Forest Council","00MA","Central Support Services - COF","Finance","Finance Departmental Administration","Office Stationery",28/01/2013 00:00:00,"30210705",12.18,"BANNER"
"Bracknell Forest Council","http://opendatacommunities.org/id/unitary-authority/bracknell-forest","Bracknell Forest Council","00MA","Central Support Services - COF","Finance","Finance Departmental Administration","Office Stationery",28/01/2013 00:00:00,"30210705",10.2,"BANNER"
"Bracknell Forest Council","http://opendatacommunities.org/id/unitary-authority/bracknell-forest","Bracknell Forest Council","00MA","Central Support Services - COF","Finance","Finance Departmental Administration","Office Stationery",28/01/2013 00:00:00,"30210705",5.81,"BANNER"
"Bracknell Forest Council","http://opendatacommunities.org/id/unitary-authority/bracknell-forest","Bracknell Forest Council","00MA","Central Support Services - COF","Finance","Finance Departmental Administration","Office Stationery",28/01/2013 00:00:00,"30210705",4.23,"BANNER"
"Bracknell Forest Council","http://opendatacommunities.org/id/unitary-authority/bracknell-forest","Bracknell Forest Council","00MA","Central Support Services - COF","Finance","Finance Departmental Administration","Office Stationery",28/01/2013 00:00:00,"30210705",3.56,"BANNER"
"Bracknell Forest Council","http://opendatacommunities.org/id/unitary-authority/bracknell-forest","Bracknell Forest Council","00MA","Central Support Services - COF","Finance","Finance Departmental Administration","Office Stationery",28/01/2013 00:00:00,"30210705",3.08,"BANNER"
"Bracknell Forest Council","http://opendatacommunities.org/id/unitary-authority/bracknell-forest","Bracknell Forest Council","00MA","Learning Disability (under 65)","Assessment & Care Management","Learning Disability Team","Office Stationery",28/01/2013 00:00:00,"30210705",0.53,"BANNER"
"Bracknell Forest Council","http://opendatacommunities.org/id/unitary-authority/bracknell-forest","Bracknell Forest Council","00MA","Older People (Aged 65 or Over)","Residential Care Home Placements","Heathlands EPH","Office Stationery",28/01/2013 00:00:00,"30210705",8.44,"BANNER"
"Bracknell Forest Council","http://opendatacommunities.org/id/unitary-authority/bracknell-forest","Bracknell Forest Council","00MA","Service Management & Support Services","Service Management & Support Services","Departmental Office Services","Office Stationery",28/01/2013 00:00:00,"30210705",9.84,"BANNER"
"Bracknell Forest Council","http://opendatacommunities.org/id/unitary-authority/bracknell-forest","Bracknell Forest Council","00MA","Service Management & Support Services","Service Management & Support Services","Departmental Office Services","Office Stationery",28/01/2013 00:00:00,"30210705",8.46,"BANNER"
"Bracknell Forest Council","http://opendatacommunities.org/id/unitary-authority/bracknell-forest","Bracknell Forest Council","00MA","Service Management & Support Services","Service Management & Support Services","Departmental Office Services","Office Stationery",28/01/2013 00:00:00,"30210705",2.14,"BANNER"
"Bracknell Forest Council","http://opendatacommunities.org/id/unitary-authority/bracknell-forest","Bracknell Forest Council","00MA","Service Management & Support Services","Service Management & Support Services","Departmental Office Services","Office Stationery",28/01/2013 00:00:00,"30210705",1.22,"BANNER"
"Bracknell Forest Council","http://opendatacommunities.org/id/unitary-authority/bracknell-forest","Bracknell Forest Council","00MA","Service Management & Support Services","Service Management & Support Services","Departmental Office Services","Office Stationery",28/01/2013 00:00:00,"30210705",1.07,"BANNER"
"Bracknell Forest Council","http://opendatacommunities.org/id/unitary-authority/bracknell-forest","Bracknell Forest Council","00MA","Service Management & Support Services","Service Management & Support Services","Departmental Office Services","Office Stationery",28/01/2013 00:00:00,"30210705",4.16,"BANNER"
"Bracknell Forest Council","http://opendatacommunities.org/id/unitary-authority/bracknell-forest","Bracknell Forest Council","00MA","Service Management & Support Services","Service Management & Support Services","Departmental Office Services","Office Stationery",28/01/2013 00:00:00,"30210705",3.7,"BANNER"
"Bracknell Forest Council","http://opendatacommunities.org/id/unitary-authority/bracknell-forest","Bracknell Forest Council","00MA","Service Management & Support Services","Service Management & Support Services","Departmental Office Services","Office Stationery",28/01/2013 00:00:00,"30210705",3.24,"BANNER"
"Bracknell Forest Council","http://opendatacommunities.org/id/unitary-authority/bracknell-forest","Bracknell Forest Council","00MA","Service Management & Support Services","Service Management & Support Services","Departmental Office Services","Office Stationery",28/01/2013 00:00:00,"30210705",1.76,"BANNER"
"Bracknell Forest Council","http://opendatacommunities.org/id/unitary-authority/bracknell-forest","Bracknell Forest Council","00MA","Service Management & Support Services","Service Management & Support Services","Departmental Office Services","Office Stationery",28/01/2013 00:00:00,"30210705",1.12,"BANNER"
"Bracknell Forest Council","http://opendatacommunities.org/id/unitary-authority/bracknell-forest","Bracknell Forest Council","00MA","Service Management & Support Services","Service Management & Support Services","Departmental Office Services","Office Stationery",28/01/2013 00:00:00,"30210705",0.96,"BANNER"
"Bracknell Forest Council","http://opendatacommunities.org/id/unitary-authority/bracknell-forest","Bracknell Forest Council","00MA","Service Management & Support Services","Service Management & Support Services","Departmental Office Services","Office Stationery",28/01/2013 00:00:00,"30210705",159.28,"BANNER"
"Bracknell Forest Council","http://opendatacommunities.org/id/unitary-authority/bracknell-forest","Bracknell Forest Council","00MA","Management and Support Services - CYPL","Holding Codes - net nil","Education Library Service","Office Stationery",28/01/2013 00:00:00,"30210705",10.58,"BANNER"
"Bracknell Forest Council","http://opendatacommunities.org/id/unitary-authority/bracknell-forest","Bracknell Forest Council","00MA","Management and Support Services - CYPL","Holding Codes - net nil","Education Library Service","Office Stationery",28/01/2013 00:00:00,"30210705",1.49,"BANNER"
"Bracknell Forest Council","http://opendatacommunities.org/id/unitary-authority/bracknell-forest","Bracknell Forest Council","00MA","Corporate Management COF","Corporate Management COF","Chief Executive & Support","Office Stationery",28/01/2013 00:00:00,"30210705",16.49,"BANNER"
"Bracknell Forest Council","http://opendatacommunities.org/id/unitary-authority/bracknell-forest","Bracknell Forest Council","00MA","Corporate Management COF","Corporate Management COF","Chief Executive & Support","Office Stationery",28/01/2013 00:00:00,"30210705",2.08,"BANNER"
"Bracknell Forest Council","http://opendatacommunities.org/id/unitary-authority/bracknell-forest","Bracknell Forest Council","00MA","Corporate Management COF","Corporate Management COF","Chief Executive & Support","Office Stationery",28/01/2013 00:00:00,"30210705",8.64,"BANNER"
"Bracknell Forest Council","http://opendatacommunities.org/id/unitary-authority/bracknell-forest","Bracknell Forest Council","00MA","Corporate Management COF","Corporate Management COF","Chief Executive & Support","Office Stationery",28/01/2013 00:00:00,"30210705",1.12,"BANNER"
"Bracknell Forest Council","http://opendatacommunities.org/id/unitary-authority/bracknell-forest","Bracknell Forest Council","00MA","Corporate Management COF","Corporate Management COF","Chief Executive & Support","Office Stationery",28/01/2013 00:00:00,"30210705",0.99,"BANNER"
"Bracknell Forest Council","http://opendatacommunities.org/id/unitary-authority/bracknell-forest","Bracknell Forest Council","00MA","Service Management & Support Services","Service Management & Support Services","Departmental Office Services","Office Stationery",28/01/2013 00:00:00,"30210705",36.24,"BANNER"
"Bracknell Forest Council","http://opendatacommunities.org/id/unitary-authority/bracknell-forest","Bracknell Forest Council","00MA","Service Management & Support Services","Service Management & Support Services","Departmental Office Services","Office Stationery",28/01/2013 00:00:00,"30210705",7.47,"BANNER"
"Bracknell Forest Council","http://opendatacommunities.org/id/unitary-authority/bracknell-forest","Bracknell Forest Council","00MA","Service Management & Support Services","Service Management & Support Services","Departmental Office Services","Office Stationery",28/01/2013 00:00:00,"30210705",0.62,"BANNER"
"Bracknell Forest Council","http://opendatacommunities.org/id/unitary-authority/bracknell-forest","Bracknell Forest Council","00MA","Service Management & Support Services","Service Management & Support Services","Departmental Office Services","Office Stationery",28/01/2013 00:00:00,"30210705",0.35,"BANNER"
"Bracknell Forest Council","http://opendatacommunities.org/id/unitary-authority/bracknell-forest","Bracknell Forest Council","00MA","Older People (Aged 65 or Over)","Residential Care Home Placements","Heathlands EPH","Office Stationery",28/01/2013 00:00:00,"30210705",3.99,"BANNER"
"Bracknell Forest Council","http://opendatacommunities.org/id/unitary-authority/bracknell-forest","Bracknell Forest Council","00MA","Older People (Aged 65 or Over)","Residential Care Home Placements","Heathlands EPH","Office Stationery",28/01/2013 00:00:00,"30210705",1.76,"BANNER"
"Bracknell Forest Council","http://opendatacommunities.org/id/unitary-authority/bracknell-forest","Bracknell Forest Council","00MA","Older People (Aged 65 or Over)","Residential Care Home Placements","Heathlands EPH","Office Stationery",28/01/2013 00:00:00,"30210705",1.04,"BANNER"
"Bracknell Forest Council","http://opendatacommunities.org/id/unitary-authority/bracknell-forest","Bracknell Forest Council","00MA","Older People (Aged 65 or Over)","Residential Care Home Placements","Heathlands EPH","Office Stationery",28/01/2013 00:00:00,"30210705",0.38,"BANNER"
"Bracknell Forest Council","http://opendatacommunities.org/id/unitary-authority/bracknell-forest","Bracknell Forest Council","00MA","Service Management & Support Services","Service Management & Support Services","Departmental Office Services","Office Stationery",28/01/2013 00:00:00,"30210705",2.04,"BANNER"
"Bracknell Forest Council","http://opendatacommunities.org/id/unitary-authority/bracknell-forest","Bracknell Forest Council","00MA","Service Management & Support Services","Service Management & Support Services","Departmental Office Services","Office Stationery",28/01/2013 00:00:00,"30210705",60.4,"BANNER"
"Bracknell Forest Council","http://opendatacommunities.org/id/unitary-authority/bracknell-forest","Bracknell Forest Council","00MA","Service Management & Support Services","Service Management & Support Services","Departmental Office Services","Office Stationery",28/01/2013 00:00:00,"30210705",13.4,"BANNER"
"Bracknell Forest Council","http://opendatacommunities.org/id/unitary-authority/bracknell-forest","Bracknell Forest Council","00MA","Service Management & Support Services","Service Management & Support Services","Departmental Office Services","Office Stationery",28/01/2013 00:00:00,"30210705",0.35,"BANNER"
"Bracknell Forest Council","http://opendatacommunities.org/id/unitary-authority/bracknell-forest","Bracknell Forest Council","00MA","Service Management & Support Services","Service Management & Support Services","Departmental Office Services","Office Stationery",28/01/2013 00:00:00,"30210705",128,"BANNER"
"Bracknell Forest Council","http://opendatacommunities.org/id/unitary-authority/bracknell-forest","Bracknell Forest Council","00MA","Service Management & Support Services","Service Management & Support Services","Departmental Office Services","Office Stationery",28/01/2013 00:00:00,"30210705",88.98,"BANNER"
"Bracknell Forest Council","http://opendatacommunities.org/id/unitary-authority/bracknell-forest","Bracknell Forest Council","00MA","Service Management & Support Services","Service Management & Support Services","Departmental Office Services","Office Stationery",28/01/2013 00:00:00,"30210705",6.8,"BANNER"
"Bracknell Forest Council","http://opendatacommunities.org/id/unitary-authority/bracknell-forest","Bracknell Forest Council","00MA","Central Support Services - COF","Policy Unit","Chief Executive's Office","Office Stationery",28/01/2013 00:00:00,"30210705",0.68,"BANNER"
"Bracknell Forest Council","http://opendatacommunities.org/id/unitary-authority/bracknell-forest","Bracknell Forest Council","00MA","Democratic Representation & Management COF","Democratic Representation & Management - COF","Members Services","Office Stationery",28/01/2013 00:00:00,"30210705",157.84,"BANNER"
"Bracknell Forest Council","http://opendatacommunities.org/id/unitary-authority/bracknell-forest","Bracknell Forest Council","00MA","Corporate Management COF","Corporate Management COF","Chief Executive & Support","Office Stationery",28/01/2013 00:00:00,"30210705",12.08,"BANNER"
"Bracknell Forest Council","http://opendatacommunities.org/id/unitary-authority/bracknell-forest","Bracknell Forest Council","00MA","Corporate Management COF","Corporate Management COF","Chief Executive & Support","Office Stationery",28/01/2013 00:00:00,"30210705",11.6,"BANNER"
"Bracknell Forest Council","http://opendatacommunities.org/id/unitary-authority/bracknell-forest","Bracknell Forest Council","00MA","Service Management & Support Services","Service Management & Support Services","Departmental Office Services","Office Stationery",28/01/2013 00:00:00,"30210705",3.16,"BANNER"
"Bracknell Forest Council","http://opendatacommunities.org/id/unitary-authority/bracknell-forest","Bracknell Forest Council","00MA","Service Management & Support Services","Service Management & Support Services","Departmental Office Services","Office Stationery",28/01/2013 00:00:00,"30210705",4.82,"BANNER"
"Bracknell Forest Council","http://opendatacommunities.org/id/unitary-authority/bracknell-forest","Bracknell Forest Council","00MA","Service Management & Support Services","Service Management & Support Services","Departmental Office Services","Office Stationery",28/01/2013 00:00:00,"30210705",2.45,"BANNER"
"Bracknell Forest Council","http://opendatacommunities.org/id/unitary-authority/bracknell-forest","Bracknell Forest Council","00MA","Service Management & Support Services","Service Management & Support Services","Departmental Office Services","Office Stationery",28/01/2013 00:00:00,"30210705",22.69,"BANNER"
"Bracknell Forest Council","http://opendatacommunities.org/id/unitary-authority/bracknell-forest","Bracknell Forest Council","00MA","Service Management & Support Services","Service Management & Support Services","Departmental Office Services","Office Stationery",28/01/2013 00:00:00,"30210705",15.12,"BANNER"
"Bracknell Forest Council","http://opendatacommunities.org/id/unitary-authority/bracknell-forest","Bracknell Forest Council","00MA","Service Management & Support Services","Service Management & Support Services","Departmental Office Services","Office Stationery",28/01/2013 00:00:00,"30210705",14.94,"BANNER"
"Bracknell Forest Council","http://opendatacommunities.org/id/unitary-authority/bracknell-forest","Bracknell Forest Council","00MA","Service Management & Support Services","Service Management & Support Services","Departmental Office Services","Office Stationery",28/01/2013 00:00:00,"30210705",13.94,"BANNER"
"Bracknell Forest Council","http://opendatacommunities.org/id/unitary-authority/bracknell-forest","Bracknell Forest Council","00MA","Service Management & Support Services","Service Management & Support Services","Departmental Office Services","Office Stationery",28/01/2013 00:00:00,"30210705",8.46,"BANNER"
"Bracknell Forest Council","http://opendatacommunities.org/id/unitary-authority/bracknell-forest","Bracknell Forest Council","00MA","Service Management & Support Services","Service Management & Support Services","Departmental Office Services","Office Stationery",28/01/2013 00:00:00,"30210705",1.2,"BANNER"
"Bracknell Forest Council","http://opendatacommunities.org/id/unitary-authority/bracknell-forest","Bracknell Forest Council","00MA","Service Management & Support Services","Service Management & Support Services","Departmental Office Services","Office Stationery",28/01/2013 00:00:00,"30210705",1.14,"BANNER"
"Bracknell Forest Council","http://opendatacommunities.org/id/unitary-authority/bracknell-forest","Bracknell Forest Council","00MA","Older People (Aged 65 or Over)","Residential Care Home Placements","Bridgewell Unit","Office Stationery",28/01/2013 00:00:00,"30210705",4.31,"BANNER"
"Bracknell Forest Council","http://opendatacommunities.org/id/unitary-authority/bracknell-forest","Bracknell Forest Council","00MA","Older People (Aged 65 or Over)","Residential Care Home Placements","Bridgewell Unit","Office Stationery",28/01/2013 00:00:00,"30210705",0.98,"BANNER"
"Bracknell Forest Council","http://opendatacommunities.org/id/unitary-authority/bracknell-forest","Bracknell Forest Council","00MA","Older People (Aged 65 or Over)","Residential Care Home Placements","Bridgewell Unit","Office Stationery",28/01/2013 00:00:00,"30210705",0.65,"BANNER"
"Bracknell Forest Council","http://opendatacommunities.org/id/unitary-authority/bracknell-forest","Bracknell Forest Council","00MA","Older People (Aged 65 or Over)","Residential Care Home Placements","Bridgewell Unit","Office Stationery",28/01/2013 00:00:00,"30210705",0.48,"BANNER"
"Bracknell Forest Council","http://opendatacommunities.org/id/unitary-authority/bracknell-forest","Bracknell Forest Council","00MA","Older People (Aged 65 or Over)","Residential Care Home Placements","Bridgewell Unit","Office Stationery",28/01/2013 00:00:00,"30210705",0.45,"BANNER"
"Bracknell Forest Council","http://opendatacommunities.org/id/unitary-authority/bracknell-forest","Bracknell Forest Council","00MA","Older People (Aged 65 or Over)","Residential Care Home Placements","Heathlands EPH","Office Stationery",28/01/2013 00:00:00,"30210705",17.54,"BANNER"
"Bracknell Forest Council","http://opendatacommunities.org/id/unitary-authority/bracknell-forest","Bracknell Forest Council","00MA","Older People (Aged 65 or Over)","Residential Care Home Placements","Heathlands EPH","Office Stationery",28/01/2013 00:00:00,"30210705",24.52,"BANNER"
"Bracknell Forest Council","http://opendatacommunities.org/id/unitary-authority/bracknell-forest","Bracknell Forest Council","00MA","Culture and Heritage","Heritage Museums & Galleries","The Look Out","Office Stationery",28/01/2013 00:00:00,"30210705",23.4,"BANNER"
"Bracknell Forest Council","http://opendatacommunities.org/id/unitary-authority/bracknell-forest","Bracknell Forest Council","00MA","Culture and Heritage","Heritage Museums & Galleries","The Look Out","Office Stationery",28/01/2013 00:00:00,"30210705",8.64,"BANNER"
"Bracknell Forest Council","http://opendatacommunities.org/id/unitary-authority/bracknell-forest","Bracknell Forest Council","00MA","Culture and Heritage","Heritage Museums & Galleries","The Look Out","Office Stationery",28/01/2013 00:00:00,"30210705",5.82,"BANNER"
"Bracknell Forest Council","http://opendatacommunities.org/id/unitary-authority/bracknell-forest","Bracknell Forest Council","00MA","Democratic Representation & Management COF","Democratic Representation & Management - COF","Committee Servicing","Office Stationery",28/01/2013 00:00:00,"30210705",12.18,"BANNER"
"Bracknell Forest Council","http://opendatacommunities.org/id/unitary-authority/bracknell-forest","Bracknell Forest Council","00MA","Democratic Representation & Management COF","Democratic Representation & Management - COF","Committee Servicing","Office Stationery",28/01/2013 00:00:00,"30210705",10.2,"BANNER"
"Bracknell Forest Council","http://opendatacommunities.org/id/unitary-authority/bracknell-forest","Bracknell Forest Council","00MA","Democratic Representation & Management COF","Democratic Representation & Management - COF","Committee Servicing","Office Stationery",28/01/2013 00:00:00,"30210705",5.45,"BANNER"
"Bracknell Forest Council","http://opendatacommunities.org/id/unitary-authority/bracknell-forest","Bracknell Forest Council","00MA","Democratic Representation & Management COF","Democratic Representation & Management - COF","Committee Servicing","Office Stationery",28/01/2013 00:00:00,"30210705",2.31,"BANNER"
"Bracknell Forest Council","http://opendatacommunities.org/id/unitary-authority/bracknell-forest","Bracknell Forest Council","00MA","Older People (Aged 65 or Over)","Residential Care Home Placements","Heathlands EPH","Office Stationery",28/01/2013 00:00:00,"30210705",20.96,"BANNER"
"Bracknell Forest Council","http://opendatacommunities.org/id/unitary-authority/bracknell-forest","Bracknell Forest Council","00MA","Central Support Services - COF","Finance","Finance Departmental Administration","Office Stationery",28/01/2013 00:00:00,"30210705",0.42,"BANNER"
"Bracknell Forest Council","http://opendatacommunities.org/id/unitary-authority/bracknell-forest","Bracknell Forest Council","00MA","Corporate Management COF","Corporate Management COF","Chief Executive & Support","Office Stationery",28/01/2013 00:00:00,"30210705",2.72,"BANNER"
"Bracknell Forest Council","http://opendatacommunities.org/id/unitary-authority/bracknell-forest","Bracknell Forest Council","00MA","Central Support Services - COF","Policy Unit","Chief Executive's Office","Office Stationery",28/01/2013 00:00:00,"30210705",15.08,"BANNER"
"Bracknell Forest Council","http://opendatacommunities.org/id/unitary-authority/bracknell-forest","Bracknell Forest Council","00MA","Older People (Aged 65 or Over)","Residential Care Home Placements","Heathlands EPH","Gas",01/02/2013 00:00:00,"30211062",501.46,"CORONA ENERGY RETAIL 4 LTD"
"Bracknell Forest Council","http://opendatacommunities.org/id/unitary-authority/bracknell-forest","Bracknell Forest Council","00MA","Services to Young People","Other Services to Young People","The Wayz","Gas",01/02/2013 00:00:00,"30211062",132.66,"CORONA ENERGY RETAIL 4 LTD"
"Bracknell Forest Council","http://opendatacommunities.org/id/unitary-authority/bracknell-forest","Bracknell Forest Council","00MA","Central Support Services - COF","Construction and Property","Time Square Office","Gas",01/02/2013 00:00:00,"30211062",1662.63,"CORONA ENERGY RETAIL 4 LTD"
"Bracknell Forest Council","http://opendatacommunities.org/id/unitary-authority/bracknell-forest","Bracknell Forest Council","00MA","Older People (Aged 65 or Over)","Residential Care Home Placements","Heathlands EPH","Gas",01/02/2013 00:00:00,"30211062",-501.46,"CORONA ENERGY RETAIL 4 LTD"
"Bracknell Forest Council","http://opendatacommunities.org/id/unitary-authority/bracknell-forest","Bracknell Forest Council","00MA","Learning Disability (under 65)","Residential Care Home Placements","Waymead - Short Stay","Gas",01/02/2013 00:00:00,"30211062",117.44,"CORONA ENERGY RETAIL 4 LTD"
"Bracknell Forest Council","http://opendatacommunities.org/id/unitary-authority/bracknell-forest","Bracknell Forest Council","00MA","Primary Schools","Delegated Primary School Budgets","St Margaret Clitherow - Catholic Primary","Gas",01/02/2013 00:00:00,"30211062",-117.13,"CORONA ENERGY RETAIL 4 LTD"
"Bracknell Forest Council","http://opendatacommunities.org/id/unitary-authority/bracknell-forest","Bracknell Forest Council","00MA","Primary Schools","Delegated Primary School Budgets","St Margaret Clitherow - Catholic Primary","Gas",01/02/2013 00:00:00,"30211062",75.26,"CORONA ENERGY RETAIL 4 LTD"
"Bracknell Forest Council","http://opendatacommunities.org/id/unitary-authority/bracknell-forest","Bracknell Forest Council","00MA","Primary Schools","Delegated Primary School Budgets","St Margaret Clitherow - Catholic Primary","Gas",01/02/2013 00:00:00,"30211062",-75.26,"CORONA ENERGY RETAIL 4 LTD"
"Bracknell Forest Council","http://opendatacommunities.org/id/unitary-authority/bracknell-forest","Bracknell Forest Council","00MA","Primary Schools","Delegated Primary School Budgets","St Margaret Clitherow - Catholic Primary","Gas",01/02/2013 00:00:00,"30211062",149.34,"CORONA ENERGY RETAIL 4 LTD"
"Bracknell Forest Council","http://opendatacommunities.org/id/unitary-authority/bracknell-forest","Bracknell Forest Council","00MA","Primary Schools","Delegated Primary School Budgets","St Margaret Clitherow - Catholic Primary","Gas",01/02/2013 00:00:00,"30211062",-149.35,"CORONA ENERGY RETAIL 4 LTD"
"Bracknell Forest Council","http://opendatacommunities.org/id/unitary-authority/bracknell-forest","Bracknell Forest Council","00MA","Secondary Schools","Delegated Secondary Schools Budgets","Easthampstead Park Community - Secondary","Gas",01/02/2013 00:00:00,"30211062",-4334.21,"CORONA ENERGY RETAIL 4 LTD"
"Bracknell Forest Council","http://opendatacommunities.org/id/unitary-authority/bracknell-forest","Bracknell Forest Council","00MA","Secondary Schools","Delegated Secondary Schools Budgets","Easthampstead Park Community - Secondary","Gas",01/02/2013 00:00:00,"30211062",1021.02,"CORONA ENERGY RETAIL 4 LTD"
"Bracknell Forest Council","http://opendatacommunities.org/id/unitary-authority/bracknell-forest","Bracknell Forest Council","00MA","Secondary Schools","Delegated Secondary Schools Budgets","Easthampstead Park Community - Secondary","Gas",01/02/2013 00:00:00,"30211062",-1161.93,"CORONA ENERGY RETAIL 4 LTD"
"Bracknell Forest Council","http://opendatacommunities.org/id/unitary-authority/bracknell-forest","Bracknell Forest Council","00MA","Secondary Schools","Delegated Secondary Schools Budgets","Easthampstead Park Community - Secondary","Gas",01/02/2013 00:00:00,"30211062",1161.65,"CORONA ENERGY RETAIL 4 LTD"
"Bracknell Forest Council","http://opendatacommunities.org/id/unitary-authority/bracknell-forest","Bracknell Forest Council","00MA","Secondary Schools","Delegated Secondary Schools Budgets","Easthampstead Park Community - Secondary","Gas",01/02/2013 00:00:00,"30211062",-1306.08,"CORONA ENERGY RETAIL 4 LTD"
"Bracknell Forest Council","http://opendatacommunities.org/id/unitary-authority/bracknell-forest","Bracknell Forest Council","00MA","Secondary Schools","Delegated Secondary Schools Budgets","Easthampstead Park Community - Secondary","Gas",01/02/2013 00:00:00,"30211062",1344.92,"CORONA ENERGY RETAIL 4 LTD"
"Bracknell Forest Council","http://opendatacommunities.org/id/unitary-authority/bracknell-forest","Bracknell Forest Council","00MA","Primary Schools","Delegated Primary School Budgets","College Town - Infant & Nursery","Gas",01/02/2013 00:00:00,"30211062",45.35,"CORONA ENERGY RETAIL 4 LTD"
"Bracknell Forest Council","http://opendatacommunities.org/id/unitary-authority/bracknell-forest","Bracknell Forest Council","00MA","Primary Schools","Delegated Primary School Budgets","Cranbourne - Primary","Gas",01/02/2013 00:00:00,"30211062",216.87,"CORONA ENERGY RETAIL 4 LTD"
"Bracknell Forest Council","http://opendatacommunities.org/id/unitary-authority/bracknell-forest","Bracknell Forest Council","00MA","Primary Schools","Delegated Primary School Budgets","Cranbourne - Primary","Gas",01/02/2013 00:00:00,"30211062",-745.03,"CORONA ENERGY RETAIL 4 LTD"
"Bracknell Forest Council","http://opendatacommunities.org/id/unitary-authority/bracknell-forest","Bracknell Forest Council","00MA","Primary Schools","Delegated Primary School Budgets","Cranbourne - Primary","Gas",01/02/2013 00:00:00,"30211062",642.99,"CORONA ENERGY RETAIL 4 LTD"
"Bracknell Forest Council","http://opendatacommunities.org/id/unitary-authority/bracknell-forest","Bracknell Forest Council","00MA","Primary Schools","Delegated Primary School Budgets","Cranbourne - Primary","Gas",01/02/2013 00:00:00,"30211062",-555.29,"CORONA ENERGY RETAIL 4 LTD"
"Bracknell Forest Council","http://opendatacommunities.org/id/unitary-authority/bracknell-forest","Bracknell Forest Council","00MA","Learning Disability (under 65)","Residential Care Home Placements","Waymead - Short Stay","Gas",01/02/2013 00:00:00,"30211062",-366.45,"CORONA ENERGY RETAIL 4 LTD"
"Bracknell Forest Council","http://opendatacommunities.org/id/unitary-authority/bracknell-forest","Bracknell Forest Council","00MA","Learning Disability (under 65)","Residential Care Home Placements","Waymead - Short Stay","Gas",01/02/2013 00:00:00,"30211062",346.41,"CORONA ENERGY RETAIL 4 LTD"
"Bracknell Forest Council","http://opendatacommunities.org/id/unitary-authority/bracknell-forest","Bracknell Forest Council","00MA","Older People (Aged 65 or Over)","Residential Care Home Placements","Heathlands EPH","Gas",01/02/2013 00:00:00,"30211062",493.08,"CORONA ENERGY RETAIL 4 LTD"
"Bracknell Forest Council","http://opendatacommunities.org/id/unitary-authority/bracknell-forest","Bracknell Forest Council","00MA","Older People (Aged 65 or Over)","Residential Care Home Placements","Heathlands EPH","Gas",01/02/2013 00:00:00,"30211062",-493.08,"CORONA ENERGY RETAIL 4 LTD"
"Bracknell Forest Council","http://opendatacommunities.org/id/unitary-authority/bracknell-forest","Bracknell Forest Council","00MA","Older People (Aged 65 or Over)","Residential Care Home Placements","Heathlands EPH","Gas",01/02/2013 00:00:00,"30211062",731.92,"CORONA ENERGY RETAIL 4 LTD"
"Bracknell Forest Council","http://opendatacommunities.org/id/unitary-authority/bracknell-forest","Bracknell Forest Council","00MA","Older People (Aged 65 or Over)","Residential Care Home Placements","Heathlands EPH","Gas",01/02/2013 00:00:00,"30211062",-731.92,"CORONA ENERGY RETAIL 4 LTD"
"Bracknell Forest Council","http://opendatacommunities.org/id/unitary-authority/bracknell-forest","Bracknell Forest Council","00MA","Older People (Aged 65 or Over)","Residential Care Home Placements","Heathlands EPH","Gas",01/02/2013 00:00:00,"30211062",1102.42,"CORONA ENERGY RETAIL 4 LTD"
"Bracknell Forest Council","http://opendatacommunities.org/id/unitary-authority/bracknell-forest","Bracknell Forest Council","00MA","Central Support Services - COF","Policy Unit","Chief Executive's Office","Office Stationery",28/01/2013 00:00:00,"30210705",12.08,"BANNER"
"Bracknell Forest Council","http://opendatacommunities.org/id/unitary-authority/bracknell-forest","Bracknell Forest Council","00MA","Service Management & Support Services","Service Management & Support Services","Departmental Office Services","Office Stationery",28/01/2013 00:00:00,"30210705",0.3,"BANNER"
"Bracknell Forest Council","http://opendatacommunities.org/id/unitary-authority/bracknell-forest","Bracknell Forest Council","00MA","Service Management & Support Services","Service Management & Support Services","Departmental Office Services","Office Stationery",28/01/2013 00:00:00,"30210705",0.3,"BANNER"
"Bracknell Forest Council","http://opendatacommunities.org/id/unitary-authority/bracknell-forest","Bracknell Forest Council","00MA","Libraries","Library Management & Administration","Library Administration","Office Stationery",28/01/2013 00:00:00,"30210705",-19.72,"BANNER"
"Bracknell Forest Council","http://opendatacommunities.org/id/unitary-authority/bracknell-forest","Bracknell Forest Council","00MA","Libraries","Library Management & Administration","Library Administration","Office Stationery",28/01/2013 00:00:00,"30210705",-80.22,"BANNER"
"Bracknell Forest Council","http://opendatacommunities.org/id/unitary-authority/bracknell-forest","Bracknell Forest Council","00MA","Older People (Aged 65 or Over)","Residential Care Home Placements","Bridgewell Unit","Office Stationery",28/01/2013 00:00:00,"30210705",12.08,"BANNER"
"Bracknell Forest Council","http://opendatacommunities.org/id/unitary-authority/bracknell-forest","Bracknell Forest Council","00MA","Service Management & Support Services","Service Management & Support Services","Departmental Office Services","Office Stationery",28/01/2013 00:00:00,"30210705",0.62,"BANNER"
"Bracknell Forest Council","http://opendatacommunities.org/id/unitary-authority/bracknell-forest","Bracknell Forest Council","00MA","Service Management & Support Services","Service Management & Support Services","Departmental Office Services","Office Stationery",28/01/2013 00:00:00,"30210705",24.16,"BANNER"
"Bracknell Forest Council","http://opendatacommunities.org/id/unitary-authority/bracknell-forest","Bracknell Forest Council","00MA","Service Management & Support Services","Service Management & Support Services","Departmental Office Services","Office Stationery",28/01/2013 00:00:00,"30210705",21.52,"BANNER"
"Bracknell Forest Council","http://opendatacommunities.org/id/unitary-authority/bracknell-forest","Bracknell Forest Council","00MA","Service Management & Support Services","Service Management & Support Services","Departmental Office Services","Office Stationery",28/01/2013 00:00:00,"30210705",17.54,"BANNER"
"Bracknell Forest Council","http://opendatacommunities.org/id/unitary-authority/bracknell-forest","Bracknell Forest Council","00MA","Service Management & Support Services","Service Management & Support Services","Departmental Office Services","Office Stationery",28/01/2013 00:00:00,"30210705",60.4,"BANNER"
"Bracknell Forest Council","http://opendatacommunities.org/id/unitary-authority/bracknell-forest","Bracknell Forest Council","00MA","Central Support Services - COF","Policy Unit","Chief Executive's Office","Office Stationery",28/01/2013 00:00:00,"30210705",2.31,"BANNER"
"Bracknell Forest Council","http://opendatacommunities.org/id/unitary-authority/bracknell-forest","Bracknell Forest Council","00MA","Central Support Services - COF","Policy Unit","Chief Executive's Office","Office Stationery",28/01/2013 00:00:00,"30210705",1.5,"BANNER"
"Bracknell Forest Council","http://opendatacommunities.org/id/unitary-authority/bracknell-forest","Bracknell Forest Council","00MA","Service Management & Support Services","Service Management & Support Services","Departmental Office Services","Office Stationery",28/01/2013 00:00:00,"30210705",8.46,"BANNER"
"Bracknell Forest Council","http://opendatacommunities.org/id/unitary-authority/bracknell-forest","Bracknell Forest Council","00MA","Older People (Aged 65 or Over)","Residential Care Home Placements","Heathlands EPH","Gas",01/02/2013 00:00:00,"30211062",-1102.42,"CORONA ENERGY RETAIL 4 LTD"
"Bracknell Forest Council","http://opendatacommunities.org/id/unitary-authority/bracknell-forest","Bracknell Forest Council","00MA","Older People (Aged 65 or Over)","Residential Care Home Placements","Heathlands EPH","Gas",01/02/2013 00:00:00,"30211062",1375.23,"CORONA ENERGY RETAIL 4 LTD"
"Bracknell Forest Council","http://opendatacommunities.org/id/unitary-authority/bracknell-forest","Bracknell Forest Council","00MA","Services to Young People","Other Services to Young People","Coopers Hill Youth Centre","Gas",01/02/2013 00:00:00,"30211062",573.63,"CORONA ENERGY RETAIL 4 LTD"
"Bracknell Forest Council","http://opendatacommunities.org/id/unitary-authority/bracknell-forest","Bracknell Forest Council","00MA","Children Looked After","Other children looked after services","Larchwood Running Costs","Gas",01/02/2013 00:00:00,"30211062",214.17,"CORONA ENERGY RETAIL 4 LTD"
"Bracknell Forest Council","http://opendatacommunities.org/id/unitary-authority/bracknell-forest","Bracknell Forest Council","00MA","Children Looked After","Other children looked after services","Larchwood Running Costs","Gas",01/02/2013 00:00:00,"30211062",-214.17,"CORONA ENERGY RETAIL 4 LTD"
"Bracknell Forest Council","http://opendatacommunities.org/id/unitary-authority/bracknell-forest","Bracknell Forest Council","00MA","Children Looked After","Other children looked after services","Larchwood Running Costs","Gas",01/02/2013 00:00:00,"30211062",318.7,"CORONA ENERGY RETAIL 4 LTD"
"Bracknell Forest Council","http://opendatacommunities.org/id/unitary-authority/bracknell-forest","Bracknell Forest Council","00MA","Children Looked After","Other children looked after services","Larchwood Running Costs","Gas",01/02/2013 00:00:00,"30211062",-318.7,"CORONA ENERGY RETAIL 4 LTD"
"Bracknell Forest Council","http://opendatacommunities.org/id/unitary-authority/bracknell-forest","Bracknell Forest Council","00MA","Children Looked After","Other children looked after services","Larchwood Running Costs","Gas",01/02/2013 00:00:00,"30211062",479.87,"CORONA ENERGY RETAIL 4 LTD"
"Bracknell Forest Council","http://opendatacommunities.org/id/unitary-authority/bracknell-forest","Bracknell Forest Council","00MA","Secondary Schools","Delegated Secondary Schools Budgets","Easthampstead Park Community - Secondary","Gas",01/02/2013 00:00:00,"30211062",-3169.12,"CORONA ENERGY RETAIL 4 LTD"
"Bracknell Forest Council","http://opendatacommunities.org/id/unitary-authority/bracknell-forest","Bracknell Forest Council","00MA","Secondary Schools","Delegated Secondary Schools Budgets","Easthampstead Park Community - Secondary","Gas",01/02/2013 00:00:00,"30211062",3119.12,"CORONA ENERGY RETAIL 4 LTD"
"Bracknell Forest Council","http://opendatacommunities.org/id/unitary-authority/bracknell-forest","Bracknell Forest Council","00MA","Secondary Schools","Delegated Secondary Schools Budgets","Easthampstead Park Community - Secondary","Gas",01/02/2013 00:00:00,"30211062",4520.69,"CORONA ENERGY RETAIL 4 LTD"
"Bracknell Forest Council","http://opendatacommunities.org/id/unitary-authority/bracknell-forest","Bracknell Forest Council","00MA","Primary Schools","Delegated Primary School Budgets","St Michael's (Easthampstead) - Primary","Gas",01/02/2013 00:00:00,"30211062",425.39,"CORONA ENERGY RETAIL 4 LTD"
"Bracknell Forest Council","http://opendatacommunities.org/id/unitary-authority/bracknell-forest","Bracknell Forest Council","00MA","Primary Schools","Delegated Primary School Budgets","St Margaret Clitherow - Catholic Primary","Gas",01/02/2013 00:00:00,"30211062",-25.9,"CORONA ENERGY RETAIL 4 LTD"
"Bracknell Forest Council","http://opendatacommunities.org/id/unitary-authority/bracknell-forest","Bracknell Forest Council","00MA","Primary Schools","Delegated Primary School Budgets","St Margaret Clitherow - Catholic Primary","Gas",01/02/2013 00:00:00,"30211062",-8.07,"CORONA ENERGY RETAIL 4 LTD"
"Bracknell Forest Council","http://opendatacommunities.org/id/unitary-authority/bracknell-forest","Bracknell Forest Council","00MA","Service Management & Support Services","Service Management & Support Services","Departmental Office Services","Office Stationery",28/01/2013 00:00:00,"30210705",5.66,"BANNER"
"Bracknell Forest Council","http://opendatacommunities.org/id/unitary-authority/bracknell-forest","Bracknell Forest Council","00MA","Service Management & Support Services","Service Management & Support Services","Departmental Office Services","Office Stationery",28/01/2013 00:00:00,"30210705",36.24,"BANNER"
"Bracknell Forest Council","http://opendatacommunities.org/id/unitary-authority/bracknell-forest","Bracknell Forest Council","00MA","Service Management & Support Services","Service Management & Support Services","Departmental Office Services","Office Stationery",28/01/2013 00:00:00,"30210705",9.36,"BANNER"
"Bracknell Forest Council","http://opendatacommunities.org/id/unitary-authority/bracknell-forest","Bracknell Forest Council","00MA","Service Management & Support Services","Service Management & Support Services","Departmental Office Services","Office Stationery",28/01/2013 00:00:00,"30210705",35.01,"BANNER"
"Bracknell Forest Council","http://opendatacommunities.org/id/unitary-authority/bracknell-forest","Bracknell Forest Council","00MA","Service Management & Support Services","Service Management & Support Services","Departmental Office Services","Office Stationery",28/01/2013 00:00:00,"30210705",1.12,"BANNER"
"Bracknell Forest Council","http://opendatacommunities.org/id/unitary-authority/bracknell-forest","Bracknell Forest Council","00MA","Service Management & Support Services","Service Management & Support Services","Departmental Office Services","Office Stationery",28/01/2013 00:00:00,"30210705",24.16,"BANNER"
"Bracknell Forest Council","http://opendatacommunities.org/id/unitary-authority/bracknell-forest","Bracknell Forest Council","00MA","Service Management & Support Services","Service Management & Support Services","Departmental Office Services","Office Stationery",28/01/2013 00:00:00,"30210705",12.8,"BANNER"
"Bracknell Forest Council","http://opendatacommunities.org/id/unitary-authority/bracknell-forest","Bracknell Forest Council","00MA","Service Management & Support Services","Service Management & Support Services","Departmental Office Services","Office Stationery",28/01/2013 00:00:00,"30210705",143.2,"BANNER"
"Bracknell Forest Council","http://opendatacommunities.org/id/unitary-authority/bracknell-forest","Bracknell Forest Council","00MA","Service Management & Support Services","Service Management & Support Services","Departmental Office Services","Office Stationery",28/01/2013 00:00:00,"30210705",143.2,"BANNER"
"Bracknell Forest Council","http://opendatacommunities.org/id/unitary-authority/bracknell-forest","Bracknell Forest Council","00MA","Service Management & Support Services","Service Management & Support Services","Departmental IT","Office Stationery",28/01/2013 00:00:00,"30210705",168.78,"BANNER"
"Bracknell Forest Council","http://opendatacommunities.org/id/unitary-authority/bracknell-forest","Bracknell Forest Council","00MA","Central Support Services - COF","Finance","Finance Departmental Administration","Office Stationery",28/01/2013 00:00:00,"30210705",0.65,"BANNER"
"Bracknell Forest Council","http://opendatacommunities.org/id/unitary-authority/bracknell-forest","Bracknell Forest Council","00MA","Central Support Services - COF","Finance","Finance Departmental Administration","Office Stationery",28/01/2013 00:00:00,"30210705",0.39,"BANNER"
"Bracknell Forest Council","http://opendatacommunities.org/id/unitary-authority/bracknell-forest","Bracknell Forest Council","00MA","Central Support Services - COF","Finance","Finance Departmental Administration","Office Stationery",28/01/2013 00:00:00,"30210705",0.35,"BANNER"
"Bracknell Forest Council","http://opendatacommunities.org/id/unitary-authority/bracknell-forest","Bracknell Forest Council","00MA","Central Support Services - COF","Finance","Finance Departmental Administration","Office Stationery",28/01/2013 00:00:00,"30210705",48.32,"BANNER"
"Bracknell Forest Council","http://opendatacommunities.org/id/unitary-authority/bracknell-forest","Bracknell Forest Council","00MA","Central Support Services - COF","Valuers","Property Services","Office Stationery",28/01/2013 00:00:00,"30210705",57.68,"BANNER"
"Bracknell Forest Council","http://opendatacommunities.org/id/unitary-authority/bracknell-forest","Bracknell Forest Council","00MA","Democratic Representation & Management COF","Democratic Representation & Management - COF","Members Services","Office Stationery",28/01/2013 00:00:00,"30210705",43.78,"BANNER"
"Bracknell Forest Council","http://opendatacommunities.org/id/unitary-authority/bracknell-forest","Bracknell Forest Council","00MA","Central Support Services - COF","Finance","Finance Departmental Administration","Office Stationery",28/01/2013 00:00:00,"30210705",17.42,"BANNER"
"Bracknell Forest Council","http://opendatacommunities.org/id/unitary-authority/bracknell-forest","Bracknell Forest Council","00MA","Central Support Services - COF","Finance","Finance Departmental Administration","Office Stationery",28/01/2013 00:00:00,"30210705",8.46,"BANNER"
"Bracknell Forest Council","http://opendatacommunities.org/id/unitary-authority/bracknell-forest","Bracknell Forest Council","00MA","Central Support Services - COF","Finance","Finance Departmental Administration","Office Stationery",28/01/2013 00:00:00,"30210705",1.56,"BANNER"
"Bracknell Forest Council","http://opendatacommunities.org/id/unitary-authority/bracknell-forest","Bracknell Forest Council","00MA","Service Management & Support Services","Service Management & Support Services","Departmental Office Services","Office Stationery",28/01/2013 00:00:00,"30210705",60.4,"BANNER"
"Bracknell Forest Council","http://opendatacommunities.org/id/unitary-authority/bracknell-forest","Bracknell Forest Council","00MA","Service Management & Support Services","Service Management & Support Services","Departmental Office Services","Office Stationery",28/01/2013 00:00:00,"30210705",24.39,"BANNER"
"Bracknell Forest Council","http://opendatacommunities.org/id/unitary-authority/bracknell-forest","Bracknell Forest Council","00MA","Older People (Aged 65 or Over)","Residential Care Home Placements","Bridgewell Unit","Office Stationery",28/01/2013 00:00:00,"30210705",248.59,"BANNER"
"Bracknell Forest Council","http://opendatacommunities.org/id/unitary-authority/bracknell-forest","Bracknell Forest Council","00MA","Service Management & Support Services","Service Management & Support Services","Departmental Office Services","Office Stationery",28/01/2013 00:00:00,"30210705",0.73,"BANNER"
"Bracknell Forest Council","http://opendatacommunities.org/id/unitary-authority/bracknell-forest","Bracknell Forest Council","00MA","Service Management & Support Services","Service Management & Support Services","Departmental Office Services","Office Stationery",28/01/2013 00:00:00,"30210705",0.73,"BANNER"
"Bracknell Forest Council","http://opendatacommunities.org/id/unitary-authority/bracknell-forest","Bracknell Forest Council","00MA","Central Support Services - COF","Valuers","Property Services","Office Stationery",28/01/2013 00:00:00,"30210705",29.16,"BANNER"
"Bracknell Forest Council","http://opendatacommunities.org/id/unitary-authority/bracknell-forest","Bracknell Forest Council","00MA","Holding Accounts in Budget Book COF","Corporate Serv - Reprographics & Printing","Print Room","Office Stationery",28/01/2013 00:00:00,"30210705",84.5,"BANNER"
"Bracknell Forest Council","http://opendatacommunities.org/id/unitary-authority/bracknell-forest","Bracknell Forest Council","00MA","Democratic Representation & Management COF","Democratic Representation & Management - COF","Members Services","Office Stationery",28/01/2013 00:00:00,"30210705",75.34,"BANNER"
"Bracknell Forest Council","http://opendatacommunities.org/id/unitary-authority/bracknell-forest","Bracknell Forest Council","00MA","Democratic Representation & Management COF","Democratic Representation & Management - COF","Members Services","Office Stationery",28/01/2013 00:00:00,"30210705",43.78,"BANNER"
"Bracknell Forest Council","http://opendatacommunities.org/id/unitary-authority/bracknell-forest","Bracknell Forest Council","00MA","Democratic Representation & Management COF","Democratic Representation & Management - COF","Members Services","Office Stationery",28/01/2013 00:00:00,"30210705",43.78,"BANNER"
"Bracknell Forest Council","http://opendatacommunities.org/id/unitary-authority/bracknell-forest","Bracknell Forest Council","00MA","Central Support Services - COF","Valuers","Property Services","Office Stationery",28/01/2013 00:00:00,"30210705",13.63,"BANNER"
"Bracknell Forest Council","http://opendatacommunities.org/id/unitary-authority/bracknell-forest","Bracknell Forest Council","00MA","Central Support Services - COF","Valuers","Property Services","Office Stationery",28/01/2013 00:00:00,"30210705",7.18,"BANNER"
"Bracknell Forest Council","http://opendatacommunities.org/id/unitary-authority/bracknell-forest","Bracknell Forest Council","00MA","Central Support Services - COF","Valuers","Property Services","Office Stationery",28/01/2013 00:00:00,"30210705",6.14,"BANNER"
"Bracknell Forest Council","http://opendatacommunities.org/id/unitary-authority/bracknell-forest","Bracknell Forest Council","00MA","Central Support Services - COF","Valuers","Property Services","Office Stationery",28/01/2013 00:00:00,"30210705",1.67,"BANNER"
"Bracknell Forest Council","http://opendatacommunities.org/id/unitary-authority/bracknell-forest","Bracknell Forest Council","00MA","Central Support Services - COF","Valuers","Property Services","Office Stationery",28/01/2013 00:00:00,"30210705",0.85,"BANNER"
"Bracknell Forest Council","http://opendatacommunities.org/id/unitary-authority/bracknell-forest","Bracknell Forest Council","00MA","Central Support Services - COF","Valuers","Property Services","Office Stationery",28/01/2013 00:00:00,"30210705",0.25,"BANNER"
"Bracknell Forest Council","http://opendatacommunities.org/id/unitary-authority/bracknell-forest","Bracknell Forest Council","00MA","Service Management & Support Services","Service Management & Support Services","Departmental Office Services","Office Stationery",28/01/2013 00:00:00,"30210705",18.46,"BANNER"
"Bracknell Forest Council","http://opendatacommunities.org/id/unitary-authority/bracknell-forest","Bracknell Forest Council","00MA","Services to Young People","Adult and Community Learning","Adult Safeguarded (was Community)Learning","Office Stationery",28/01/2013 00:00:00,"30210705",10.55,"BANNER"
"Bracknell Forest Council","http://opendatacommunities.org/id/unitary-authority/bracknell-forest","Bracknell Forest Council","00MA","Registration Births, Deaths & Marriages","Registration births, deaths and marriages","Registration Marriages","Office Stationery",28/01/2013 00:00:00,"30210705",48.32,"BANNER"
"Bracknell Forest Council","http://opendatacommunities.org/id/unitary-authority/bracknell-forest","Bracknell Forest Council","00MA","Registration Births, Deaths & Marriages","Registration births, deaths and marriages","Registration Marriages","Office Stationery",28/01/2013 00:00:00,"30210705",39.2,"BANNER"
"Bracknell Forest Council","http://opendatacommunities.org/id/unitary-authority/bracknell-forest","Bracknell Forest Council","00MA","Registration Births, Deaths & Marriages","Registration births, deaths and marriages","Registration Marriages","Office Stationery",28/01/2013 00:00:00,"30210705",17.81,"BANNER"
"Bracknell Forest Council","http://opendatacommunities.org/id/unitary-authority/bracknell-forest","Bracknell Forest Council","00MA","Registration Births, Deaths & Marriages","Registration births, deaths and marriages","Registration Marriages","Office Stationery",28/01/2013 00:00:00,"30210705",5,"BANNER"
"Bracknell Forest Council","http://opendatacommunities.org/id/unitary-authority/bracknell-forest","Bracknell Forest Council","00MA","Registration Births, Deaths & Marriages","Registration births, deaths and marriages","Registration Marriages","Office Stationery",28/01/2013 00:00:00,"30210705",0.6,"BANNER"
"Bracknell Forest Council","http://opendatacommunities.org/id/unitary-authority/bracknell-forest","Bracknell Forest Council","00MA","Registration Births, Deaths & Marriages","Registration births, deaths and marriages","Registration Marriages","Office Stationery",28/01/2013 00:00:00,"30210705",130.18,"BANNER"
"Bracknell Forest Council","http://opendatacommunities.org/id/unitary-authority/bracknell-forest","Bracknell Forest Council","00MA","Registration Births, Deaths & Marriages","Registration births, deaths and marriages","Registration Marriages","Office Stationery",28/01/2013 00:00:00,"30210705",130.18,"BANNER"
"Bracknell Forest Council","http://opendatacommunities.org/id/unitary-authority/bracknell-forest","Bracknell Forest Council","00MA","Central Support Services - COF","Personnel","Personnel Services","Office Stationery",28/01/2013 00:00:00,"30210705",10.44,"BANNER"
"Bracknell Forest Council","http://opendatacommunities.org/id/unitary-authority/bracknell-forest","Bracknell Forest Council","00MA","Central Support Services - COF","Personnel","Personnel Services","Office Stationery",28/01/2013 00:00:00,"30210705",5.81,"BANNER"
"Bracknell Forest Council","http://opendatacommunities.org/id/unitary-authority/bracknell-forest","Bracknell Forest Council","00MA","Central Support Services - COF","Personnel","Personnel Services","Office Stationery",28/01/2013 00:00:00,"30210705",3.16,"BANNER"
"Bracknell Forest Council","http://opendatacommunities.org/id/unitary-authority/bracknell-forest","Bracknell Forest Council","00MA","Central Support Services - COF","Personnel","Personnel Services","Office Stationery",28/01/2013 00:00:00,"30210705",1.7,"BANNER"
"Bracknell Forest Council","http://opendatacommunities.org/id/unitary-authority/bracknell-forest","Bracknell Forest Council","00MA","Service Management & Support Services","Service Management & Support Services","Departmental Office Services","Office Stationery",28/01/2013 00:00:00,"30210705",12.08,"BANNER"
"Bracknell Forest Council","http://opendatacommunities.org/id/unitary-authority/bracknell-forest","Bracknell Forest Council","00MA","Service Management & Support Services","Service Management & Support Services","Departmental Office Services","Office Stationery",28/01/2013 00:00:00,"30210705",21.98,"BANNER"
"Bracknell Forest Council","http://opendatacommunities.org/id/unitary-authority/bracknell-forest","Bracknell Forest Council","00MA","Support Services & Management Costs","Management and Administration","Head of Service -Adults","Office Stationery",28/01/2013 00:00:00,"30210705",17.82,"BANNER"
"Bracknell Forest Council","http://opendatacommunities.org/id/unitary-authority/bracknell-forest","Bracknell Forest Council","00MA","Youth Justice","Youth Offender Teams","YJB Core Funding","Office Stationery",28/01/2013 00:00:00,"30210705",69.35,"BANNER"
"Bracknell Forest Council","http://opendatacommunities.org/id/unitary-authority/bracknell-forest","Bracknell Forest Council","00MA","Youth Justice","Youth Offender Teams","YJB Core Funding","Office Stationery",28/01/2013 00:00:00,"30210705",61.08,"BANNER"
"Bracknell Forest Council","http://opendatacommunities.org/id/unitary-authority/bracknell-forest","Bracknell Forest Council","00MA","Management and Support Services - CYPL","Strategy, Resources and Early Interventions","Reception & Office Services","Office Stationery",28/01/2013 00:00:00,"30210705",5.51,"BANNER"
"Bracknell Forest Council","http://opendatacommunities.org/id/unitary-authority/bracknell-forest","Bracknell Forest Council","00MA","Early Years","Children's Centres","The Rowans Children's Centre","Office Stationery",28/01/2013 00:00:00,"30210705",0.6,"BANNER"
"Bracknell Forest Council","http://opendatacommunities.org/id/unitary-authority/bracknell-forest","Bracknell Forest Council","00MA","Early Years","Children's Centres","The Rowans Children's Centre","Office Stationery",28/01/2013 00:00:00,"30210705",4.54,"BANNER"
"Bracknell Forest Council","http://opendatacommunities.org/id/unitary-authority/bracknell-forest","Bracknell Forest Council","00MA","Early Years","Children's Centres","The Rowans Children's Centre","Office Stationery",28/01/2013 00:00:00,"30210705",3.14,"BANNER"
"Bracknell Forest Council","http://opendatacommunities.org/id/unitary-authority/bracknell-forest","Bracknell Forest Council","00MA","Management and Support Services - CYPL","Unallocated Early years Related Expenditure","SSEYCG Management & Admin","Office Stationery",28/01/2013 00:00:00,"30210705",3.97,"BANNER"
"Bracknell Forest Council","http://opendatacommunities.org/id/unitary-authority/bracknell-forest","Bracknell Forest Council","00MA","Management and Support Services - CYPL","Unallocated Early years Related Expenditure","SSEYCG Management & Admin","Office Stationery",28/01/2013 00:00:00,"30210705",10.43,"BANNER"
"Bracknell Forest Council","http://opendatacommunities.org/id/unitary-authority/bracknell-forest","Bracknell Forest Council","00MA","Central Support Services - COF","Legal","Legal Services","Office Stationery",28/01/2013 00:00:00,"30210705",62.4,"BANNER"
"Bracknell Forest Council","http://opendatacommunities.org/id/unitary-authority/bracknell-forest","Bracknell Forest Council","00MA","Central Support Services - COF","Legal","Legal Services","Office Stationery",28/01/2013 00:00:00,"30210705",12.48,"BANNER"
"Bracknell Forest Council","http://opendatacommunities.org/id/unitary-authority/bracknell-forest","Bracknell Forest Council","00MA","Central Support Services - COF","Legal","Legal Services","Office Stationery",28/01/2013 00:00:00,"30210705",96.64,"BANNER"
"Bracknell Forest Council","http://opendatacommunities.org/id/unitary-authority/bracknell-forest","Bracknell Forest Council","00MA","Registration of Electors","Registration of Electors","Electoral Registration","Office Stationery",28/01/2013 00:00:00,"30210705",150.03,"BANNER"
"Bracknell Forest Council","http://opendatacommunities.org/id/unitary-authority/bracknell-forest","Bracknell Forest Council","00MA","Registration of Electors","Registration of Electors","Electoral Registration","Office Stationery",28/01/2013 00:00:00,"30210705",44.82,"BANNER"
"Bracknell Forest Council","http://opendatacommunities.org/id/unitary-authority/bracknell-forest","Bracknell Forest Council","00MA","Other Welfare Services","Other Welfare Services","Forestcare - Operational","Office Stationery",28/01/2013 00:00:00,"30210705",151.93,"BANNER"
"Bracknell Forest Council","http://opendatacommunities.org/id/unitary-authority/bracknell-forest","Bracknell Forest Council","00MA","Other Welfare Services","Other Welfare Services","Forestcare - Operational","Office Stationery",28/01/2013 00:00:00,"30210705",16.07,"BANNER"
"Bracknell Forest Council","http://opendatacommunities.org/id/unitary-authority/bracknell-forest","Bracknell Forest Council","00MA","Services to Young People","Other Services to Young People","Youth & Community Administration","Office Stationery",28/01/2013 00:00:00,"30210705",8.98,"BANNER"
"Bracknell Forest Council","http://opendatacommunities.org/id/unitary-authority/bracknell-forest","Bracknell Forest Council","00MA","Services to Young People","Other Services to Young People","Youth & Community Administration","Office Stationery",28/01/2013 00:00:00,"30210705",8.62,"BANNER"
"Bracknell Forest Council","http://opendatacommunities.org/id/unitary-authority/bracknell-forest","Bracknell Forest Council","00MA","Services to Young People","Other Services to Young People","Youth & Community Administration","Office Stationery",28/01/2013 00:00:00,"30210705",0.62,"BANNER"
"Bracknell Forest Council","http://opendatacommunities.org/id/unitary-authority/bracknell-forest","Bracknell Forest Council","00MA","Services to Young People","Other Services to Young People","Youth & Community Administration","Office Stationery",28/01/2013 00:00:00,"30210705",8.98,"BANNER"
"Bracknell Forest Council","http://opendatacommunities.org/id/unitary-authority/bracknell-forest","Bracknell Forest Council","00MA","Services to Young People","Other Services to Young People","Youth & Community Administration","Office Stationery",28/01/2013 00:00:00,"30210705",-8.98,"BANNER"
"Bracknell Forest Council","http://opendatacommunities.org/id/unitary-authority/bracknell-forest","Bracknell Forest Council","00MA","Services to Young People","Other Services to Young People","Portman Close Running Costs","Office Stationery",28/01/2013 00:00:00,"30210705",65.2,"BANNER"
"Bracknell Forest Council","http://opendatacommunities.org/id/unitary-authority/bracknell-forest","Bracknell Forest Council","00MA","Services to Young People","Other Services to Young People","Portman Close Running Costs","Office Stationery",28/01/2013 00:00:00,"30210705",13.65,"BANNER"
"Bracknell Forest Council","http://opendatacommunities.org/id/unitary-authority/bracknell-forest","Bracknell Forest Council","00MA","Early Years","Children's Centres","The Rowans Children's Centre","Office Stationery",28/01/2013 00:00:00,"30210705",9.92,"BANNER"
"Bracknell Forest Council","http://opendatacommunities.org/id/unitary-authority/bracknell-forest","Bracknell Forest Council","00MA","Early Years","Children's Centres","The Rowans Children's Centre","Office Stationery",28/01/2013 00:00:00,"30210705",3.16,"BANNER"
"Bracknell Forest Council","http://opendatacommunities.org/id/unitary-authority/bracknell-forest","Bracknell Forest Council","00MA","Early Years","Children's Centres","The Rowans Children's Centre","Office Stationery",28/01/2013 00:00:00,"30210705",2.9,"BANNER"
"Bracknell Forest Council","http://opendatacommunities.org/id/unitary-authority/bracknell-forest","Bracknell Forest Council","00MA","Early Years","Children's Centres","The Rowans Children's Centre","Office Stationery",28/01/2013 00:00:00,"30210705",1.43,"BANNER"
"Bracknell Forest Council","http://opendatacommunities.org/id/unitary-authority/bracknell-forest","Bracknell Forest Council","00MA","Support Services & Management Costs","Management and Administration","Head of Service -Adults","Office Stationery",28/01/2013 00:00:00,"30210705",25.2,"BANNER"
"Bracknell Forest Council","http://opendatacommunities.org/id/unitary-authority/bracknell-forest","Bracknell Forest Council","00MA","Support Services & Management Costs","Management and Administration","Head of Service -Adults","Office Stationery",28/01/2013 00:00:00,"30210705",6.05,"BANNER"
"Bracknell Forest Council","http://opendatacommunities.org/id/unitary-authority/bracknell-forest","Bracknell Forest Council","00MA","Support Services & Management Costs","Management and Administration","Head of Service -Adults","Office Stationery",28/01/2013 00:00:00,"30210705",5.51,"BANNER"
"Bracknell Forest Council","http://opendatacommunities.org/id/unitary-authority/bracknell-forest","Bracknell Forest Council","00MA","Support Services & Management Costs","Management and Administration","Head of Service -Adults","Office Stationery",28/01/2013 00:00:00,"30210705",4.23,"BANNER"
"Bracknell Forest Council","http://opendatacommunities.org/id/unitary-authority/bracknell-forest","Bracknell Forest Council","00MA","Support Services & Management Costs","Management and Administration","Head of Service -Adults","Office Stationery",28/01/2013 00:00:00,"30210705",164.57,"BANNER"
"Bracknell Forest Council","http://opendatacommunities.org/id/unitary-authority/bracknell-forest","Bracknell Forest Council","00MA","Support Services & Management Costs","Management and Administration","Head of Service -Adults","Office Stationery",28/01/2013 00:00:00,"30210705",29.14,"BANNER"
"Bracknell Forest Council","http://opendatacommunities.org/id/unitary-authority/bracknell-forest","Bracknell Forest Council","00MA","Support Services & Management Costs","Management and Administration","Head of Service -Adults","Office Stationery",28/01/2013 00:00:00,"30210705",7.47,"BANNER"
"Bracknell Forest Council","http://opendatacommunities.org/id/unitary-authority/bracknell-forest","Bracknell Forest Council","00MA","Commissioning and Social Work","Commissioning and Social Work","Administration Running Costs","Office Stationery",28/01/2013 00:00:00,"30210705",9.48,"BANNER"
"Bracknell Forest Council","http://opendatacommunities.org/id/unitary-authority/bracknell-forest","Bracknell Forest Council","00MA","Commissioning and Social Work","Commissioning and Social Work","Administration Running Costs","Office Stationery",28/01/2013 00:00:00,"30210705",6.8,"BANNER"
"Bracknell Forest Council","http://opendatacommunities.org/id/unitary-authority/bracknell-forest","Bracknell Forest Council","00MA","Commissioning and Social Work","Commissioning and Social Work","Administration Running Costs","Office Stationery",28/01/2013 00:00:00,"30210705",2.1,"BANNER"
"Bracknell Forest Council","http://opendatacommunities.org/id/unitary-authority/bracknell-forest","Bracknell Forest Council","00MA","Commissioning and Social Work","Commissioning and Social Work","Administration Running Costs","Office Stationery",28/01/2013 00:00:00,"30210705",0.99,"BANNER"
"Bracknell Forest Council","http://opendatacommunities.org/id/unitary-authority/bracknell-forest","Bracknell Forest Council","00MA","Primary Schools","Delegated Primary School Budgets","St Margaret Clitherow - Catholic Primary","Gas",01/02/2013 00:00:00,"30211062",244.13,"CORONA ENERGY RETAIL 4 LTD"
"Bracknell Forest Council","http://opendatacommunities.org/id/unitary-authority/bracknell-forest","Bracknell Forest Council","00MA","Secondary Schools","Delegated Secondary Schools Budgets","Edgbarrow - Secondary","Gas",01/02/2013 00:00:00,"30211062",3331.64,"CORONA ENERGY RETAIL 4 LTD"
"Bracknell Forest Council","http://opendatacommunities.org/id/unitary-authority/bracknell-forest","Bracknell Forest Council","00MA","Services to Young People","Other Services to Young People","Coopers Hill Youth Centre","Gas",01/02/2013 00:00:00,"30211066",642.58,"CORONA ENERGY RETAIL 4 LTD"
"Bracknell Forest Council","http://opendatacommunities.org/id/unitary-authority/bracknell-forest","Bracknell Forest Council","00MA","Libraries","Branch Libraries","Binfield Library","Gas",01/02/2013 00:00:00,"30211066",125.25,"CORONA ENERGY RETAIL 4 LTD"
"Bracknell Forest Council","http://opendatacommunities.org/id/unitary-authority/bracknell-forest","Bracknell Forest Council","00MA","Libraries","Branch Libraries","Birch Hill Library","Gas",01/02/2013 00:00:00,"30211066",71.73,"CORONA ENERGY RETAIL 4 LTD"
"Bracknell Forest Council","http://opendatacommunities.org/id/unitary-authority/bracknell-forest","Bracknell Forest Council","00MA","Learning Disability (under 65)","Day Care","Bracknell Day Services","Gas",01/02/2013 00:00:00,"30211066",1650.17,"CORONA ENERGY RETAIL 4 LTD"
"Bracknell Forest Council","http://opendatacommunities.org/id/unitary-authority/bracknell-forest","Bracknell Forest Council","00MA","Secondary Schools","Centrally Managed Expenditure - Secondary","College Hall PRU","Gas",01/02/2013 00:00:00,"30211066",372.67,"CORONA ENERGY RETAIL 4 LTD"
"Bracknell Forest Council","http://opendatacommunities.org/id/unitary-authority/bracknell-forest","Bracknell Forest Council","00MA","Services to Young People","Adult and Community Learning","Open Learning Centre - Brakenhale","Gas",01/02/2013 00:00:00,"30211066",944.86,"CORONA ENERGY RETAIL 4 LTD"
"Bracknell Forest Council","http://opendatacommunities.org/id/unitary-authority/bracknell-forest","Bracknell Forest Council","00MA","Primary Schools","Delegated Primary School Budgets","College Town - Infant & Nursery","Gas",01/02/2013 00:00:00,"30211066",828.02,"CORONA ENERGY RETAIL 4 LTD"
"Bracknell Forest Council","http://opendatacommunities.org/id/unitary-authority/bracknell-forest","Bracknell Forest Council","00MA","Primary Schools","Delegated Primary School Budgets","College Town - Infant & Nursery","Gas",01/02/2013 00:00:00,"30211066",69.51,"CORONA ENERGY RETAIL 4 LTD"
"Bracknell Forest Council","http://opendatacommunities.org/id/unitary-authority/bracknell-forest","Bracknell Forest Council","00MA","Primary Schools","Delegated Primary School Budgets","Cranbourne - Primary","Gas",01/02/2013 00:00:00,"30211066",567.66,"CORONA ENERGY RETAIL 4 LTD"
"Bracknell Forest Council","http://opendatacommunities.org/id/unitary-authority/bracknell-forest","Bracknell Forest Council","00MA","Secondary Schools","Delegated Secondary Schools Budgets","Easthampstead Park Community - Secondary","Gas",01/02/2013 00:00:00,"30211066",5822.19,"CORONA ENERGY RETAIL 4 LTD"
"Bracknell Forest Council","http://opendatacommunities.org/id/unitary-authority/bracknell-forest","Bracknell Forest Council","00MA","Primary Schools","Delegated Primary School Budgets","Winkfield St Mary's - Primary","Gas",01/02/2013 00:00:00,"30211066",367.62,"CORONA ENERGY RETAIL 4 LTD"
"Bracknell Forest Council","http://opendatacommunities.org/id/unitary-authority/bracknell-forest","Bracknell Forest Council","00MA","Primary Schools","Delegated Primary School Budgets","Wildmoor Heath School","Gas",01/02/2013 00:00:00,"30211066",457.61,"CORONA ENERGY RETAIL 4 LTD"
"Bracknell Forest Council","http://opendatacommunities.org/id/unitary-authority/bracknell-forest","Bracknell Forest Council","00MA","Secondary Schools","Delegated Secondary Schools Budgets","Edgbarrow - Secondary","Gas",01/02/2013 00:00:00,"30211066",3438.58,"CORONA ENERGY RETAIL 4 LTD"
"Bracknell Forest Council","http://opendatacommunities.org/id/unitary-authority/bracknell-forest","Bracknell Forest Council","00MA","Other Adult Services","Substance Abuse (Addictions)","TA Running Costs","Office Stationery",28/01/2013 00:00:00,"30210705",56.35,"BANNER"
"Bracknell Forest Council","http://opendatacommunities.org/id/unitary-authority/bracknell-forest","Bracknell Forest Council","00MA","Early Years","Children's Centres","The Rowans Children's Centre","Office Stationery",28/01/2013 00:00:00,"30210705",2.64,"BANNER"
"Bracknell Forest Council","http://opendatacommunities.org/id/unitary-authority/bracknell-forest","Bracknell Forest Council","00MA","Other Welfare Services","Other Welfare Services","Forestcare - Operational","Office Stationery",28/01/2013 00:00:00,"30210705",4.9,"BANNER"
"Bracknell Forest Council","http://opendatacommunities.org/id/unitary-authority/bracknell-forest","Bracknell Forest Council","00MA","Other Welfare Services","Other Welfare Services","Forestcare - Operational","Office Stationery",28/01/2013 00:00:00,"30210705",2.34,"BANNER"
"Bracknell Forest Council","http://opendatacommunities.org/id/unitary-authority/bracknell-forest","Bracknell Forest Council","00MA","Other Welfare Services","Other Welfare Services","Forestcare - Operational","Office Stationery",28/01/2013 00:00:00,"30210705",-41.82,"BANNER"
"Bracknell Forest Council","http://opendatacommunities.org/id/unitary-authority/bracknell-forest","Bracknell Forest Council","00MA","Other Welfare Services","Other Welfare Services","Forestcare - Operational","Office Stationery",28/01/2013 00:00:00,"30210705",56,"BANNER"
"Bracknell Forest Council","http://opendatacommunities.org/id/unitary-authority/bracknell-forest","Bracknell Forest Council","00MA","Other Welfare Services","Other Welfare Services","Forestcare - Operational","Office Stationery",28/01/2013 00:00:00,"30210705",48,"BANNER"
"Bracknell Forest Council","http://opendatacommunities.org/id/unitary-authority/bracknell-forest","Bracknell Forest Council","00MA","Other Welfare Services","Other Welfare Services","Forestcare - Operational","Office Stationery",28/01/2013 00:00:00,"30210705",28.57,"BANNER"
"Bracknell Forest Council","http://opendatacommunities.org/id/unitary-authority/bracknell-forest","Bracknell Forest Council","00MA","Other Welfare Services","Other Welfare Services","Forestcare - Operational","Office Stationery",28/01/2013 00:00:00,"30210705",10.38,"BANNER"
"Bracknell Forest Council","http://opendatacommunities.org/id/unitary-authority/bracknell-forest","Bracknell Forest Council","00MA","Recreation, Sports and Leisure","Indoor Sports & Recreation Facilities","Leisure DSO - Leisure Centre","Office Stationery",28/01/2013 00:00:00,"30210705",1.73,"BANNER"
"Bracknell Forest Council","http://opendatacommunities.org/id/unitary-authority/bracknell-forest","Bracknell Forest Council","00MA","Recreation, Sports and Leisure","Indoor Sports & Recreation Facilities","Leisure DSO - Leisure Centre","Office Stationery",28/01/2013 00:00:00,"30210705",56.51,"BANNER"
"Bracknell Forest Council","http://opendatacommunities.org/id/unitary-authority/bracknell-forest","Bracknell Forest Council","00MA","Recreation, Sports and Leisure","Indoor Sports & Recreation Facilities","Leisure DSO - Leisure Centre","Office Stationery",28/01/2013 00:00:00,"30210705",6.14,"BANNER"
"Bracknell Forest Council","http://opendatacommunities.org/id/unitary-authority/bracknell-forest","Bracknell Forest Council","00MA","Recreation, Sports and Leisure","Indoor Sports & Recreation Facilities","Leisure DSO - Leisure Centre","Office Stationery",28/01/2013 00:00:00,"30210705",17.4,"BANNER"
"Bracknell Forest Council","http://opendatacommunities.org/id/unitary-authority/bracknell-forest","Bracknell Forest Council","00MA","Recreation, Sports and Leisure","Indoor Sports & Recreation Facilities","Leisure DSO - Leisure Centre","Office Stationery",28/01/2013 00:00:00,"30210705",24.56,"BANNER"
"Bracknell Forest Council","http://opendatacommunities.org/id/unitary-authority/bracknell-forest","Bracknell Forest Council","00MA","Recreation, Sports and Leisure","Indoor Sports & Recreation Facilities","Leisure DSO - Coral Reef","Office Stationery",28/01/2013 00:00:00,"30210705",33.78,"BANNER"
"Bracknell Forest Council","http://opendatacommunities.org/id/unitary-authority/bracknell-forest","Bracknell Forest Council","00MA","Business Support","Premises Development","Great Hollands Shops","Gas",01/02/2013 00:00:00,"30211066",28.19,"CORONA ENERGY RETAIL 4 LTD"
"Bracknell Forest Council","http://opendatacommunities.org/id/unitary-authority/bracknell-forest","Bracknell Forest Council","00MA","Learning Disability (under 65)","Residential Care Home Placements","Waymead - Short Stay","Gas",01/02/2013 00:00:00,"30211066",93.45,"CORONA ENERGY RETAIL 4 LTD"
"Bracknell Forest Council","http://opendatacommunities.org/id/unitary-authority/bracknell-forest","Bracknell Forest Council","00MA","Services to Young People","Other Services to Young People","The Wayz","Gas",01/02/2013 00:00:00,"30211066",181.92,"CORONA ENERGY RETAIL 4 LTD"
"Bracknell Forest Council","http://opendatacommunities.org/id/unitary-authority/bracknell-forest","Bracknell Forest Council","00MA","Open Spaces","Community Parks & Open Spaces","Urban Parks  - Maintenance","Gas",01/02/2013 00:00:00,"30211066",287.38,"CORONA ENERGY RETAIL 4 LTD"
"Bracknell Forest Council","http://opendatacommunities.org/id/unitary-authority/bracknell-forest","Bracknell Forest Council","00MA","Central Support Services - COF","Construction and Property","Time Square Office","Gas",01/02/2013 00:00:00,"30211066",2960.16,"CORONA ENERGY RETAIL 4 LTD"
"Bracknell Forest Council","http://opendatacommunities.org/id/unitary-authority/bracknell-forest","Bracknell Forest Council","00MA","Libraries","Branch Libraries","Ascot Library","Gas",01/02/2013 00:00:00,"30211066",73.47,"CORONA ENERGY RETAIL 4 LTD"
"Bracknell Forest Council","http://opendatacommunities.org/id/unitary-authority/bracknell-forest","Bracknell Forest Council","00MA","Libraries","Branch Libraries","Harmans Water Library","Gas",01/02/2013 00:00:00,"30211066",87.67,"CORONA ENERGY RETAIL 4 LTD"
"Bracknell Forest Council","http://opendatacommunities.org/id/unitary-authority/bracknell-forest","Bracknell Forest Council","00MA","Services to Young People","Other Services to Young People","Great Hollands Youth Centre","Gas",01/02/2013 00:00:00,"30211066",240.39,"CORONA ENERGY RETAIL 4 LTD"
"Bracknell Forest Council","http://opendatacommunities.org/id/unitary-authority/bracknell-forest","Bracknell Forest Council","00MA","Children Looked After","Other children looked after services","Larchwood Running Costs","Gas",01/02/2013 00:00:00,"30211066",444.68,"CORONA ENERGY RETAIL 4 LTD"
"Bracknell Forest Council","http://opendatacommunities.org/id/unitary-authority/bracknell-forest","Bracknell Forest Council","00MA","Older People (Aged 65 or Over)","Residential Care Home Placements","Bridgewell Unit","Gas",01/02/2013 00:00:00,"30211066",1260.7,"CORONA ENERGY RETAIL 4 LTD"
"Bracknell Forest Council","http://opendatacommunities.org/id/unitary-authority/bracknell-forest","Bracknell Forest Council","00MA","Older People (Aged 65 or Over)","Residential Care Home Placements","Heathlands EPH","Gas",01/02/2013 00:00:00,"30211066",1641.24,"CORONA ENERGY RETAIL 4 LTD"
"Bracknell Forest Council","http://opendatacommunities.org/id/unitary-authority/bracknell-forest","Bracknell Forest Council","00MA","Secondary Schools","Delegated Secondary Schools Budgets","Garth Hill - Secondary","Gas",01/02/2013 00:00:00,"30211066",2699.01,"CORONA ENERGY RETAIL 4 LTD"
"Bracknell Forest Council","http://opendatacommunities.org/id/unitary-authority/bracknell-forest","Bracknell Forest Council","00MA","Primary Schools","Delegated Primary School Budgets","Ascot Heath - Infant","Gas",01/02/2013 00:00:00,"30211066",392.38,"CORONA ENERGY RETAIL 4 LTD"
"Bracknell Forest Council","http://opendatacommunities.org/id/unitary-authority/bracknell-forest","Bracknell Forest Council","00MA","Primary Schools","Delegated Primary School Budgets","Harmans Water - Primary","Gas",01/02/2013 00:00:00,"30211066",110.26,"CORONA ENERGY RETAIL 4 LTD"
"Bracknell Forest Council","http://opendatacommunities.org/id/unitary-authority/bracknell-forest","Bracknell Forest Council","00MA","Primary Schools","Delegated Primary School Budgets","St Michael's (Sandhurst) - Primary","Gas",01/02/2013 00:00:00,"30211066",120.61,"CORONA ENERGY RETAIL 4 LTD"
"Bracknell Forest Council","http://opendatacommunities.org/id/unitary-authority/bracknell-forest","Bracknell Forest Council","00MA","Youth Justice","Youth Offender Teams","YJB Core Funding","Office Stationery",28/01/2013 00:00:00,"30210705",29.64,"BANNER"
"Bracknell Forest Council","http://opendatacommunities.org/id/unitary-authority/bracknell-forest","Bracknell Forest Council","00MA","Early Years","Children's Centres","The Rowans Children's Centre","Office Stationery",28/01/2013 00:00:00,"30210705",2.25,"BANNER"
"Bracknell Forest Council","http://opendatacommunities.org/id/unitary-authority/bracknell-forest","Bracknell Forest Council","00MA","Early Years","Children's Centres","The Rowans Children's Centre","Office Stationery",28/01/2013 00:00:00,"30210705",1.6,"BANNER"
"Bracknell Forest Council","http://opendatacommunities.org/id/unitary-authority/bracknell-forest","Bracknell Forest Council","00MA","Early Years","Children's Centres","The Rowans Children's Centre","Office Stationery",28/01/2013 00:00:00,"30210705",1.17,"BANNER"
"Bracknell Forest Council","http://opendatacommunities.org/id/unitary-authority/bracknell-forest","Bracknell Forest Council","00MA","Early Years","Children's Centres","The Rowans Children's Centre","Office Stationery",28/01/2013 00:00:00,"30210705",0.94,"BANNER"
"Bracknell Forest Council","http://opendatacommunities.org/id/unitary-authority/bracknell-forest","Bracknell Forest Council","00MA","Older People (Aged 65 or Over)","Assessment & Care Management","Emergency Duty Team (Out of Hours Serv)","Office Stationery",28/01/2013 00:00:00,"30210705",19.3,"BANNER"
"Bracknell Forest Council","http://opendatacommunities.org/id/unitary-authority/bracknell-forest","Bracknell Forest Council","00MA","Older People (Aged 65 or Over)","Assessment & Care Management","Emergency Duty Team (Out of Hours Serv)","Office Stationery",28/01/2013 00:00:00,"30210705",3.39,"BANNER"
"Bracknell Forest Council","http://opendatacommunities.org/id/unitary-authority/bracknell-forest","Bracknell Forest Council","00MA","Older People (Aged 65 or Over)","Assessment & Care Management","Emergency Duty Team (Out of Hours Serv)","Office Stationery",28/01/2013 00:00:00,"30210705",2.49,"BANNER"
"Bracknell Forest Council","http://opendatacommunities.org/id/unitary-authority/bracknell-forest","Bracknell Forest Council","00MA","Commissioning and Social Work","Commissioning and Social Work","Administration Running Costs","Office Stationery",28/01/2013 00:00:00,"30210705",13.03,"BANNER"
"Bracknell Forest Council","http://opendatacommunities.org/id/unitary-authority/bracknell-forest","Bracknell Forest Council","00MA","Commissioning and Social Work","Commissioning and Social Work","Administration Running Costs","Office Stationery",28/01/2013 00:00:00,"30210705",9.52,"BANNER"
"Bracknell Forest Council","http://opendatacommunities.org/id/unitary-authority/bracknell-forest","Bracknell Forest Council","00MA","Recreation, Sports and Leisure","Indoor Sports & Recreation Facilities","Leisure DSO - Coral Reef","Office Stationery",28/01/2013 00:00:00,"30210705",21.88,"BANNER"
"Bracknell Forest Council","http://opendatacommunities.org/id/unitary-authority/bracknell-forest","Bracknell Forest Council","00MA","Services to Young People","Other Services to Young People","Portman Close Running Costs","Office Stationery",28/01/2013 00:00:00,"30210705",11.5,"BANNER"
"Bracknell Forest Council","http://opendatacommunities.org/id/unitary-authority/bracknell-forest","Bracknell Forest Council","00MA","Services to Young People","Other Services to Young People","Portman Close Running Costs","Office Stationery",28/01/2013 00:00:00,"30210705",9.46,"BANNER"
"Bracknell Forest Council","http://opendatacommunities.org/id/unitary-authority/bracknell-forest","Bracknell Forest Council","00MA","Services to Young People","Other Services to Young People","Portman Close Running Costs","Office Stationery",28/01/2013 00:00:00,"30210705",4.68,"BANNER"
"Bracknell Forest Council","http://opendatacommunities.org/id/unitary-authority/bracknell-forest","Bracknell Forest Council","00MA","Services to Young People","Other Services to Young People","Portman Close Running Costs","Office Stationery",28/01/2013 00:00:00,"30210705",4.54,"BANNER"
"Bracknell Forest Council","http://opendatacommunities.org/id/unitary-authority/bracknell-forest","Bracknell Forest Council","00MA","Services to Young People","Other Services to Young People","Portman Close Running Costs","Office Stationery",28/01/2013 00:00:00,"30210705",4.54,"BANNER"
"Bracknell Forest Council","http://opendatacommunities.org/id/unitary-authority/bracknell-forest","Bracknell Forest Council","00MA","Services to Young People","Other Services to Young People","Portman Close Running Costs","Office Stationery",28/01/2013 00:00:00,"30210705",0.98,"BANNER"
"Bracknell Forest Council","http://opendatacommunities.org/id/unitary-authority/bracknell-forest","Bracknell Forest Council","00MA","Services to Young People","Other Services to Young People","Portman Close Running Costs","Office Stationery",28/01/2013 00:00:00,"30210705",0.96,"BANNER"
"Bracknell Forest Council","http://opendatacommunities.org/id/unitary-authority/bracknell-forest","Bracknell Forest Council","00MA","Early Years","Children's Centres","The Rowans Children's Centre","Office Stationery",28/01/2013 00:00:00,"30210705",0.72,"BANNER"
"Bracknell Forest Council","http://opendatacommunities.org/id/unitary-authority/bracknell-forest","Bracknell Forest Council","00MA","Support Services & Management Costs","Management and Administration","Head of Service -Adults","Office Stationery",28/01/2013 00:00:00,"30210705",54.4,"BANNER"
"Bracknell Forest Council","http://opendatacommunities.org/id/unitary-authority/bracknell-forest","Bracknell Forest Council","00MA","Support Services & Management Costs","Management and Administration","Head of Service -Adults","Office Stationery",28/01/2013 00:00:00,"30210705",22.32,"BANNER"
"Bracknell Forest Council","http://opendatacommunities.org/id/unitary-authority/bracknell-forest","Bracknell Forest Council","00MA","Support Services & Management Costs","Management and Administration","Head of Service -Adults","Office Stationery",28/01/2013 00:00:00,"30210705",14.94,"BANNER"
"Bracknell Forest Council","http://opendatacommunities.org/id/unitary-authority/bracknell-forest","Bracknell Forest Council","00MA","Support Services & Management Costs","Management and Administration","Head of Service -Adults","Office Stationery",28/01/2013 00:00:00,"30210705",13.36,"BANNER"
"Bracknell Forest Council","http://opendatacommunities.org/id/unitary-authority/bracknell-forest","Bracknell Forest Council","00MA","Support Services & Management Costs","Management and Administration","Head of Service -Adults","Office Stationery",28/01/2013 00:00:00,"30210705",10.44,"BANNER"
"Bracknell Forest Council","http://opendatacommunities.org/id/unitary-authority/bracknell-forest","Bracknell Forest Council","00MA","Support Services & Management Costs","Management and Administration","Head of Service -Adults","Office Stationery",28/01/2013 00:00:00,"30210705",10.13,"BANNER"
"Bracknell Forest Council","http://opendatacommunities.org/id/unitary-authority/bracknell-forest","Bracknell Forest Council","00MA","Support Services & Management Costs","Management and Administration","Head of Service -Adults","Office Stationery",28/01/2013 00:00:00,"30210705",8.74,"BANNER"
"Bracknell Forest Council","http://opendatacommunities.org/id/unitary-authority/bracknell-forest","Bracknell Forest Council","00MA","Support Services & Management Costs","Management and Administration","Head of Service -Adults","Office Stationery",28/01/2013 00:00:00,"30210705",2.8,"BANNER"
"Bracknell Forest Council","http://opendatacommunities.org/id/unitary-authority/bracknell-forest","Bracknell Forest Council","00MA","Support Services & Management Costs","Management and Administration","Head of Service -Adults","Office Stationery",28/01/2013 00:00:00,"30210705",72.48,"BANNER"
"Bracknell Forest Council","http://opendatacommunities.org/id/unitary-authority/bracknell-forest","Bracknell Forest Council","00MA","Support Services & Management Costs","Management and Administration","Head of Service -Adults","Office Stationery",28/01/2013 00:00:00,"30210705",14.54,"BANNER"
"Bracknell Forest Council","http://opendatacommunities.org/id/unitary-authority/bracknell-forest","Bracknell Forest Council","00MA","Support Services & Management Costs","Management and Administration","Head of Service -Adults","Office Stationery",28/01/2013 00:00:00,"30210705",10.7,"BANNER"
"Bracknell Forest Council","http://opendatacommunities.org/id/unitary-authority/bracknell-forest","Bracknell Forest Council","00MA","Support Services & Management Costs","Management and Administration","Head of Service -Adults","Office Stationery",28/01/2013 00:00:00,"30210705",10.32,"BANNER"
"Bracknell Forest Council","http://opendatacommunities.org/id/unitary-authority/bracknell-forest","Bracknell Forest Council","00MA","Support Services & Management Costs","Management and Administration","Head of Service -Adults","Office Stationery",28/01/2013 00:00:00,"30210705",5.28,"BANNER"
"Bracknell Forest Council","http://opendatacommunities.org/id/unitary-authority/bracknell-forest","Bracknell Forest Council","00MA","Early Years","Children's Centres","The Rowans Children's Centre","Office Stationery",28/01/2013 00:00:00,"30210705",0.65,"BANNER"
"Bracknell Forest Council","http://opendatacommunities.org/id/unitary-authority/bracknell-forest","Bracknell Forest Council","00MA","Services to Young People","Other Services to Young People","Portman Close Running Costs","Office Stationery",28/01/2013 00:00:00,"30210705",0.73,"BANNER"
"Bracknell Forest Council","http://opendatacommunities.org/id/unitary-authority/bracknell-forest","Bracknell Forest Council","00MA","Services to Young People","Other Services to Young People","Portman Close Running Costs","Office Stationery",28/01/2013 00:00:00,"30210705",0.62,"BANNER"
"Bracknell Forest Council","http://opendatacommunities.org/id/unitary-authority/bracknell-forest","Bracknell Forest Council","00MA","Services to Young People","Other Services to Young People","Portman Close Running Costs","Office Stationery",28/01/2013 00:00:00,"30210705",0.19,"BANNER"
"Bracknell Forest Council","http://opendatacommunities.org/id/unitary-authority/bracknell-forest","Bracknell Forest Council","00MA","Services to Young People","Other Services to Young People","Portman Close Running Costs","Office Stationery",28/01/2013 00:00:00,"30210705",0.13,"BANNER"
"Bracknell Forest Council","http://opendatacommunities.org/id/unitary-authority/bracknell-forest","Bracknell Forest Council","00MA","Services to Young People","Other Services to Young People","Portman Close Running Costs","Office Stationery",28/01/2013 00:00:00,"30210705",48.15,"BANNER"
"Bracknell Forest Council","http://opendatacommunities.org/id/unitary-authority/bracknell-forest","Bracknell Forest Council","00MA","Services to Young People","Other Services to Young People","Portman Close Running Costs","Office Stationery",28/01/2013 00:00:00,"30210705",22.62,"BANNER"
"Bracknell Forest Council","http://opendatacommunities.org/id/unitary-authority/bracknell-forest","Bracknell Forest Council","00MA","Services to Young People","Other Services to Young People","Portman Close Running Costs","Office Stationery",28/01/2013 00:00:00,"30210705",22.62,"BANNER"
"Bracknell Forest Council","http://opendatacommunities.org/id/unitary-authority/bracknell-forest","Bracknell Forest Council","00MA","Recreation, Sports and Leisure","Indoor Sports & Recreation Facilities","Leisure DSO - Coral Reef","Office Stationery",28/01/2013 00:00:00,"30210705",18.61,"BANNER"
"Bracknell Forest Council","http://opendatacommunities.org/id/unitary-authority/bracknell-forest","Bracknell Forest Council","00MA","Recreation, Sports and Leisure","Indoor Sports & Recreation Facilities","Leisure DSO - Coral Reef","Office Stationery",28/01/2013 00:00:00,"30210705",8.38,"BANNER"
"Bracknell Forest Council","http://opendatacommunities.org/id/unitary-authority/bracknell-forest","Bracknell Forest Council","00MA","Recreation, Sports and Leisure","Indoor Sports & Recreation Facilities","Leisure DSO - Coral Reef","Office Stationery",28/01/2013 00:00:00,"30210705",5.6,"BANNER"
"Bracknell Forest Council","http://opendatacommunities.org/id/unitary-authority/bracknell-forest","Bracknell Forest Council","00MA","Recreation, Sports and Leisure","Indoor Sports & Recreation Facilities","Leisure DSO - Coral Reef","Office Stationery",28/01/2013 00:00:00,"30210705",1.83,"BANNER"
"Bracknell Forest Council","http://opendatacommunities.org/id/unitary-authority/bracknell-forest","Bracknell Forest Council","00MA","Recreation, Sports and Leisure","Indoor Sports & Recreation Facilities","Leisure DSO - Coral Reef","Office Stationery",28/01/2013 00:00:00,"30210705",1.59,"BANNER"
"Bracknell Forest Council","http://opendatacommunities.org/id/unitary-authority/bracknell-forest","Bracknell Forest Council","00MA","Support Services & Management Costs","Management and Administration","Head of Service -Adults","Office Stationery",28/01/2013 00:00:00,"30210705",4.73,"BANNER"
"Bracknell Forest Council","http://opendatacommunities.org/id/unitary-authority/bracknell-forest","Bracknell Forest Council","00MA","Support Services & Management Costs","Management and Administration","Head of Service -Adults","Office Stationery",28/01/2013 00:00:00,"30210705",1.7,"BANNER"
"Bracknell Forest Council","http://opendatacommunities.org/id/unitary-authority/bracknell-forest","Bracknell Forest Council","00MA","Support Services & Management Costs","Management and Administration","Head of Service -Adults","Office Stationery",28/01/2013 00:00:00,"30210705",24.39,"BANNER"
"Bracknell Forest Council","http://opendatacommunities.org/id/unitary-authority/bracknell-forest","Bracknell Forest Council","00MA","Support Services & Management Costs","Management and Administration","Head of Service -Adults","Office Stationery",28/01/2013 00:00:00,"30210705",10.68,"BANNER"
"Bracknell Forest Council","http://opendatacommunities.org/id/unitary-authority/bracknell-forest","Bracknell Forest Council","00MA","Other Adult Services","Substance Abuse (Addictions)","TA Running Costs","Office Stationery",28/01/2013 00:00:00,"30210705",31.76,"BANNER"
"Bracknell Forest Council","http://opendatacommunities.org/id/unitary-authority/bracknell-forest","Bracknell Forest Council","00MA","Other Adult Services","Substance Abuse (Addictions)","TA Running Costs","Office Stationery",28/01/2013 00:00:00,"30210705",21.52,"BANNER"
"Bracknell Forest Council","http://opendatacommunities.org/id/unitary-authority/bracknell-forest","Bracknell Forest Council","00MA","Other Adult Services","Substance Abuse (Addictions)","TA Running Costs","Office Stationery",28/01/2013 00:00:00,"30210705",21.52,"BANNER"
"Bracknell Forest Council","http://opendatacommunities.org/id/unitary-authority/bracknell-forest","Bracknell Forest Council","00MA","Other Adult Services","Substance Abuse (Addictions)","TA Running Costs","Office Stationery",28/01/2013 00:00:00,"30210705",3.99,"BANNER"
"Bracknell Forest Council","http://opendatacommunities.org/id/unitary-authority/bracknell-forest","Bracknell Forest Council","00MA","Other Adult Services","Substance Abuse (Addictions)","TA Running Costs","Office Stationery",28/01/2013 00:00:00,"30210705",3.9,"BANNER"
"Bracknell Forest Council","http://opendatacommunities.org/id/unitary-authority/bracknell-forest","Bracknell Forest Council","00MA","Other Adult Services","Substance Abuse (Addictions)","TA Running Costs","Office Stationery",28/01/2013 00:00:00,"30210705",1.92,"BANNER"
"Bracknell Forest Council","http://opendatacommunities.org/id/unitary-authority/bracknell-forest","Bracknell Forest Council","00MA","Other Adult Services","Substance Abuse (Addictions)","TA Running Costs","Office Stationery",28/01/2013 00:00:00,"30210705",1.24,"BANNER"
"Bracknell Forest Council","http://opendatacommunities.org/id/unitary-authority/bracknell-forest","Bracknell Forest Council","00MA","Support Services & Management Costs","Management and Administration","Head of Service -Adults","Office Stationery",28/01/2013 00:00:00,"30210705",6.8,"BANNER"
"Bracknell Forest Council","http://opendatacommunities.org/id/unitary-authority/bracknell-forest","Bracknell Forest Council","00MA","Support Services & Management Costs","Management and Administration","Head of Service -Adults","Office Stationery",28/01/2013 00:00:00,"30210705",3.27,"BANNER"
"Bracknell Forest Council","http://opendatacommunities.org/id/unitary-authority/bracknell-forest","Bracknell Forest Council","00MA","Support Services & Management Costs","Management and Administration","Head of Service -Adults","Office Stationery",28/01/2013 00:00:00,"30210705",9.46,"BANNER"
"Bracknell Forest Council","http://opendatacommunities.org/id/unitary-authority/bracknell-forest","Bracknell Forest Council","00MA","Support Services & Management Costs","Management and Administration","Head of Service -Adults","Office Stationery",28/01/2013 00:00:00,"30210705",8.91,"BANNER"
"Bracknell Forest Council","http://opendatacommunities.org/id/unitary-authority/bracknell-forest","Bracknell Forest Council","00MA","Older People (Aged 65 or Over)","Assessment & Care Management","Emergency Duty Team (Out of Hours Serv)","Office Stationery",28/01/2013 00:00:00,"30210705",35.7,"BANNER"
"Bracknell Forest Council","http://opendatacommunities.org/id/unitary-authority/bracknell-forest","Bracknell Forest Council","00MA","Other Welfare Services","Other Welfare Services","Forestcare - Operational","Office Stationery",28/01/2013 00:00:00,"30210705",8.86,"BANNER"
"Bracknell Forest Council","http://opendatacommunities.org/id/unitary-authority/bracknell-forest","Bracknell Forest Council","00MA","Other Welfare Services","Other Welfare Services","Forestcare - Operational","Office Stationery",28/01/2013 00:00:00,"30210705",5.81,"BANNER"
"Bracknell Forest Council","http://opendatacommunities.org/id/unitary-authority/bracknell-forest","Bracknell Forest Council","00MA","Other Welfare Services","Other Welfare Services","Forestcare - Operational","Office Stationery",28/01/2013 00:00:00,"30210705",0.7,"BANNER"
"Bracknell Forest Council","http://opendatacommunities.org/id/unitary-authority/bracknell-forest","Bracknell Forest Council","00MA","Recreation, Sports and Leisure","Dual Use Centres","Edgbarrow/Sandhurst Joint Expenses","Office Stationery",28/01/2013 00:00:00,"30210705",44.31,"BANNER"
"Bracknell Forest Council","http://opendatacommunities.org/id/unitary-authority/bracknell-forest","Bracknell Forest Council","00MA","Early Years","Children's Centres","The Willows Children's Centre","Office Stationery",28/01/2013 00:00:00,"30210705",9.03,"BANNER"
"Bracknell Forest Council","http://opendatacommunities.org/id/unitary-authority/bracknell-forest","Bracknell Forest Council","00MA","Holding Accounts in Budget Book COF","Corporate Services - Office Services","Office Services - General Expenses","Office Stationery",28/01/2013 00:00:00,"30210705",38.12,"BANNER"
"Bracknell Forest Council","http://opendatacommunities.org/id/unitary-authority/bracknell-forest","Bracknell Forest Council","00MA","Early Years","Children's Centres","The Willows Children's Centre","Office Stationery",28/01/2013 00:00:00,"30210705",6.18,"BANNER"
"Bracknell Forest Council","http://opendatacommunities.org/id/unitary-authority/bracknell-forest","Bracknell Forest Council","00MA","Early Years","Children's Centres","The Willows Children's Centre","Office Stationery",28/01/2013 00:00:00,"30210705",4.04,"BANNER"
"Bracknell Forest Council","http://opendatacommunities.org/id/unitary-authority/bracknell-forest","Bracknell Forest Council","00MA","Early Years","Children's Centres","The Willows Children's Centre","Office Stationery",28/01/2013 00:00:00,"30210705",12.12,"BANNER"
"Bracknell Forest Council","http://opendatacommunities.org/id/unitary-authority/bracknell-forest","Bracknell Forest Council","00MA","Early Years","Children's Centres","The Willows Children's Centre","Office Stationery",28/01/2013 00:00:00,"30210705",113.82,"BANNER"
"Bracknell Forest Council","http://opendatacommunities.org/id/unitary-authority/bracknell-forest","Bracknell Forest Council","00MA","Support Services & Management Costs","Management and Administration","Head of Service -Adults","Office Stationery",28/01/2013 00:00:00,"30210705",2.14,"BANNER"
"Bracknell Forest Council","http://opendatacommunities.org/id/unitary-authority/bracknell-forest","Bracknell Forest Council","00MA","Support Services & Management Costs","Management and Administration","Head of Service -Adults","Office Stationery",28/01/2013 00:00:00,"30210705",1.16,"BANNER"
"Bracknell Forest Council","http://opendatacommunities.org/id/unitary-authority/bracknell-forest","Bracknell Forest Council","00MA","Central Support Services - COF","Customer Service Centre","Customer Services","Office Stationery",28/01/2013 00:00:00,"30210705",144,"BANNER"
"Bracknell Forest Council","http://opendatacommunities.org/id/unitary-authority/bracknell-forest","Bracknell Forest Council","00MA","Early Years","Children's Centres","The Rowans Children's Centre","Office Stationery",28/01/2013 00:00:00,"30210705",8.9,"BANNER"
"Bracknell Forest Council","http://opendatacommunities.org/id/unitary-authority/bracknell-forest","Bracknell Forest Council","00MA","Early Years","Children's Centres","The Rowans Children's Centre","Office Stationery",28/01/2013 00:00:00,"30210705",5.35,"BANNER"
"Bracknell Forest Council","http://opendatacommunities.org/id/unitary-authority/bracknell-forest","Bracknell Forest Council","00MA","Early Years","Children's Centres","The Rowans Children's Centre","Office Stationery",28/01/2013 00:00:00,"30210705",6.97,"BANNER"
"Bracknell Forest Council","http://opendatacommunities.org/id/unitary-authority/bracknell-forest","Bracknell Forest Council","00MA","Early Years","Children's Centres","The Rowans Children's Centre","Office Stationery",28/01/2013 00:00:00,"30210705",15.42,"BANNER"
"Bracknell Forest Council","http://opendatacommunities.org/id/unitary-authority/bracknell-forest","Bracknell Forest Council","00MA","Early Years","Children's Centres","The Rowans Children's Centre","Office Stationery",28/01/2013 00:00:00,"30210705",10.62,"BANNER"
"Bracknell Forest Council","http://opendatacommunities.org/id/unitary-authority/bracknell-forest","Bracknell Forest Council","00MA","Recreation, Sports and Leisure","Dual Use Centres","Edgbarrow/Sandhurst Joint Expenses","Office Stationery",28/01/2013 00:00:00,"30210705",19.8,"BANNER"
"Bracknell Forest Council","http://opendatacommunities.org/id/unitary-authority/bracknell-forest","Bracknell Forest Council","00MA","Recreation, Sports and Leisure","Dual Use Centres","Edgbarrow/Sandhurst Joint Expenses","Office Stationery",28/01/2013 00:00:00,"30210705",15.36,"BANNER"
"Bracknell Forest Council","http://opendatacommunities.org/id/unitary-authority/bracknell-forest","Bracknell Forest Council","00MA","Recreation, Sports and Leisure","Dual Use Centres","Edgbarrow/Sandhurst Joint Expenses","Office Stationery",28/01/2013 00:00:00,"30210705",3.4,"BANNER"
"Bracknell Forest Council","http://opendatacommunities.org/id/unitary-authority/bracknell-forest","Bracknell Forest Council","00MA","Services to Young People","Other Services to Young People","Youth & Community Administration","Office Stationery",28/01/2013 00:00:00,"30210705",43.04,"BANNER"
"Bracknell Forest Council","http://opendatacommunities.org/id/unitary-authority/bracknell-forest","Bracknell Forest Council","00MA","Services to Young People","Other Services to Young People","Youth & Community Administration","Office Stationery",28/01/2013 00:00:00,"30210705",30.4,"BANNER"
"Bracknell Forest Council","http://opendatacommunities.org/id/unitary-authority/bracknell-forest","Bracknell Forest Council","00MA","Support Services & Management Costs","Management and Administration","Head of Service -Adults","Office Stationery",28/01/2013 00:00:00,"30210705",-7.47,"BANNER"
"Bracknell Forest Council","http://opendatacommunities.org/id/unitary-authority/bracknell-forest","Bracknell Forest Council","00MA","Support Services & Management Costs","Management and Administration","Head of Service -Adults","Office Stationery",28/01/2013 00:00:00,"30210705",7.47,"BANNER"
"Bracknell Forest Council","http://opendatacommunities.org/id/unitary-authority/bracknell-forest","Bracknell Forest Council","00MA","Management and Support Services - CYPL","Strategy, Resources and Early Interventions","Reception & Office Services","Office Stationery",28/01/2013 00:00:00,"30210705",119,"BANNER"
"Bracknell Forest Council","http://opendatacommunities.org/id/unitary-authority/bracknell-forest","Bracknell Forest Council","00MA","Management and Support Services - CYPL","Strategy, Resources and Early Interventions","Reception & Office Services","Office Stationery",28/01/2013 00:00:00,"30210705",13.47,"BANNER"
"Bracknell Forest Council","http://opendatacommunities.org/id/unitary-authority/bracknell-forest","Bracknell Forest Council","00MA","Support Services & Management Costs","Management and Administration","Head of Service -Adults","Office Stationery",28/01/2013 00:00:00,"30210705",5.83,"BANNER"
"Bracknell Forest Council","http://opendatacommunities.org/id/unitary-authority/bracknell-forest","Bracknell Forest Council","00MA","Support Services & Management Costs","Management and Administration","Head of Service -Adults","Office Stationery",28/01/2013 00:00:00,"30210705",5.83,"BANNER"
"Bracknell Forest Council","http://opendatacommunities.org/id/unitary-authority/bracknell-forest","Bracknell Forest Council","00MA","Support Services & Management Costs","Management and Administration","Head of Service -Adults","Office Stationery",28/01/2013 00:00:00,"30210705",5.83,"BANNER"
"Bracknell Forest Council","http://opendatacommunities.org/id/unitary-authority/bracknell-forest","Bracknell Forest Council","00MA","Support Services & Management Costs","Management and Administration","Head of Service -Adults","Office Stationery",28/01/2013 00:00:00,"30210705",5.83,"BANNER"
"Bracknell Forest Council","http://opendatacommunities.org/id/unitary-authority/bracknell-forest","Bracknell Forest Council","00MA","Support Services & Management Costs","Management and Administration","Head of Service -Adults","Office Stationery",28/01/2013 00:00:00,"30210705",5.83,"BANNER"
"Bracknell Forest Council","http://opendatacommunities.org/id/unitary-authority/bracknell-forest","Bracknell Forest Council","00MA","Support Services & Management Costs","Management and Administration","Head of Service -Adults","Office Stationery",28/01/2013 00:00:00,"30210705",3,"BANNER"
"Bracknell Forest Council","http://opendatacommunities.org/id/unitary-authority/bracknell-forest","Bracknell Forest Council","00MA","Support Services & Management Costs","Management and Administration","Head of Service -Adults","Office Stationery",28/01/2013 00:00:00,"30210705",1.17,"BANNER"
"Bracknell Forest Council","http://opendatacommunities.org/id/unitary-authority/bracknell-forest","Bracknell Forest Council","00MA","Central Support Services - COF","Fleet","Integrated Transport Unit","Office Stationery",28/01/2013 00:00:00,"30210705",45.23,"BANNER"
"Bracknell Forest Council","http://opendatacommunities.org/id/unitary-authority/bracknell-forest","Bracknell Forest Council","00MA","Early Years","Children's Centres","The Willows Children's Centre","Office Stationery",28/01/2013 00:00:00,"30210705",28.76,"BANNER"
"Bracknell Forest Council","http://opendatacommunities.org/id/unitary-authority/bracknell-forest","Bracknell Forest Council","00MA","Early Years","Children's Centres","The Willows Children's Centre","Office Stationery",28/01/2013 00:00:00,"30210705",3.12,"BANNER"
"Bracknell Forest Council","http://opendatacommunities.org/id/unitary-authority/bracknell-forest","Bracknell Forest Council","00MA","Early Years","Children's Centres","The Willows Children's Centre","Office Stationery",28/01/2013 00:00:00,"30210705",3,"BANNER"
"Bracknell Forest Council","http://opendatacommunities.org/id/unitary-authority/bracknell-forest","Bracknell Forest Council","00MA","Early Years","Children's Centres","The Willows Children's Centre","Office Stationery",28/01/2013 00:00:00,"30210705",1.43,"BANNER"
"Bracknell Forest Council","http://opendatacommunities.org/id/unitary-authority/bracknell-forest","Bracknell Forest Council","00MA","Early Years","Children's Centres","The Willows Children's Centre","Office Stationery",28/01/2013 00:00:00,"30210705",0.48,"BANNER"
"Bracknell Forest Council","http://opendatacommunities.org/id/unitary-authority/bracknell-forest","Bracknell Forest Council","00MA","Early Years","Children's Centres","The Willows Children's Centre","Office Stationery",28/01/2013 00:00:00,"30210705",0.21,"BANNER"
"Bracknell Forest Council","http://opendatacommunities.org/id/unitary-authority/bracknell-forest","Bracknell Forest Council","00MA","Management and Support Services - CYPL","Unallocated Early years Related Expenditure","SSEYCG Management & Admin","Office Stationery",28/01/2013 00:00:00,"30210705",24.52,"BANNER"
"Bracknell Forest Council","http://opendatacommunities.org/id/unitary-authority/bracknell-forest","Bracknell Forest Council","00MA","Support Services & Management Costs","Management and Administration","Head of Service -Adults","Office Stationery",28/01/2013 00:00:00,"30210705",1.49,"BANNER"
"Bracknell Forest Council","http://opendatacommunities.org/id/unitary-authority/bracknell-forest","Bracknell Forest Council","00MA","Support Services & Management Costs","Management and Administration","Head of Service -Adults","Office Stationery",28/01/2013 00:00:00,"30210705",132.88,"BANNER"
"Bracknell Forest Council","http://opendatacommunities.org/id/unitary-authority/bracknell-forest","Bracknell Forest Council","00MA","Support Services & Management Costs","Management and Administration","Head of Service -Adults","Office Stationery",28/01/2013 00:00:00,"30210705",12.93,"BANNER"
"Bracknell Forest Council","http://opendatacommunities.org/id/unitary-authority/bracknell-forest","Bracknell Forest Council","00MA","Support Services & Management Costs","Management and Administration","Head of Service -Adults","Office Stationery",28/01/2013 00:00:00,"30210705",0.6,"BANNER"
"Bracknell Forest Council","http://opendatacommunities.org/id/unitary-authority/bracknell-forest","Bracknell Forest Council","00MA","Support Services & Management Costs","Management and Administration","Head of Service -Adults","Office Stationery",28/01/2013 00:00:00,"30210705",10.53,"BANNER"
"Bracknell Forest Council","http://opendatacommunities.org/id/unitary-authority/bracknell-forest","Bracknell Forest Council","00MA","Support Services & Management Costs","Management and Administration","Head of Service -Adults","Office Stationery",28/01/2013 00:00:00,"30210705",1.06,"BANNER"
"Bracknell Forest Council","http://opendatacommunities.org/id/unitary-authority/bracknell-forest","Bracknell Forest Council","00MA","Support Services & Management Costs","Management and Administration","Head of Service -Adults","Office Stationery",28/01/2013 00:00:00,"30210705",7.47,"BANNER"
"Bracknell Forest Council","http://opendatacommunities.org/id/unitary-authority/bracknell-forest","Bracknell Forest Council","00MA","Older People (Aged 65 or Over)","Home Care","Homecare - Dementia Team","Office Stationery",28/01/2013 00:00:00,"30210705",12.08,"BANNER"
"Bracknell Forest Council","http://opendatacommunities.org/id/unitary-authority/bracknell-forest","Bracknell Forest Council","00MA","Older People (Aged 65 or Over)","Home Care","Homecare - Dementia Team","Office Stationery",28/01/2013 00:00:00,"30210705",15.54,"BANNER"
"Bracknell Forest Council","http://opendatacommunities.org/id/unitary-authority/bracknell-forest","Bracknell Forest Council","00MA","Commissioning and Social Work","Commissioning and Social Work","Administration Running Costs","Office Stationery",28/01/2013 00:00:00,"30210705",116.7,"BANNER"
"Bracknell Forest Council","http://opendatacommunities.org/id/unitary-authority/bracknell-forest","Bracknell Forest Council","00MA","Commissioning and Social Work","Commissioning and Social Work","Administration Running Costs","Office Stationery",28/01/2013 00:00:00,"30210705",94.25,"BANNER"
"Bracknell Forest Council","http://opendatacommunities.org/id/unitary-authority/bracknell-forest","Bracknell Forest Council","00MA","Commissioning and Social Work","Commissioning and Social Work","Administration Running Costs","Office Stationery",28/01/2013 00:00:00,"30210705",17.2,"BANNER"
"Bracknell Forest Council","http://opendatacommunities.org/id/unitary-authority/bracknell-forest","Bracknell Forest Council","00MA","Commissioning and Social Work","Commissioning and Social Work","Administration Running Costs","Office Stationery",28/01/2013 00:00:00,"30210705",13.11,"BANNER"
"Bracknell Forest Council","http://opendatacommunities.org/id/unitary-authority/bracknell-forest","Bracknell Forest Council","00MA","Support Services & Management Costs","Management and Administration","Head of Service -Adults","Office Stationery",28/01/2013 00:00:00,"30210705",56.26,"BANNER"
"Bracknell Forest Council","http://opendatacommunities.org/id/unitary-authority/bracknell-forest","Bracknell Forest Council","00MA","Registration of Electors","Registration of Electors","Electoral Registration","Office Stationery",28/01/2013 00:00:00,"30210705",50.01,"BANNER"
"Bracknell Forest Council","http://opendatacommunities.org/id/unitary-authority/bracknell-forest","Bracknell Forest Council","00MA","Services to Young People","Other Services to Young People","Portman Close Running Costs","Office Stationery",28/01/2013 00:00:00,"30210705",22.62,"BANNER"
"Bracknell Forest Council","http://opendatacommunities.org/id/unitary-authority/bracknell-forest","Bracknell Forest Council","00MA","Services to Young People","Other Services to Young People","Portman Close Running Costs","Office Stationery",28/01/2013 00:00:00,"30210705",36.01,"BANNER"
"Bracknell Forest Council","http://opendatacommunities.org/id/unitary-authority/bracknell-forest","Bracknell Forest Council","00MA","Services to Young People","Other Services to Young People","Portman Close Running Costs","Office Stationery",28/01/2013 00:00:00,"30210705",120.8,"BANNER"
"Bracknell Forest Council","http://opendatacommunities.org/id/unitary-authority/bracknell-forest","Bracknell Forest Council","00MA","Recreation, Sports and Leisure","Indoor Sports & Recreation Facilities","Leisure DSO - Leisure Centre","Office Stationery",28/01/2013 00:00:00,"30210705",57.94,"BANNER"
"Bracknell Forest Council","http://opendatacommunities.org/id/unitary-authority/bracknell-forest","Bracknell Forest Council","00MA","Recreation, Sports and Leisure","Indoor Sports & Recreation Facilities","Leisure DSO - Leisure Centre","Office Stationery",28/01/2013 00:00:00,"30210705",23.8,"BANNER"
"Bracknell Forest Council","http://opendatacommunities.org/id/unitary-authority/bracknell-forest","Bracknell Forest Council","00MA","Support Services & Management Costs","Management and Administration","Head of Service -Adults","Office Stationery",28/01/2013 00:00:00,"30210705",30.96,"BANNER"
"Bracknell Forest Council","http://opendatacommunities.org/id/unitary-authority/bracknell-forest","Bracknell Forest Council","00MA","Support Services & Management Costs","Management and Administration","Head of Service -Adults","Office Stationery",28/01/2013 00:00:00,"30210705",20.72,"BANNER"
"Bracknell Forest Council","http://opendatacommunities.org/id/unitary-authority/bracknell-forest","Bracknell Forest Council","00MA","Commissioning and Social Work","Commissioning and Social Work","Administration Running Costs","Office Stationery",28/01/2013 00:00:00,"30210705",2.08,"BANNER"
"Bracknell Forest Council","http://opendatacommunities.org/id/unitary-authority/bracknell-forest","Bracknell Forest Council","00MA","Commissioning and Social Work","Commissioning and Social Work","Administration Running Costs","Office Stationery",28/01/2013 00:00:00,"30210705",8.6,"BANNER"
"Bracknell Forest Council","http://opendatacommunities.org/id/unitary-authority/bracknell-forest","Bracknell Forest Council","00MA","Management and Support Services - CYPL","Strategy, Resources and Early Interventions","Reception & Office Services","Office Stationery",28/01/2013 00:00:00,"30210705",119,"BANNER"
"Bracknell Forest Council","http://opendatacommunities.org/id/unitary-authority/bracknell-forest","Bracknell Forest Council","00MA","Management and Support Services - CYPL","Unallocated Schools Budget Related Expenditure","TASS - Other","Office Stationery",28/01/2013 00:00:00,"30210705",229,"BANNER"
"Bracknell Forest Council","http://opendatacommunities.org/id/unitary-authority/bracknell-forest","Bracknell Forest Council","00MA","Management and Support Services - CYPL","Unallocated Early years Related Expenditure","SSEYCG Management & Admin","Office Stationery",28/01/2013 00:00:00,"30210705",4.31,"BANNER"
"Bracknell Forest Council","http://opendatacommunities.org/id/unitary-authority/bracknell-forest","Bracknell Forest Council","00MA","Management and Support Services - CYPL","Unallocated Early years Related Expenditure","SSEYCG Management & Admin","Office Stationery",28/01/2013 00:00:00,"30210705",0.9,"BANNER"
"Bracknell Forest Council","http://opendatacommunities.org/id/unitary-authority/bracknell-forest","Bracknell Forest Council","00MA","Recreation, Sports and Leisure","Indoor Sports & Recreation Facilities","Leisure DSO - Leisure Centre","Office Stationery",28/01/2013 00:00:00,"30210705",8.32,"BANNER"
"Bracknell Forest Council","http://opendatacommunities.org/id/unitary-authority/bracknell-forest","Bracknell Forest Council","00MA","Recreation, Sports and Leisure","Indoor Sports & Recreation Facilities","Leisure DSO - Leisure Centre","Office Stationery",28/01/2013 00:00:00,"30210705",3.1,"BANNER"
"Bracknell Forest Council","http://opendatacommunities.org/id/unitary-authority/bracknell-forest","Bracknell Forest Council","00MA","Central Support Services - COF","Legal","Legal Services","Office Stationery",28/01/2013 00:00:00,"30210705",19.57,"BANNER"
"Bracknell Forest Council","http://opendatacommunities.org/id/unitary-authority/bracknell-forest","Bracknell Forest Council","00MA","Central Support Services - COF","Legal","Legal Services","Office Stationery",28/01/2013 00:00:00,"30210705",7.16,"BANNER"
"Bracknell Forest Council","http://opendatacommunities.org/id/unitary-authority/bracknell-forest","Bracknell Forest Council","00MA","Central Support Services - COF","Legal","Legal Services","Office Stationery",28/01/2013 00:00:00,"30210705",0.7,"BANNER"
"Bracknell Forest Council","http://opendatacommunities.org/id/unitary-authority/bracknell-forest","Bracknell Forest Council","00MA","Commissioning and Social Work","Commissioning and Social Work","Administration Running Costs","Office Stationery",28/01/2013 00:00:00,"30210705",7.76,"BANNER"
"Bracknell Forest Council","http://opendatacommunities.org/id/unitary-authority/bracknell-forest","Bracknell Forest Council","00MA","Commissioning and Social Work","Commissioning and Social Work","Administration Running Costs","Office Stationery",28/01/2013 00:00:00,"30210705",123.95,"BANNER"
"Bracknell Forest Council","http://opendatacommunities.org/id/unitary-authority/bracknell-forest","Bracknell Forest Council","00MA","Commissioning and Social Work","Commissioning and Social Work","Administration Running Costs","Office Stationery",28/01/2013 00:00:00,"30210705",84.12,"BANNER"
"Bracknell Forest Council","http://opendatacommunities.org/id/unitary-authority/bracknell-forest","Bracknell Forest Council","00MA","Commissioning and Social Work","Commissioning and Social Work","Administration Running Costs","Office Stationery",28/01/2013 00:00:00,"30210705",73.17,"BANNER"
"Bracknell Forest Council","http://opendatacommunities.org/id/unitary-authority/bracknell-forest","Bracknell Forest Council","00MA","Commissioning and Social Work","Commissioning and Social Work","Administration Running Costs","Office Stationery",28/01/2013 00:00:00,"30210705",50.22,"BANNER"
"Bracknell Forest Council","http://opendatacommunities.org/id/unitary-authority/bracknell-forest","Bracknell Forest Council","00MA","Commissioning and Social Work","Commissioning and Social Work","Administration Running Costs","Office Stationery",28/01/2013 00:00:00,"30210705",17.19,"BANNER"
"Bracknell Forest Council","http://opendatacommunities.org/id/unitary-authority/bracknell-forest","Bracknell Forest Council","00MA","Commissioning and Social Work","Commissioning and Social Work","Administration Running Costs","Office Stationery",28/01/2013 00:00:00,"30210705",14.55,"BANNER"
"Bracknell Forest Council","http://opendatacommunities.org/id/unitary-authority/bracknell-forest","Bracknell Forest Council","00MA","Support Services & Management Costs","Management and Administration","Head of Service -Adults","Office Stationery",28/01/2013 00:00:00,"30210705",14.64,"BANNER"
"Bracknell Forest Council","http://opendatacommunities.org/id/unitary-authority/bracknell-forest","Bracknell Forest Council","00MA","Support Services & Management Costs","Management and Administration","Head of Service -Adults","Office Stationery",28/01/2013 00:00:00,"30210705",4.62,"BANNER"
"Bracknell Forest Council","http://opendatacommunities.org/id/unitary-authority/bracknell-forest","Bracknell Forest Council","00MA","Support Services & Management Costs","Management and Administration","Head of Service -Adults","Office Stationery",28/01/2013 00:00:00,"30210705",3.08,"BANNER"
"Bracknell Forest Council","http://opendatacommunities.org/id/unitary-authority/bracknell-forest","Bracknell Forest Council","00MA","Support Services & Management Costs","Management and Administration","Head of Service -Adults","Office Stationery",28/01/2013 00:00:00,"30210705",0.96,"BANNER"
"Bracknell Forest Council","http://opendatacommunities.org/id/unitary-authority/bracknell-forest","Bracknell Forest Council","00MA","Support Services & Management Costs","Management and Administration","Head of Service -Adults","Office Stationery",28/01/2013 00:00:00,"30210705",0.64,"BANNER"
"Bracknell Forest Council","http://opendatacommunities.org/id/unitary-authority/bracknell-forest","Bracknell Forest Council","00MA","Older People (Aged 65 or Over)","Nursing Home Placements","Nursing EMI Placements - Elderly","Contracted Services",15/01/2013 00:00:00,"30209987",2258.96,"BARCHESTER HEALTHCARE LTD"
"Bracknell Forest Council","http://opendatacommunities.org/id/unitary-authority/bracknell-forest","Bracknell Forest Council","00MA","Older People (Aged 65 or Over)","Nursing Home Placements","Nursing Home Placements-Elderly","Contracted Services",15/01/2013 00:00:00,"30209987",1971.76,"BARCHESTER HEALTHCARE LTD"
"Bracknell Forest Council","http://opendatacommunities.org/id/unitary-authority/bracknell-forest","Bracknell Forest Council","00MA","Older People (Aged 65 or Over)","Nursing Home Placements","Nursing Home Placements-Elderly","Contracted Services",15/01/2013 00:00:00,"30209987",1971.76,"BARCHESTER HEALTHCARE LTD"
"Bracknell Forest Council","http://opendatacommunities.org/id/unitary-authority/bracknell-forest","Bracknell Forest Council","00MA","Children Looked After","Fostering services","Independent Fostering (Non BFBC)","Contracted Services",16/01/2013 00:00:00,"6507156",3322.89,"BARNARDO SERVICES LTD"
"Bracknell Forest Council","http://opendatacommunities.org/id/unitary-authority/bracknell-forest","Bracknell Forest Council","00MA","Children Looked After","Fostering services","Independent Fostering (Non BFBC)","Contracted Services",16/01/2013 00:00:00,"6507157",3322.89,"BARNARDO SERVICES LTD"
"Bracknell Forest Council","http://opendatacommunities.org/id/unitary-authority/bracknell-forest","Bracknell Forest Council","00MA","Children Looked After","Fostering services","Independent Fostering (Non BFBC)","Contracted Services",18/12/2012 00:00:00,"6507158",3322.89,"BARNARDO SERVICES LTD"
"Bracknell Forest Council","http://opendatacommunities.org/id/unitary-authority/bracknell-forest","Bracknell Forest Council","00MA","Children Looked After","Fostering services","Independent Fostering (Non BFBC)","Contracted Services",18/12/2012 00:00:00,"6507159",3322.89,"BARNARDO SERVICES LTD"
"Bracknell Forest Council","http://opendatacommunities.org/id/unitary-authority/bracknell-forest","Bracknell Forest Council","00MA","Older People (Aged 65 or Over)","Residential Care Home Placements","Residential Placements-Elderly","Contracted Services",15/01/2013 00:00:00,"30209987",1845,"BEECHVILLE CARE HOME"
"Bracknell Forest Council","http://opendatacommunities.org/id/unitary-authority/bracknell-forest","Bracknell Forest Council","00MA","Older People (Aged 65 or Over)","Nursing Home Placements","Nursing EMI Placements - Elderly","Contracted Services",15/01/2013 00:00:00,"30209987",2280.84,"BENEDICT HOUSE NURSING HOME"
"Bracknell Forest Council","http://opendatacommunities.org/id/unitary-authority/bracknell-forest","Bracknell Forest Council","00MA","Children Looked After","Residential care","Children's Home Placements","Contracted Services",19/10/2012 00:00:00,"6506481",750,"BENJAMIN UK LTD"
"Bracknell Forest Council","http://opendatacommunities.org/id/unitary-authority/bracknell-forest","Bracknell Forest Council","00MA","Economic Development","Economic Development","Town Centre Management","R&M - Reactive",07/12/2012 00:00:00,"6505245",2960,"BENVILLE AND MARSH LTD"
"Bracknell Forest Council","http://opendatacommunities.org/id/unitary-authority/bracknell-forest","Bracknell Forest Council","00MA","Recreation, Sports and Leisure","Golf Courses","Leisure DSO - Downshire Golf Course","R&M - Service Contracts",21/12/2012 00:00:00,"6505872",980,"BENVILLE AND MARSH LTD"
"Bracknell Forest Council","http://opendatacommunities.org/id/unitary-authority/bracknell-forest","Bracknell Forest Council","00MA","Early Years","Children's Centres","Children's Centre Co-ordination","Other Fees for Bought-in Services",27/12/2012 00:00:00,"6505726",6250,"BERKS HEALTHCARE NHS FOUNDATION TRUST"
"Bracknell Forest Council","http://opendatacommunities.org/id/unitary-authority/bracknell-forest","Bracknell Forest Council","00MA","Mental Health Needs (Under 65)","Nursing Home Placements","Nursing Home Placements-Mental Illness","Contracted Services",23/08/2012 00:00:00,"6505891",19800,"BERKS HEALTHCARE NHS FOUNDATION TRUST"
"Bracknell Forest Council","http://opendatacommunities.org/id/unitary-authority/bracknell-forest","Bracknell Forest Council","00MA","Primary Schools","Delegated Primary School Budgets","St Michael's (Easthampstead) - Primary","Gas",01/02/2013 00:00:00,"30211066",446.22,"CORONA ENERGY RETAIL 4 LTD"
"Bracknell Forest Council","http://opendatacommunities.org/id/unitary-authority/bracknell-forest","Bracknell Forest Council","00MA","Primary Schools","Delegated Primary School Budgets","St Margaret Clitherow - Catholic Primary","Gas",01/02/2013 00:00:00,"30211066",344.62,"CORONA ENERGY RETAIL 4 LTD"
"Bracknell Forest Council","http://opendatacommunities.org/id/unitary-authority/bracknell-forest","Bracknell Forest Council","00MA","Primary Schools","Delegated Primary School Budgets","The Pines School","Gas",01/02/2013 00:00:00,"30211066",635.68,"CORONA ENERGY RETAIL 4 LTD"
"Bracknell Forest Council","http://opendatacommunities.org/id/unitary-authority/bracknell-forest","Bracknell Forest Council","00MA","Primary Schools","Delegated Primary School Budgets","Owlsmoor - Primary","Gas",01/02/2013 00:00:00,"30211066",1279.9,"CORONA ENERGY RETAIL 4 LTD"
"Bracknell Forest Council","http://opendatacommunities.org/id/unitary-authority/bracknell-forest","Bracknell Forest Council","00MA","Culture and Heritage","Heritage Museums & Galleries","The Look Out","Gas",01/02/2013 00:00:00,"30211066",1199.62,"CORONA ENERGY RETAIL 4 LTD"
"Bracknell Forest Council","http://opendatacommunities.org/id/unitary-authority/bracknell-forest","Bracknell Forest Council","00MA","Environmental Initiatives","Sustainable Development Strategies","South Hill Park Energy","Gas",01/02/2013 00:00:00,"30211066",929.33,"CORONA ENERGY RETAIL 4 LTD"
"Bracknell Forest Council","http://opendatacommunities.org/id/unitary-authority/bracknell-forest","Bracknell Forest Council","00MA","Libraries","Branch Libraries","Sandhurst Library","Gas",01/02/2013 00:00:00,"30211066",154.71,"CORONA ENERGY RETAIL 4 LTD"
"Bracknell Forest Council","http://opendatacommunities.org/id/unitary-authority/bracknell-forest","Bracknell Forest Council","00MA","Services to Young People","Other Services to Young People","Priestwood Youth Centre","Gas",01/02/2013 00:00:00,"30211066",215.74,"CORONA ENERGY RETAIL 4 LTD"
"Bracknell Forest Council","http://opendatacommunities.org/id/unitary-authority/bracknell-forest","Bracknell Forest Council","00MA","Recreation, Sports and Leisure","Indoor Sports & Recreation Facilities","Leisure DSO - Coral Reef","Gas",01/02/2013 00:00:00,"30211066",16108.45,"CORONA ENERGY RETAIL 4 LTD"
"Bracknell Forest Council","http://opendatacommunities.org/id/unitary-authority/bracknell-forest","Bracknell Forest Council","00MA","Libraries","Branch Libraries","Crowthorne Library","Gas",01/02/2013 00:00:00,"30211066",105.17,"CORONA ENERGY RETAIL 4 LTD"
"Bracknell Forest Council","http://opendatacommunities.org/id/unitary-authority/bracknell-forest","Bracknell Forest Council","00MA","Recreation, Sports and Leisure","Indoor Sports & Recreation Facilities","Leisure DSO - Leisure Centre","Gas",01/02/2013 00:00:00,"30211066",16976.05,"CORONA ENERGY RETAIL 4 LTD"
"Bracknell Forest Council","http://opendatacommunities.org/id/unitary-authority/bracknell-forest","Bracknell Forest Council","00MA","Cemeteries, Crematoria & Mortuary Services","Cemeteries & Crematorium","Easthampstead Park Cemetery &Crematorium","Gas",01/02/2013 00:00:00,"30211066",2527.35,"CORONA ENERGY RETAIL 4 LTD"
"Bracknell Forest Council","http://opendatacommunities.org/id/unitary-authority/bracknell-forest","Bracknell Forest Council","00MA","Holding Accounts","Landscape Services","Landscape Services Operational","Gas",01/02/2013 00:00:00,"30211066",7.76,"CORONA ENERGY RETAIL 4 LTD"
"Bracknell Forest Council","http://opendatacommunities.org/id/unitary-authority/bracknell-forest","Bracknell Forest Council","00MA","Central Support Services - COF","Construction and Property","Depot Facilities","Gas",01/02/2013 00:00:00,"30211066",-2333.02,"CORONA ENERGY RETAIL 4 LTD"
"Bracknell Forest Council","http://opendatacommunities.org/id/unitary-authority/bracknell-forest","Bracknell Forest Council","00MA","Central Support Services - COF","Construction and Property","Depot Facilities","Gas",01/02/2013 00:00:00,"30211066",2333.02,"CORONA ENERGY RETAIL 4 LTD"
"Bracknell Forest Council","http://opendatacommunities.org/id/unitary-authority/bracknell-forest","Bracknell Forest Council","00MA","Central Support Services - COF","Construction and Property","Depot Facilities","Gas",01/02/2013 00:00:00,"30211066",2728.18,"CORONA ENERGY RETAIL 4 LTD"
"Bracknell Forest Council","http://opendatacommunities.org/id/unitary-authority/bracknell-forest","Bracknell Forest Council","00MA","Primary Schools","Delegated Primary School Budgets","Crowthorne - Primary","Gas",01/02/2013 00:00:00,"30211066",739.16,"CORONA ENERGY RETAIL 4 LTD"
"Bracknell Forest Council","http://opendatacommunities.org/id/unitary-authority/bracknell-forest","Bracknell Forest Council","00MA","Primary Schools","Delegated Primary School Budgets","Crown Wood - Primary","Gas",01/02/2013 00:00:00,"30211066",1022.83,"CORONA ENERGY RETAIL 4 LTD"
"Bracknell Forest Council","http://opendatacommunities.org/id/unitary-authority/bracknell-forest","Bracknell Forest Council","00MA","Primary Schools","Delegated Primary School Budgets","Birch Hill - Primary","Gas",01/02/2013 00:00:00,"30211066",1110.86,"CORONA ENERGY RETAIL 4 LTD"
"Bracknell Forest Council","http://opendatacommunities.org/id/unitary-authority/bracknell-forest","Bracknell Forest Council","00MA","Family Support Services","Other family support services","Family Centre Running Costs","Gas",01/02/2013 00:00:00,"30211066",177.5,"CORONA ENERGY RETAIL 4 LTD"
"Bracknell Forest Council","http://opendatacommunities.org/id/unitary-authority/bracknell-forest","Bracknell Forest Council","00MA","Primary Schools","Delegated Primary School Budgets","Warfield CE - Primary","Gas",01/02/2013 00:00:00,"30211066",499.71,"CORONA ENERGY RETAIL 4 LTD"
"Bracknell Forest Council","http://opendatacommunities.org/id/unitary-authority/bracknell-forest","Bracknell Forest Council","00MA","Primary Schools","Delegated Primary School Budgets","Whitegrove - Primary","Gas",01/02/2013 00:00:00,"30211066",1019.98,"CORONA ENERGY RETAIL 4 LTD"
"Bracknell Forest Council","http://opendatacommunities.org/id/unitary-authority/bracknell-forest","Bracknell Forest Council","00MA","Primary Schools","Delegated Primary School Budgets","Wildridings - Primary","Gas",01/02/2013 00:00:00,"30211066",255.72,"CORONA ENERGY RETAIL 4 LTD"
"Bracknell Forest Council","http://opendatacommunities.org/id/unitary-authority/bracknell-forest","Bracknell Forest Council","00MA","Primary Schools","Delegated Primary School Budgets","Wooden Hill - Primary","Gas",01/02/2013 00:00:00,"30211066",660.98,"CORONA ENERGY RETAIL 4 LTD"
"Bracknell Forest Council","http://opendatacommunities.org/id/unitary-authority/bracknell-forest","Bracknell Forest Council","00MA","Management and Support Services - CYPL","Holding Codes - net nil","Ranelagh Academy","Gas",01/02/2013 00:00:00,"30211066",1314.54,"CORONA ENERGY RETAIL 4 LTD"
"Bracknell Forest Council","http://opendatacommunities.org/id/unitary-authority/bracknell-forest","Bracknell Forest Council","00MA","Management and Support Services - CYPL","Holding Codes - net nil","Ranelagh Academy","Gas",01/02/2013 00:00:00,"30211066",471.11,"CORONA ENERGY RETAIL 4 LTD"
"Bracknell Forest Council","http://opendatacommunities.org/id/unitary-authority/bracknell-forest","Bracknell Forest Council","00MA","Primary Schools","Delegated Primary School Budgets","Uplands - Primary","Gas",01/02/2013 00:00:00,"30211066",250.42,"CORONA ENERGY RETAIL 4 LTD"
"Bracknell Forest Council","http://opendatacommunities.org/id/unitary-authority/bracknell-forest","Bracknell Forest Council","00MA","Central Support Services - COF","Construction and Property","Easthampstead & Seymour House","Gas",01/02/2013 00:00:00,"30211066",1868.54,"CORONA ENERGY RETAIL 4 LTD"
"Bracknell Forest Council","http://opendatacommunities.org/id/unitary-authority/bracknell-forest","Bracknell Forest Council","00MA","Recreation, Sports and Leisure","Indoor Sports & Recreation Facilities","Recreation Staff Accommodation","Gas",01/02/2013 00:00:00,"30211066",41.22,"CORONA ENERGY RETAIL 4 LTD"
"Bracknell Forest Council","http://opendatacommunities.org/id/unitary-authority/bracknell-forest","Bracknell Forest Council","00MA","Business Support","Premises Development","Easthampstead Park Conference Centre","Gas",01/02/2013 00:00:00,"30211066",3671.47,"CORONA ENERGY RETAIL 4 LTD"
"Bracknell Forest Council","http://opendatacommunities.org/id/unitary-authority/bracknell-forest","Bracknell Forest Council","00MA","Mental Health Needs (Under 65)","Nursing Home Placements","Nursing Home Placements-Mental Illness","Contracted Services",19/10/2012 00:00:00,"6505892",-8800,"BERKS HEALTHCARE NHS FOUNDATION TRUST"
"Bracknell Forest Council","http://opendatacommunities.org/id/unitary-authority/bracknell-forest","Bracknell Forest Council","00MA","Mental Health Needs (Under 65)","Nursing Home Placements","Nursing Home Placements-Mental Illness","Contracted Services",25/09/2012 00:00:00,"6505893",2200,"BERKS HEALTHCARE NHS FOUNDATION TRUST"
"Bracknell Forest Council","http://opendatacommunities.org/id/unitary-authority/bracknell-forest","Bracknell Forest Council","00MA","Mental Health Needs (Under 65)","Assessment & Care Management","CMHT","Rent of Property",29/11/2012 00:00:00,"6505894",2588.75,"BERKS HEALTHCARE NHS FOUNDATION TRUST"
"Bracknell Forest Council","http://opendatacommunities.org/id/unitary-authority/bracknell-forest","Bracknell Forest Council","00MA","Mental Health Needs (Under 65)","Assessment & Care Management","CMHT","Rent of Property",18/12/2012 00:00:00,"6505895",2588.75,"BERKS HEALTHCARE NHS FOUNDATION TRUST"
"Bracknell Forest Council","http://opendatacommunities.org/id/unitary-authority/bracknell-forest","Bracknell Forest Council","00MA","Older People (Aged 65 or Over)","Assessment & Care Management","Short Term Services (S75 Funded)","Contracted Services",19/12/2012 00:00:00,"6506193",15864.5,"BERKS HEALTHCARE NHS FOUNDATION TRUST"
"Bracknell Forest Council","http://opendatacommunities.org/id/unitary-authority/bracknell-forest","Bracknell Forest Council","00MA","Older People (Aged 65 or Over)","Residential Care Home Placements","Bridgwell Centre (S75 Funded)","Contracted Services",19/12/2012 00:00:00,"6506193",15103.6,"BERKS HEALTHCARE NHS FOUNDATION TRUST"
"Bracknell Forest Council","http://opendatacommunities.org/id/unitary-authority/bracknell-forest","Bracknell Forest Council","00MA","Special Schools","Centrally managed Expenditure - Special","Supporting Special Educational Needs","Other Fees for Bought-in Services",27/12/2012 00:00:00,"6506665",17000,"BERKS HEALTHCARE NHS FOUNDATION TRUST"
"Bracknell Forest Council","http://opendatacommunities.org/id/unitary-authority/bracknell-forest","Bracknell Forest Council","00MA","Other Adult Services","Substance Abuse (Addictions)","NEX Supplies and Waste","Contracted Services",21/01/2013 00:00:00,"6507681",7455.9,"BERKS HEALTHCARE NHS FOUNDATION TRUST"
"Bracknell Forest Council","http://opendatacommunities.org/id/unitary-authority/bracknell-forest","Bracknell Forest Council","00MA","Older People (Aged 65 or Over)","Residential Care Home Placements","Bridgwell Centre (S75 Funded)","Contracted Services",28/01/2013 00:00:00,"6507721",5501.5,"BERKS HEALTHCARE NHS FOUNDATION TRUST"
"Bracknell Forest Council","http://opendatacommunities.org/id/unitary-authority/bracknell-forest","Bracknell Forest Council","00MA","Older People (Aged 65 or Over)","Home Care","Home Care-Elderly","Contracted Services",17/01/2013 00:00:00,"30210139",270.1,"BERKSHIRE CARE LTD"
"Bracknell Forest Council","http://opendatacommunities.org/id/unitary-authority/bracknell-forest","Bracknell Forest Council","00MA","Older People (Aged 65 or Over)","Home Care","Home Care-Elderly","Contracted Services",17/01/2013 00:00:00,"30210139",413.8,"BERKSHIRE CARE LTD"
"Bracknell Forest Council","http://opendatacommunities.org/id/unitary-authority/bracknell-forest","Bracknell Forest Council","00MA","Physical Disability/Sensory Impairment","Homecare","Home Care-Phys Disab","Contracted Services",17/01/2013 00:00:00,"30210139",59,"BERKSHIRE CARE LTD"
"Bracknell Forest Council","http://opendatacommunities.org/id/unitary-authority/bracknell-forest","Bracknell Forest Council","00MA","Physical Disability/Sensory Impairment","Homecare","Home Care-Phys Disab","Contracted Services",17/01/2013 00:00:00,"30210139",1620,"BERKSHIRE CARE LTD"
"Bracknell Forest Council","http://opendatacommunities.org/id/unitary-authority/bracknell-forest","Bracknell Forest Council","00MA","Physical Disability/Sensory Impairment","Homecare","Home Care-Phys Disab","Contracted Services",17/01/2013 00:00:00,"30210139",1961,"BERKSHIRE CARE LTD"
"Bracknell Forest Council","http://opendatacommunities.org/id/unitary-authority/bracknell-forest","Bracknell Forest Council","00MA","Older People (Aged 65 or Over)","Home Care","Home Care-Elderly","Contracted Services",17/01/2013 00:00:00,"30210139",702.8,"BERKSHIRE CARE LTD"
"Bracknell Forest Council","http://opendatacommunities.org/id/unitary-authority/bracknell-forest","Bracknell Forest Council","00MA","Older People (Aged 65 or Over)","Home Care","Home Care-Elderly","Contracted Services",17/01/2013 00:00:00,"30210139",181.3,"BERKSHIRE CARE LTD"
"Bracknell Forest Council","http://opendatacommunities.org/id/unitary-authority/bracknell-forest","Bracknell Forest Council","00MA","Older People (Aged 65 or Over)","Home Care","Home Care-Elderly","Contracted Services",17/01/2013 00:00:00,"30210139",414.4,"BERKSHIRE CARE LTD"
"Bracknell Forest Council","http://opendatacommunities.org/id/unitary-authority/bracknell-forest","Bracknell Forest Council","00MA","Older People (Aged 65 or Over)","Home Care","Home Care-Elderly","Contracted Services",17/01/2013 00:00:00,"30210139",207,"BERKSHIRE CARE LTD"
"Bracknell Forest Council","http://opendatacommunities.org/id/unitary-authority/bracknell-forest","Bracknell Forest Council","00MA","Older People (Aged 65 or Over)","Home Care","Home Care-Elderly","Contracted Services",29/01/2013 00:00:00,"30210784",499.5,"BERKSHIRE CARE LTD"
"Bracknell Forest Council","http://opendatacommunities.org/id/unitary-authority/bracknell-forest","Bracknell Forest Council","00MA","Older People (Aged 65 or Over)","Home Care","Home Care-Elderly","Contracted Services",29/01/2013 00:00:00,"30210784",549.6,"BERKSHIRE CARE LTD"
"Bracknell Forest Council","http://opendatacommunities.org/id/unitary-authority/bracknell-forest","Bracknell Forest Council","00MA","Older People (Aged 65 or Over)","Home Care","Home Care-Elderly","Contracted Services",29/01/2013 00:00:00,"30210784",436.6,"BERKSHIRE CARE LTD"
"Bracknell Forest Council","http://opendatacommunities.org/id/unitary-authority/bracknell-forest","Bracknell Forest Council","00MA","Older People (Aged 65 or Over)","Home Care","Home Care-Elderly","Contracted Services",29/01/2013 00:00:00,"30210784",741.85,"BERKSHIRE CARE LTD"
"Bracknell Forest Council","http://opendatacommunities.org/id/unitary-authority/bracknell-forest","Bracknell Forest Council","00MA","Physical Disability/Sensory Impairment","Homecare","Home Care-Phys Disab","Contracted Services",29/01/2013 00:00:00,"30210784",3608.55,"BERKSHIRE CARE LTD"
"Bracknell Forest Council","http://opendatacommunities.org/id/unitary-authority/bracknell-forest","Bracknell Forest Council","00MA","Older People (Aged 65 or Over)","Other Services To Older People","Carers Respite Services","Contracted Services",10/12/2012 00:00:00,"6506543",12500,"BERKSHIRE CARERS SERVICE"
"Bracknell Forest Council","http://opendatacommunities.org/id/unitary-authority/bracknell-forest","Bracknell Forest Council","00MA","Management and Support Services - CYPL","School Related Expenditure","HTS Interim","Taxi Fares - Home/School Transport",23/12/2012 00:00:00,"6505379",4490,"BERKSHIRE EDUCATION TRAVEL"
"Bracknell Forest Council","http://opendatacommunities.org/id/unitary-authority/bracknell-forest","Bracknell Forest Council","00MA","Management and Support Services - CYPL","School Related Expenditure","HTS Interim","Taxi Fares - Home/School Transport",23/12/2012 00:00:00,"6505380",7350.5,"BERKSHIRE EDUCATION TRAVEL"
"Bracknell Forest Council","http://opendatacommunities.org/id/unitary-authority/bracknell-forest","Bracknell Forest Council","00MA","Management and Support Services - CYPL","School Related Expenditure","HTS Interim","Taxi Fares - Home/School Transport",23/12/2012 00:00:00,"6505381",7675,"BERKSHIRE EDUCATION TRAVEL"
"Bracknell Forest Council","http://opendatacommunities.org/id/unitary-authority/bracknell-forest","Bracknell Forest Council","00MA","Management and Support Services - CYPL","School Related Expenditure","HTS Interim","Taxi Fares - Home/School Transport",23/12/2012 00:00:00,"6505382",8009,"BERKSHIRE EDUCATION TRAVEL"
"Bracknell Forest Council","http://opendatacommunities.org/id/unitary-authority/bracknell-forest","Bracknell Forest Council","00MA","Management and Support Services - CYPL","School Related Expenditure","HTS Interim","Taxi Fares - Home/School Transport",23/12/2012 00:00:00,"6505383",11145,"BERKSHIRE EDUCATION TRAVEL"
"Bracknell Forest Council","http://opendatacommunities.org/id/unitary-authority/bracknell-forest","Bracknell Forest Council","00MA","Management and Support Services - CYPL","School Related Expenditure","HTS Interim","Taxi Fares - Home/School Transport",23/12/2012 00:00:00,"6505384",7390,"BERKSHIRE EDUCATION TRAVEL"
"Bracknell Forest Council","http://opendatacommunities.org/id/unitary-authority/bracknell-forest","Bracknell Forest Council","00MA","Management and Support Services - CYPL","School Related Expenditure","HTS Interim","Taxi Fares - Home/School Transport",23/12/2012 00:00:00,"6505384",2100,"BERKSHIRE EDUCATION TRAVEL"
"Bracknell Forest Council","http://opendatacommunities.org/id/unitary-authority/bracknell-forest","Bracknell Forest Council","00MA","Management and Support Services - CYPL","School Related Expenditure","HTS Interim","Taxi Fares - Home/School Transport",23/12/2012 00:00:00,"6505385",5835,"BERKSHIRE EDUCATION TRAVEL"
"Bracknell Forest Council","http://opendatacommunities.org/id/unitary-authority/bracknell-forest","Bracknell Forest Council","00MA","Management and Support Services - CYPL","School Related Expenditure","HTS Interim","Taxi Fares - Home/School Transport",23/12/2012 00:00:00,"6505386",9155,"BERKSHIRE EDUCATION TRAVEL"
"Bracknell Forest Council","http://opendatacommunities.org/id/unitary-authority/bracknell-forest","Bracknell Forest Council","00MA","Management and Support Services - CYPL","School Related Expenditure","HTS Interim","Taxi Fares - Home/School Transport",23/12/2012 00:00:00,"6505386",870,"BERKSHIRE EDUCATION TRAVEL"
"Bracknell Forest Council","http://opendatacommunities.org/id/unitary-authority/bracknell-forest","Bracknell Forest Council","00MA","Management and Support Services - CYPL","School Related Expenditure","HTS Interim","Taxi Fares - Home/School Transport",23/12/2012 00:00:00,"6505387",7440,"BERKSHIRE EDUCATION TRAVEL"
"Bracknell Forest Council","http://opendatacommunities.org/id/unitary-authority/bracknell-forest","Bracknell Forest Council","00MA","Management and Support Services - CYPL","School Related Expenditure","Home to School Transport","Taxi Fares - Home/School Transport",23/12/2012 00:00:00,"6505398",1595,"BERKSHIRE EDUCATION TRAVEL"
"Bracknell Forest Council","http://opendatacommunities.org/id/unitary-authority/bracknell-forest","Bracknell Forest Council","00MA","Central Support Services - COF","Fleet","Transport Services","Taxi Charges",23/12/2012 00:00:00,"6505398",3030,"BERKSHIRE EDUCATION TRAVEL"
